Workbook

Sheet Start

Sheet Students
A1: LEA Code | B1: School Code | C1: System Name | D1: School Name | E1: Exam Date | F1: Grade Level | G1: Student ID Number | H1: Student Last Name | I1: Student First Name | J1: Student Middle Name | K1: Date of Birth | L1: Gender | M1: Height (inches) | N1: Weight (pounds) | O1: Systolic BP (Final) | P1: Diastolic BP (Final) | Q1: Vision Exam | R1: Hearing Exam | S1: Scoliosis Exam | T1: Dental Exam | U1: Color Vision Exam | V1: Referral Req | W1: Comments | X1: 15M PACER Laps | Y1: 20M PACER Laps | Z1: Street Address | AA1: City | AB1: State | AC1: ZIP Code | AD1: BMI | AE1: Weight Category | AF1: Systolic Level | AG1: Diastolic Level | AH1: BP Final | AI1: BP Category | AJ1: BMI 5th Perc | AK1: BMI 85th Perc | AL1: BMI 95th Perc | AM1: SBP 50th Perc | AN1: SBP 90th Perc | AO1: SBP 95th Perc | AP1: SBP 99th Perc | AQ1: DBP 50th Perc | AR1: DBP 90th Perc | AS1: DBP 95th Perc | AT1: DBP 99th Perc | AU1: BP Row | AV1: SBP Addy | AW1: DBP Addy | AX1: Student Age | AY1: Quick SBP Check | AZ1: Quick DBP Check | BA1: BP Result | BB1: Referral Needed | BC1: BP Normal Flag | BD1: Adult BP Measurement | BE1: Homeroom Teacher
A2: 530 | B2: 48 | C2: =VLOOKUP(StudentTable[[#This Row],[LEA Code]],School_Listing[[System Code]:[System Name]],2,FALSE) -> LOUDON COUNTY | D2: =VLOOKUP(StudentTable[[#This Row],[LEA Code]]&StudentTable[[#This Row],[School Code]],School_Listing[[Column1]:[School Name]],2,FALSE) -> North Middle School | E2: 2015-10-03 | F2: HS | G2: 1234567890 | H2: Doe | I2: Jane | J2: G | K2: 2010-10-03 | L2: F | M2: 47.3 | N2: 90 | O2: 106 | P2: 59 | Q2: NA | R2: NA | S2: NA | T2: NA | U2: NA | V2: =IFERROR(IF(OR(StudentTable[[#This Row],[Vision Exam]] = "F", StudentTable[[#This Row],[Hearing Exam]] = "F", StudentTable[[#This Row],[Scoliosis Exam]] = "F",StudentTable[[#This Row],[Dental Exam]]="F", StudentTable[[#This Row],[Color Vision Exam]]="F",NOT(OR(StudentTable[[#This Row],[Weight Category]] = "Healthy Weight",StudentTable[[#This Row],[Weight Category]] = "")), NOT(OR(StudentTable[[#This Row],[BP Category]] ="Normal",StudentTable[[#This Row],[BP Category]] =""))),"Yes", "No"),"") -> Yes | Z2: 123 West End | AA2: Nashville | AB2: TN | AC2: 37115 | AD2: =IFERROR(StudentTable[[#This Row],[Weight (pounds)]]/(StudentTable[[#This Row],[Height (inches)]]^2)*703,"") -> 28.28 | AE2: =IF(StudentTable[[#This Row],[BMI]]="","",IFERROR(IF(StudentTable[[#This Row],[BMI]]<StudentTable[[#This Row],[BMI 5th Perc]],"Underweight",IF(AND(StudentTable[[#This Row],[BMI]]>=StudentTable[[#This Row],[BMI 5th Perc]],StudentTable[[#This Row],[BMI]]<StudentTable[[#This Row],[BMI 85th Perc]]),"Healthy Weight",IF(AND(StudentTable[[#This Row],[BMI]]>=StudentTable[[#This Row],[BMI 85th Perc]],StudentTable[[#This Row],[BMI]]<StudentTable[[#This Row],[BMI 95th Perc]]),"Overweight",IF(StudentTable[[#This Row],[BMI]]>=StudentTable[[#This Row],[BMI 95th Perc]],"Obese","Out-of-Bounds")))),"")) -> Obese | AF2: =IF(StudentTable[[#This Row],[Systolic BP (Final)]]<>"",IF(StudentTable[[#This Row],[Systolic BP (Final)]]<StudentTable[[#This Row],[SBP 90th Perc]],0,IF(AND(StudentTable[[#This Row],[Systolic BP (Final)]]<StudentTable[[#This Row],[SBP 95th Perc]], StudentTable[[#This Row],[Systolic BP (Final)]]>=StudentTable[[#This Row],[SBP 90th Perc]]),1,IF(AND(StudentTable[[#This Row],[Systolic BP (Final)]]<StudentTable[[#This Row],[SBP 99th Perc]],StudentTable[[#This Row],[Systolic BP (Final)]]>=StudentTable[[#This Row],[SBP 95th Perc]]),2,IF(StudentTable[[#This Row],[Systolic BP (Final)]]>=StudentTable[[#This Row],[SBP 99th Perc]],3,"")))),"") -> 0 | AG2: =IF(StudentTable[[#This Row],[Diastolic BP (Final)]]<>"",IF(StudentTable[[#This Row],[Diastolic BP (Final)]]<StudentTable[[#This Row],[DBP 90th Perc]],0,IF(AND(StudentTable[[#This Row],[Diastolic BP (Final)]]<StudentTable[[#This Row],[DBP 95th Perc]], StudentTable[[#This Row],[Diastolic BP (Final)]]>=StudentTable[[#This Row],[DBP 90th Perc]]),1,IF(AND(StudentTable[[#This Row],[Diastolic BP (Final)]]<StudentTable[[#This Row],[DBP 99th Perc]],StudentTable[[#This Row],[Diastolic BP (Final)]]>=StudentTable[[#This Row],[DBP 95th Perc]]),2,IF(StudentTable[[#This Row],[Diastolic BP (Final)]]>=StudentTable[[#This Row],[DBP 99th Perc]],3,"")))),"") -> 0 | AH2: =IF(StudentTable[[#This Row],[Height (inches)]]="","",IF(StudentTable[[#This Row],[Systolic Level]]<=StudentTable[[#This Row],[Diastolic Level]],StudentTable[Diastolic Level],StudentTable[Systolic Level])) -> 0 | AI2: =IF(StudentTable[[#This Row],[Student Age]]>18,StudentTable[[#This Row],[Adult BP Measurement]],IF(OR(StudentTable[[#This Row],[Systolic BP (Final)]]>=StudentTable[[#This Row],[Quick SBP Check]],StudentTable[[#This Row],[Diastolic BP (Final)]]>=StudentTable[[#This Row],[Quick DBP Check]]),StudentTable[[#This Row],[BP Result]],"Normal")) -> Normal | AJ2: =IFERROR(IF(StudentTable[[#This Row],[Gender]]="M",VLOOKUP(ROUNDDOWN(YEARFRAC(StudentTable[[#This Row],[Exam Date]],StudentTable[[#This Row],[Date of Birth]],1)*12,1),BMITable!$A$3:$K$221,3,TRUE),IF(StudentTable[[#This Row],[Gender]]="F",VLOOKUP(ROUNDDOWN(YEARFRAC(StudentTable[[#This Row],[Exam Date]],StudentTable[[#This Row],[Date of Birth]],1)*12,1),BMITable!$A$224:$K$442,3,TRUE),"")),"") -> 13.53 | AK2: =IFERROR(IF(StudentTable[[#This Row],[Gender]]="M",VLOOKUP(ROUNDDOWN(YEARFRAC(StudentTable[[#This Row],[Exam Date]],StudentTable[[#This Row],[Date of Birth]],1)*12,1),BMITable!$A$3:$K$221,8,TRUE),IF(StudentTable[[#This Row],[Gender]]="F",VLOOKUP(ROUNDDOWN(YEARFRAC(StudentTable[[#This Row],[Exam Date]],StudentTable[[#This Row],[Date of Birth]],1)*12,1),BMITable!$A$224:$K$442,8,TRUE),"")),"") -> 16.79 | AL2: =IFERROR(IF(StudentTable[[#This Row],[Gender]]="M",VLOOKUP(ROUNDDOWN(YEARFRAC(StudentTable[[#This Row],[Exam Date]],StudentTable[[#This Row],[Date of Birth]],1)*12,1),BMITable!$A$3:$K$221,10,TRUE),IF(StudentTable[[#This Row],[Gender]]="F",VLOOKUP(ROUNDDOWN(YEARFRAC(StudentTable[[#This Row],[Exam Date]],StudentTable[[#This Row],[Date of Birth]],1)*12,1),BMITable!$A$224:$K$442,10,TRUE),"")),"") -> 18.22 | AM2: =IFERROR(IF(StudentTable[[#This Row],[Height (inches)]]<>"",HLOOKUP(StudentTable[[#This Row],[Height (inches)]],INDIRECT(StudentTable[[#This Row],[SBP Addy]]),2,TRUE),""),"") -> 96 | AN2: =IFERROR(IF(StudentTable[[#This Row],[Height (inches)]]<>"",HLOOKUP(StudentTable[[#This Row],[Height (inches)]],INDIRECT(StudentTable[[#This Row],[SBP Addy]]),3,TRUE),""),"") -> 110 | AO2: =IFERROR(IF(StudentTable[[#This Row],[Height (inches)]]<>"",HLOOKUP(StudentTable[[#This Row],[Height (inches)]],INDIRECT(StudentTable[[#This Row],[SBP Addy]]),4,TRUE),""),"") -> 113 | AP2: =IFERROR(IF(StudentTable[[#This Row],[Height (inches)]]<>"",HLOOKUP(StudentTable[[#This Row],[Height (inches)]],INDIRECT(StudentTable[[#This Row],[SBP Addy]]),5,TRUE),""),"") -> 125 | AQ2: =IFERROR(IF(StudentTable[[#This Row],[Height (inches)]]<>"",HLOOKUP(StudentTable[[#This Row],[Height (inches)]],INDIRECT(StudentTable[[#This Row],[DBP Addy]]),2,TRUE),""),"") -> 57 | AR2: =IFERROR(IF(StudentTable[[#This Row],[Height (inches)]]<>"",HLOOKUP(StudentTable[[#This Row],[Height (inches)]],INDIRECT(StudentTable[[#This Row],[DBP Addy]]),3,TRUE),""),"") -> 69 | AS2: =IFERROR(IF(StudentTable[[#This Row],[Height (inches)]]<>"",HLOOKUP(StudentTable[[#This Row],[Height (inches)]],INDIRECT(StudentTable[[#This Row],[DBP Addy]]),4,TRUE),""),"") -> 73 | AT2: =IFERROR(IF(StudentTable[[#This Row],[Height (inches)]]<>"",HLOOKUP(StudentTable[[#This Row],[Height (inches)]],INDIRECT(StudentTable[[#This Row],[DBP Addy]]),5,TRUE),""),"") -> 85 | AU2: =IF(StudentTable[[#This Row],[Gender]]="M",MATCH(ROUNDDOWN(YEARFRAC(StudentTable[[#This Row],[Exam Date]],StudentTable[[#This Row],[Date of Birth]]),0),'BP Lookup Table'!$A$3:$A$82,1)+ROW('BP Lookup Table'!$A$3:$A$82)-1,IF(StudentTable[[#This Row],[Gender]]="F",MATCH(ROUNDDOWN(YEARFRAC(StudentTable[[#This Row],[Exam Date]],StudentTable[[#This Row],[Date of Birth]]),0),'BP Lookup Table'!$A$86:$A$161,1)+ROW('BP Lookup Table'!$A$86:$A$161)-1,"")) -> 101 | AV2: =IF(StudentTable[[#This Row],[BP Row]]<>"","'BP Lookup Table'!B"&StudentTable[[#This Row],[BP Row]]&":"&"I"&StudentTable[[#This Row],[BP Row]]+4,"") -> 'BP Lookup Table'!B101:I105 | AW2: =IF(StudentTable[[#This Row],[BP Row]]<>"","'BP Lookup Table'!J"&StudentTable[[#This Row],[BP Row]]&":"&"Q"&StudentTable[[#This Row],[BP Row]]+4,"") -> 'BP Lookup Table'!J101:Q105 | AX2: =ROUND(_xlfn.DAYS(StudentTable[[#This Row],[Exam Date]],StudentTable[[#This Row],[Date of Birth]])/365,0) -> 5 | AY2: =IF(StudentTable[[#This Row],[Gender]]="M",INDEX('Simplified BP table'!$B$4:$B$21,MATCH(StudentTable[[#This Row],[Student Age]],'Simplified BP table'!$A$4:$A$21,0)),INDEX('Simplified BP table'!$D$4:$D$21,MATCH(StudentTable[[#This Row],[Student Age]],'Simplified BP table'!$A$4:$A$21,0))) -> 104 | AZ2: =IF(StudentTable[[#This Row],[Gender]]="M",INDEX('Simplified BP table'!$C$4:$C$21,MATCH(StudentTable[[#This Row],[Student Age]],'Simplified BP table'!$A$4:$A$21,0)),INDEX('Simplified BP table'!$E$4:$E$21,MATCH(StudentTable[[#This Row],[Student Age]],'Simplified BP table'!$A$4:$A$21,0))) -> 64 | BA2: =IF(StudentTable[[#This Row],[Student Age]]>=18,StudentTable[[#This Row],[Adult BP Measurement]],IF(StudentTable[[#This Row],[Height (inches)]]="","Height Needed",IFERROR(IF(StudentTable[[#This Row],[BP Final]]=0,"Normal",IF(StudentTable[[#This Row],[BP Final]]=1,"Elevated BP",IF(StudentTable[[#This Row],[BP Final]]=2,"Stage 1 HT",IF(StudentTable[[#This Row],[BP Final]]=3,"Stage 2 HT","Out of Range")))),""))) -> Normal | BB2: =IF(OR(StudentTable[[#This Row],[Vision Exam]] = "F", StudentTable[[#This Row],[Hearing Exam]] = "F", StudentTable[[#This Row],[Scoliosis Exam]] = "F",StudentTable[[#This Row],[Dental Exam]]="F", StudentTable[[#This Row],[Color Vision Exam]]="F",StudentTable[[#This Row],[Weight Category]] <> "Normal", StudentTable[[#This Row],[BP Category]] <>"Normal"),"Yes", "No") -> Yes | BC2: =AND(OR(StudentTable[[#This Row],[Systolic BP (Final)]]>=StudentTable[[#This Row],[Quick SBP Check]],StudentTable[[#This Row],[Diastolic BP (Final)]]>=StudentTable[[#This Row],[Quick DBP Check]]),StudentTable[[#This Row],[BP Result]]="Normal") -> TRUE | BD2: =IF(AND(StudentTable[[#This Row],[Systolic BP (Final)]]< 120,StudentTable[[#This Row],[Diastolic BP (Final)]]<80),"Normal",IF(AND(StudentTable[[#This Row],[Systolic BP (Final)]]>=120,StudentTable[[#This Row],[Systolic BP (Final)]]<=129,StudentTable[[#This Row],[Diastolic BP (Final)]]<80),"Elevated BP",IF(OR(AND(StudentTable[[#This Row],[Systolic BP (Final)]]>=130,StudentTable[[#This Row],[Systolic BP (Final)]]<=139),AND(StudentTable[[#This Row],[Diastolic BP (Final)]]>=80,StudentTable[[#This Row],[Diastolic BP (Final)]]<=89)),"Stage 1 HT",IF(OR(StudentTable[[#This Row],[Systolic BP (Final)]]>=140,StudentTable[[#This Row],[Diastolic BP (Final)]]>=90),"Stage 2 HT","Out of Range")))) -> Normal | BE2: Mr. Ramirez
A3: 999 | B3: 99 | C3: Smith Co | D3: Kennedy High School | E3: 2016-02-17 | F3: 9 | G3: 4199580 | H3: A47 | I3: B47 | J3: C47 | K3: 2001-08-10 | L3: F | M3: 63 | N3: 91.6 | O3: 121 | P3: 81 | Q3: P | R3: P | S3: P | T3: P | U3: P | V3: =IFERROR(IF(OR(StudentTable[[#This Row],[Vision Exam]] = "F", StudentTable[[#This Row],[Hearing Exam]] = "F", StudentTable[[#This Row],[Scoliosis Exam]] = "F",StudentTable[[#This Row],[Dental Exam]]="F", StudentTable[[#This Row],[Color Vision Exam]]="F",NOT(OR(StudentTable[[#This Row],[Weight Category]] = "Healthy Weight",StudentTable[[#This Row],[Weight Category]] = "")), NOT(OR(StudentTable[[#This Row],[BP Category]] ="Normal",StudentTable[[#This Row],[BP Category]] =""))),"Yes", "No"),"") -> Yes | AD3: =IFERROR(StudentTable[[#This Row],[Weight (pounds)]]/(StudentTable[[#This Row],[Height (inches)]]^2)*703,"") -> 16.22 | AE3: =IF(StudentTable[[#This Row],[BMI]]="","",IFERROR(IF(StudentTable[[#This Row],[BMI]]<StudentTable[[#This Row],[BMI 5th Perc]],"Underweight",IF(AND(StudentTable[[#This Row],[BMI]]>=StudentTable[[#This Row],[BMI 5th Perc]],StudentTable[[#This Row],[BMI]]<StudentTable[[#This Row],[BMI 85th Perc]]),"Healthy Weight",IF(AND(StudentTable[[#This Row],[BMI]]>=StudentTable[[#This Row],[BMI 85th Perc]],StudentTable[[#This Row],[BMI]]<StudentTable[[#This Row],[BMI 95th Perc]]),"Overweight",IF(StudentTable[[#This Row],[BMI]]>=StudentTable[[#This Row],[BMI 95th Perc]],"Obese","Out-of-Bounds")))),"")) -> Healthy Weight | AF3: =IF(StudentTable[[#This Row],[Systolic BP (Final)]]<>"",IF(StudentTable[[#This Row],[Systolic BP (Final)]]<StudentTable[[#This Row],[SBP 90th Perc]],0,IF(AND(StudentTable[[#This Row],[Systolic BP (Final)]]<StudentTable[[#This Row],[SBP 95th Perc]], StudentTable[[#This Row],[Systolic BP (Final)]]>=StudentTable[[#This Row],[SBP 90th Perc]]),1,IF(AND(StudentTable[[#This Row],[Systolic BP (Final)]]<StudentTable[[#This Row],[SBP 99th Perc]],StudentTable[[#This Row],[Systolic BP (Final)]]>=StudentTable[[#This Row],[SBP 95th Perc]]),2,IF(StudentTable[[#This Row],[Systolic BP (Final)]]>=StudentTable[[#This Row],[SBP 99th Perc]],3,"")))),"") -> 1 | AG3: =IF(StudentTable[[#This Row],[Diastolic BP (Final)]]<>"",IF(StudentTable[[#This Row],[Diastolic BP (Final)]]<StudentTable[[#This Row],[DBP 90th Perc]],0,IF(AND(StudentTable[[#This Row],[Diastolic BP (Final)]]<StudentTable[[#This Row],[DBP 95th Perc]], StudentTable[[#This Row],[Diastolic BP (Final)]]>=StudentTable[[#This Row],[DBP 90th Perc]]),1,IF(AND(StudentTable[[#This Row],[Diastolic BP (Final)]]<StudentTable[[#This Row],[DBP 99th Perc]],StudentTable[[#This Row],[Diastolic BP (Final)]]>=StudentTable[[#This Row],[DBP 95th Perc]]),2,IF(StudentTable[[#This Row],[Diastolic BP (Final)]]>=StudentTable[[#This Row],[DBP 99th Perc]],3,"")))),"") -> 2 | AH3: =IF(StudentTable[[#This Row],[Height (inches)]]="","",IF(StudentTable[[#This Row],[Systolic Level]]<=StudentTable[[#This Row],[Diastolic Level]],StudentTable[Diastolic Level],StudentTable[Systolic Level])) -> 2 | AI3: =IF(StudentTable[[#This Row],[Student Age]]>18,StudentTable[[#This Row],[Adult BP Measurement]],IF(OR(StudentTable[[#This Row],[Systolic BP (Final)]]>=StudentTable[[#This Row],[Quick SBP Check]],StudentTable[[#This Row],[Diastolic BP (Final)]]>=StudentTable[[#This Row],[Quick DBP Check]]),StudentTable[[#This Row],[BP Result]],"Normal")) -> Stage 1 HT | AJ3: =IFERROR(IF(StudentTable[[#This Row],[Gender]]="M",VLOOKUP(ROUNDDOWN(YEARFRAC(StudentTable[[#This Row],[Exam Date]],StudentTable[[#This Row],[Date of Birth]],1)*12,1),BMITable!$A$3:$K$221,3,TRUE),IF(StudentTable[[#This Row],[Gender]]="F",VLOOKUP(ROUNDDOWN(YEARFRAC(StudentTable[[#This Row],[Exam Date]],StudentTable[[#This Row],[Date of Birth]],1)*12,1),BMITable!$A$224:$K$442,3,TRUE),"")),"") -> 16.02 | AK3: =IFERROR(IF(StudentTable[[#This Row],[Gender]]="M",VLOOKUP(ROUNDDOWN(YEARFRAC(StudentTable[[#This Row],[Exam Date]],StudentTable[[#This Row],[Date of Birth]],1)*12,1),BMITable!$A$3:$K$221,8,TRUE),IF(StudentTable[[#This Row],[Gender]]="F",VLOOKUP(ROUNDDOWN(YEARFRAC(StudentTable[[#This Row],[Exam Date]],StudentTable[[#This Row],[Date of Birth]],1)*12,1),BMITable!$A$224:$K$442,8,TRUE),"")),"") -> 23.65 | AL3: =IFERROR(IF(StudentTable[[#This Row],[Gender]]="M",VLOOKUP(ROUNDDOWN(YEARFRAC(StudentTable[[#This Row],[Exam Date]],StudentTable[[#This Row],[Date of Birth]],1)*12,1),BMITable!$A$3:$K$221,10,TRUE),IF(StudentTable[[#This Row],[Gender]]="F",VLOOKUP(ROUNDDOWN(YEARFRAC(StudentTable[[#This Row],[Exam Date]],StudentTable[[#This Row],[Date of Birth]],1)*12,1),BMITable!$A$224:$K$442,10,TRUE),"")),"") -> 27.63 | AM3: =IFERROR(IF(StudentTable[[#This Row],[Height (inches)]]<>"",HLOOKUP(StudentTable[[#This Row],[Height (inches)]],INDIRECT(StudentTable[[#This Row],[SBP Addy]]),2,TRUE),""),"") -> 107 | AN3: =IFERROR(IF(StudentTable[[#This Row],[Height (inches)]]<>"",HLOOKUP(StudentTable[[#This Row],[Height (inches)]],INDIRECT(StudentTable[[#This Row],[SBP Addy]]),3,TRUE),""),"") -> 120 | AO3: =IFERROR(IF(StudentTable[[#This Row],[Height (inches)]]<>"",HLOOKUP(StudentTable[[#This Row],[Height (inches)]],INDIRECT(StudentTable[[#This Row],[SBP Addy]]),4,TRUE),""),"") -> 124 | AP3: =IFERROR(IF(StudentTable[[#This Row],[Height (inches)]]<>"",HLOOKUP(StudentTable[[#This Row],[Height (inches)]],INDIRECT(StudentTable[[#This Row],[SBP Addy]]),5,TRUE),""),"") -> 136 | AQ3: =IFERROR(IF(StudentTable[[#This Row],[Height (inches)]]<>"",HLOOKUP(StudentTable[[#This Row],[Height (inches)]],INDIRECT(StudentTable[[#This Row],[DBP Addy]]),2,TRUE),""),"") -> 64 | AR3: =IFERROR(IF(StudentTable[[#This Row],[Height (inches)]]<>"",HLOOKUP(StudentTable[[#This Row],[Height (inches)]],INDIRECT(StudentTable[[#This Row],[DBP Addy]]),3,TRUE),""),"") -> 76 | AS3: =IFERROR(IF(StudentTable[[#This Row],[Height (inches)]]<>"",HLOOKUP(StudentTable[[#This Row],[Height (inches)]],INDIRECT(StudentTable[[#This Row],[DBP Addy]]),4,TRUE),""),"") -> 80 | AT3: =IFERROR(IF(StudentTable[[#This Row],[Height (inches)]]<>"",HLOOKUP(StudentTable[[#This Row],[Height (inches)]],INDIRECT(StudentTable[[#This Row],[DBP Addy]]),5,TRUE),""),"") -> 92 | AU3: =IF(StudentTable[[#This Row],[Gender]]="M",MATCH(ROUNDDOWN(YEARFRAC(StudentTable[[#This Row],[Exam Date]],StudentTable[[#This Row],[Date of Birth]]),0),'BP Lookup Table'!$A$3:$A$82,1)+ROW('BP Lookup Table'!$A$3:$A$82)-1,IF(StudentTable[[#This Row],[Gender]]="F",MATCH(ROUNDDOWN(YEARFRAC(StudentTable[[#This Row],[Exam Date]],StudentTable[[#This Row],[Date of Birth]]),0),'BP Lookup Table'!$A$86:$A$161,1)+ROW('BP Lookup Table'!$A$86:$A$161)-1,"")) -> 146 | AV3: =IF(StudentTable[[#This Row],[BP Row]]<>"","'BP Lookup Table'!B"&StudentTable[[#This Row],[BP Row]]&":"&"I"&StudentTable[[#This Row],[BP Row]]+4,"") -> 'BP Lookup Table'!B146:I150 | AW3: =IF(StudentTable[[#This Row],[BP Row]]<>"","'BP Lookup Table'!J"&StudentTable[[#This Row],[BP Row]]&":"&"Q"&StudentTable[[#This Row],[BP Row]]+4,"") -> 'BP Lookup Table'!J146:Q150 | AX3: =ROUND(_xlfn.DAYS(StudentTable[[#This Row],[Exam Date]],StudentTable[[#This Row],[Date of Birth]])/365,0) -> 15 | AY3: =IF(StudentTable[[#This Row],[Gender]]="M",INDEX('Simplified BP table'!$B$4:$B$21,MATCH(StudentTable[[#This Row],[Student Age]],'Simplified BP table'!$A$4:$A$21,0)),INDEX('Simplified BP table'!$D$4:$D$21,MATCH(StudentTable[[#This Row],[Student Age]],'Simplified BP table'!$A$4:$A$21,0))) -> 120 | AZ3: =IF(StudentTable[[#This Row],[Gender]]="M",INDEX('Simplified BP table'!$C$4:$C$21,MATCH(StudentTable[[#This Row],[Student Age]],'Simplified BP table'!$A$4:$A$21,0)),INDEX('Simplified BP table'!$E$4:$E$21,MATCH(StudentTable[[#This Row],[Student Age]],'Simplified BP table'!$A$4:$A$21,0))) -> 80 | BA3: =IF(StudentTable[[#This Row],[Student Age]]>=18,StudentTable[[#This Row],[Adult BP Measurement]],IF(StudentTable[[#This Row],[Height (inches)]]="","Height Needed",IFERROR(IF(StudentTable[[#This Row],[BP Final]]=0,"Normal",IF(StudentTable[[#This Row],[BP Final]]=1,"Elevated BP",IF(StudentTable[[#This Row],[BP Final]]=2,"Stage 1 HT",IF(StudentTable[[#This Row],[BP Final]]=3,"Stage 2 HT","Out of Range")))),""))) -> Stage 1 HT | BB3: =IF(OR(StudentTable[[#This Row],[Vision Exam]] = "F", StudentTable[[#This Row],[Hearing Exam]] = "F", StudentTable[[#This Row],[Scoliosis Exam]] = "F",StudentTable[[#This Row],[Dental Exam]]="F", StudentTable[[#This Row],[Color Vision Exam]]="F",StudentTable[[#This Row],[Weight Category]] <> "Normal", StudentTable[[#This Row],[BP Category]] <>"Normal"),"Yes", "No") -> Yes | BC3: =AND(OR(StudentTable[[#This Row],[Systolic BP (Final)]]>=StudentTable[[#This Row],[Quick SBP Check]],StudentTable[[#This Row],[Diastolic BP (Final)]]>=StudentTable[[#This Row],[Quick DBP Check]]),StudentTable[[#This Row],[BP Result]]="Normal") -> FALSE | BD3: =IF(AND(StudentTable[[#This Row],[Systolic BP (Final)]]< 120,StudentTable[[#This Row],[Diastolic BP (Final)]]<80),"Normal",IF(AND(StudentTable[[#This Row],[Systolic BP (Final)]]>=120,StudentTable[[#This Row],[Systolic BP (Final)]]<=129,StudentTable[[#This Row],[Diastolic BP (Final)]]<80),"Elevated BP",IF(OR(AND(StudentTable[[#This Row],[Systolic BP (Final)]]>=130,StudentTable[[#This Row],[Systolic BP (Final)]]<=139),AND(StudentTable[[#This Row],[Diastolic BP (Final)]]>=80,StudentTable[[#This Row],[Diastolic BP (Final)]]<=89)),"Stage 1 HT",IF(OR(StudentTable[[#This Row],[Systolic BP (Final)]]>=140,StudentTable[[#This Row],[Diastolic BP (Final)]]>=90),"Stage 2 HT","Out of Range")))) -> Stage 1 HT | BE3: Mr. Ramirez
A4: 999 | B4: 99 | C4: Smith Co | D4: Kennedy High School | E4: 2020-02-17 | F4: 10 | G4: 4030237 | H4: A48 | I4: B48 | J4: C48 | K4: 2000-06-29 | L4: M | M4: 74 | N4: 306.2 | O4: 140 | P4: 80 | Q4: F | R4: F | S4: F | T4: F | U4: F | V4: =IFERROR(IF(OR(StudentTable[[#This Row],[Vision Exam]] = "F", StudentTable[[#This Row],[Hearing Exam]] = "F", StudentTable[[#This Row],[Scoliosis Exam]] = "F",StudentTable[[#This Row],[Dental Exam]]="F", StudentTable[[#This Row],[Color Vision Exam]]="F",NOT(OR(StudentTable[[#This Row],[Weight Category]] = "Healthy Weight",StudentTable[[#This Row],[Weight Category]] = "")), NOT(OR(StudentTable[[#This Row],[BP Category]] ="Normal",StudentTable[[#This Row],[BP Category]] =""))),"Yes", "No"),"") -> Yes | AD4: =IFERROR(StudentTable[[#This Row],[Weight (pounds)]]/(StudentTable[[#This Row],[Height (inches)]]^2)*703,"") -> 39.31 | AE4: =IF(StudentTable[[#This Row],[BMI]]="","",IFERROR(IF(StudentTable[[#This Row],[BMI]]<StudentTable[[#This Row],[BMI 5th Perc]],"Underweight",IF(AND(StudentTable[[#This Row],[BMI]]>=StudentTable[[#This Row],[BMI 5th Perc]],StudentTable[[#This Row],[BMI]]<StudentTable[[#This Row],[BMI 85th Perc]]),"Healthy Weight",IF(AND(StudentTable[[#This Row],[BMI]]>=StudentTable[[#This Row],[BMI 85th Perc]],StudentTable[[#This Row],[BMI]]<StudentTable[[#This Row],[BMI 95th Perc]]),"Overweight",IF(StudentTable[[#This Row],[BMI]]>=StudentTable[[#This Row],[BMI 95th Perc]],"Obese","Out-of-Bounds")))),"")) -> Obese | AF4: =IF(StudentTable[[#This Row],[Systolic BP (Final)]]<>"",IF(StudentTable[[#This Row],[Systolic BP (Final)]]<StudentTable[[#This Row],[SBP 90th Perc]],0,IF(AND(StudentTable[[#This Row],[Systolic BP (Final)]]<StudentTable[[#This Row],[SBP 95th Perc]], StudentTable[[#This Row],[Systolic BP (Final)]]>=StudentTable[[#This Row],[SBP 90th Perc]]),1,IF(AND(StudentTable[[#This Row],[Systolic BP (Final)]]<StudentTable[[#This Row],[SBP 99th Perc]],StudentTable[[#This Row],[Systolic BP (Final)]]>=StudentTable[[#This Row],[SBP 95th Perc]]),2,IF(StudentTable[[#This Row],[Systolic BP (Final)]]>=StudentTable[[#This Row],[SBP 99th Perc]],3,"")))),"") -> 2 | AG4: =IF(StudentTable[[#This Row],[Diastolic BP (Final)]]<>"",IF(StudentTable[[#This Row],[Diastolic BP (Final)]]<StudentTable[[#This Row],[DBP 90th Perc]],0,IF(AND(StudentTable[[#This Row],[Diastolic BP (Final)]]<StudentTable[[#This Row],[DBP 95th Perc]], StudentTable[[#This Row],[Diastolic BP (Final)]]>=StudentTable[[#This Row],[DBP 90th Perc]]),1,IF(AND(StudentTable[[#This Row],[Diastolic BP (Final)]]<StudentTable[[#This Row],[DBP 99th Perc]],StudentTable[[#This Row],[Diastolic BP (Final)]]>=StudentTable[[#This Row],[DBP 95th Perc]]),2,IF(StudentTable[[#This Row],[Diastolic BP (Final)]]>=StudentTable[[#This Row],[DBP 99th Perc]],3,"")))),"") -> 0 | AH4: =IF(StudentTable[[#This Row],[Height (inches)]]="","",IF(StudentTable[[#This Row],[Systolic Level]]<=StudentTable[[#This Row],[Diastolic Level]],StudentTable[Diastolic Level],StudentTable[Systolic Level])) -> 2 | AI4: =IF(StudentTable[[#This Row],[Student Age]]>18,StudentTable[[#This Row],[Adult BP Measurement]],IF(OR(StudentTable[[#This Row],[Systolic BP (Final)]]>=StudentTable[[#This Row],[Quick SBP Check]],StudentTable[[#This Row],[Diastolic BP (Final)]]>=StudentTable[[#This Row],[Quick DBP Check]]),StudentTable[[#This Row],[BP Result]],"Normal")) -> Stage 1 HT | AJ4: =IFERROR(IF(StudentTable[[#This Row],[Gender]]="M",VLOOKUP(ROUNDDOWN(YEARFRAC(StudentTable[[#This Row],[Exam Date]],StudentTable[[#This Row],[Date of Birth]],1)*12,1),BMITable!$A$3:$K$221,3,TRUE),IF(StudentTable[[#This Row],[Gender]]="F",VLOOKUP(ROUNDDOWN(YEARFRAC(StudentTable[[#This Row],[Exam Date]],StudentTable[[#This Row],[Date of Birth]],1)*12,1),BMITable!$A$224:$K$442,3,TRUE),"")),"") -> 18.98 | AK4: =IFERROR(IF(StudentTable[[#This Row],[Gender]]="M",VLOOKUP(ROUNDDOWN(YEARFRAC(StudentTable[[#This Row],[Exam Date]],StudentTable[[#This Row],[Date of Birth]],1)*12,1),BMITable!$A$3:$K$221,8,TRUE),IF(StudentTable[[#This Row],[Gender]]="F",VLOOKUP(ROUNDDOWN(YEARFRAC(StudentTable[[#This Row],[Exam Date]],StudentTable[[#This Row],[Date of Birth]],1)*12,1),BMITable!$A$224:$K$442,8,TRUE),"")),"") -> 26.78 | AL4: =IFERROR(IF(StudentTable[[#This Row],[Gender]]="M",VLOOKUP(ROUNDDOWN(YEARFRAC(StudentTable[[#This Row],[Exam Date]],StudentTable[[#This Row],[Date of Birth]],1)*12,1),BMITable!$A$3:$K$221,10,TRUE),IF(StudentTable[[#This Row],[Gender]]="F",VLOOKUP(ROUNDDOWN(YEARFRAC(StudentTable[[#This Row],[Exam Date]],StudentTable[[#This Row],[Date of Birth]],1)*12,1),BMITable!$A$224:$K$442,10,TRUE),"")),"") -> 30.23 | AM4: =IFERROR(IF(StudentTable[[#This Row],[Height (inches)]]<>"",HLOOKUP(StudentTable[[#This Row],[Height (inches)]],INDIRECT(StudentTable[[#This Row],[SBP Addy]]),2,TRUE),""),"") -> 118 | AN4: =IFERROR(IF(StudentTable[[#This Row],[Height (inches)]]<>"",HLOOKUP(StudentTable[[#This Row],[Height (inches)]],INDIRECT(StudentTable[[#This Row],[SBP Addy]]),3,TRUE),""),"") -> 134 | AO4: =IFERROR(IF(StudentTable[[#This Row],[Height (inches)]]<>"",HLOOKUP(StudentTable[[#This Row],[Height (inches)]],INDIRECT(StudentTable[[#This Row],[SBP Addy]]),4,TRUE),""),"") -> 138 | AP4: =IFERROR(IF(StudentTable[[#This Row],[Height (inches)]]<>"",HLOOKUP(StudentTable[[#This Row],[Height (inches)]],INDIRECT(StudentTable[[#This Row],[SBP Addy]]),5,TRUE),""),"") -> 150 | AQ4: =IFERROR(IF(StudentTable[[#This Row],[Height (inches)]]<>"",HLOOKUP(StudentTable[[#This Row],[Height (inches)]],INDIRECT(StudentTable[[#This Row],[DBP Addy]]),2,TRUE),""),"") -> 70 | AR4: =IFERROR(IF(StudentTable[[#This Row],[Height (inches)]]<>"",HLOOKUP(StudentTable[[#This Row],[Height (inches)]],INDIRECT(StudentTable[[#This Row],[DBP Addy]]),3,TRUE),""),"") -> 83 | AS4: =IFERROR(IF(StudentTable[[#This Row],[Height (inches)]]<>"",HLOOKUP(StudentTable[[#This Row],[Height (inches)]],INDIRECT(StudentTable[[#This Row],[DBP Addy]]),4,TRUE),""),"") -> 87 | AT4: =IFERROR(IF(StudentTable[[#This Row],[Height (inches)]]<>"",HLOOKUP(StudentTable[[#This Row],[Height (inches)]],INDIRECT(StudentTable[[#This Row],[DBP Addy]]),5,TRUE),""),"") -> 99 | AU4: =IF(StudentTable[[#This Row],[Gender]]="M",MATCH(ROUNDDOWN(YEARFRAC(StudentTable[[#This Row],[Exam Date]],StudentTable[[#This Row],[Date of Birth]]),0),'BP Lookup Table'!$A$3:$A$82,1)+ROW('BP Lookup Table'!$A$3:$A$82)-1,IF(StudentTable[[#This Row],[Gender]]="F",MATCH(ROUNDDOWN(YEARFRAC(StudentTable[[#This Row],[Exam Date]],StudentTable[[#This Row],[Date of Birth]]),0),'BP Lookup Table'!$A$86:$A$161,1)+ROW('BP Lookup Table'!$A$86:$A$161)-1,"")) -> 78 | AV4: =IF(StudentTable[[#This Row],[BP Row]]<>"","'BP Lookup Table'!B"&StudentTable[[#This Row],[BP Row]]&":"&"I"&StudentTable[[#This Row],[BP Row]]+4,"") -> 'BP Lookup Table'!B78:I82 | AW4: =IF(StudentTable[[#This Row],[BP Row]]<>"","'BP Lookup Table'!J"&StudentTable[[#This Row],[BP Row]]&":"&"Q"&StudentTable[[#This Row],[BP Row]]+4,"") -> 'BP Lookup Table'!J78:Q82 | AX4: =ROUND(_xlfn.DAYS(StudentTable[[#This Row],[Exam Date]],StudentTable[[#This Row],[Date of Birth]])/365,0) -> 20 | AY4: =IF(StudentTable[[#This Row],[Gender]]="M",INDEX('Simplified BP table'!$B$4:$B$21,MATCH(StudentTable[[#This Row],[Student Age]],'Simplified BP table'!$A$4:$A$21,0)),INDEX('Simplified BP table'!$D$4:$D$21,MATCH(StudentTable[[#This Row],[Student Age]],'Simplified BP table'!$A$4:$A$21,0))) ->  | AZ4: =IF(StudentTable[[#This Row],[Gender]]="M",INDEX('Simplified BP table'!$C$4:$C$21,MATCH(StudentTable[[#This Row],[Student Age]],'Simplified BP table'!$A$4:$A$21,0)),INDEX('Simplified BP table'!$E$4:$E$21,MATCH(StudentTable[[#This Row],[Student Age]],'Simplified BP table'!$A$4:$A$21,0))) ->  | BA4: =IF(StudentTable[[#This Row],[Student Age]]>=18,StudentTable[[#This Row],[Adult BP Measurement]],IF(StudentTable[[#This Row],[Height (inches)]]="","Height Needed",IFERROR(IF(StudentTable[[#This Row],[BP Final]]=0,"Normal",IF(StudentTable[[#This Row],[BP Final]]=1,"Elevated BP",IF(StudentTable[[#This Row],[BP Final]]=2,"Stage 1 HT",IF(StudentTable[[#This Row],[BP Final]]=3,"Stage 2 HT","Out of Range")))),""))) -> Stage 1 HT | BB4: =IF(OR(StudentTable[[#This Row],[Vision Exam]] = "F", StudentTable[[#This Row],[Hearing Exam]] = "F", StudentTable[[#This Row],[Scoliosis Exam]] = "F",StudentTable[[#This Row],[Dental Exam]]="F", StudentTable[[#This Row],[Color Vision Exam]]="F",StudentTable[[#This Row],[Weight Category]] <> "Normal", StudentTable[[#This Row],[BP Category]] <>"Normal"),"Yes", "No") -> Yes | BC4: =AND(OR(StudentTable[[#This Row],[Systolic BP (Final)]]>=StudentTable[[#This Row],[Quick SBP Check]],StudentTable[[#This Row],[Diastolic BP (Final)]]>=StudentTable[[#This Row],[Quick DBP Check]]),StudentTable[[#This Row],[BP Result]]="Normal") ->  | BD4: =IF(AND(StudentTable[[#This Row],[Systolic BP (Final)]]< 120,StudentTable[[#This Row],[Diastolic BP (Final)]]<80),"Normal",IF(AND(StudentTable[[#This Row],[Systolic BP (Final)]]>=120,StudentTable[[#This Row],[Systolic BP (Final)]]<=129,StudentTable[[#This Row],[Diastolic BP (Final)]]<80),"Elevated BP",IF(OR(AND(StudentTable[[#This Row],[Systolic BP (Final)]]>=130,StudentTable[[#This Row],[Systolic BP (Final)]]<=139),AND(StudentTable[[#This Row],[Diastolic BP (Final)]]>=80,StudentTable[[#This Row],[Diastolic BP (Final)]]<=89)),"Stage 1 HT",IF(OR(StudentTable[[#This Row],[Systolic BP (Final)]]>=140,StudentTable[[#This Row],[Diastolic BP (Final)]]>=90),"Stage 2 HT","Out of Range")))) -> Stage 1 HT | BE4: Mr. Ramirez
A5: 999 | B5: 99 | C5: Smith Co | D5: Kennedy High School | E5: 2015-10-03 | F5: 10 | G5: 4041417 | H5: A49 | I5: B49 | J5: C49 | K5: 2010-10-03 | L5: F | M5: 47.3 | N5: 181.2 | O5: 106 | P5: 59 | Q5: P | R5: P | S5: P | T5: P | U5: P | V5: =IFERROR(IF(OR(StudentTable[[#This Row],[Vision Exam]] = "F", StudentTable[[#This Row],[Hearing Exam]] = "F", StudentTable[[#This Row],[Scoliosis Exam]] = "F",StudentTable[[#This Row],[Dental Exam]]="F", StudentTable[[#This Row],[Color Vision Exam]]="F",NOT(OR(StudentTable[[#This Row],[Weight Category]] = "Healthy Weight",StudentTable[[#This Row],[Weight Category]] = "")), NOT(OR(StudentTable[[#This Row],[BP Category]] ="Normal",StudentTable[[#This Row],[BP Category]] =""))),"Yes", "No"),"") -> Yes | AD5: =IFERROR(StudentTable[[#This Row],[Weight (pounds)]]/(StudentTable[[#This Row],[Height (inches)]]^2)*703,"") -> 56.94 | AE5: =IF(StudentTable[[#This Row],[BMI]]="","",IFERROR(IF(StudentTable[[#This Row],[BMI]]<StudentTable[[#This Row],[BMI 5th Perc]],"Underweight",IF(AND(StudentTable[[#This Row],[BMI]]>=StudentTable[[#This Row],[BMI 5th Perc]],StudentTable[[#This Row],[BMI]]<StudentTable[[#This Row],[BMI 85th Perc]]),"Healthy Weight",IF(AND(StudentTable[[#This Row],[BMI]]>=StudentTable[[#This Row],[BMI 85th Perc]],StudentTable[[#This Row],[BMI]]<StudentTable[[#This Row],[BMI 95th Perc]]),"Overweight",IF(StudentTable[[#This Row],[BMI]]>=StudentTable[[#This Row],[BMI 95th Perc]],"Obese","Out-of-Bounds")))),"")) -> Obese | AF5: =IF(StudentTable[[#This Row],[Systolic BP (Final)]]<>"",IF(StudentTable[[#This Row],[Systolic BP (Final)]]<StudentTable[[#This Row],[SBP 90th Perc]],0,IF(AND(StudentTable[[#This Row],[Systolic BP (Final)]]<StudentTable[[#This Row],[SBP 95th Perc]], StudentTable[[#This Row],[Systolic BP (Final)]]>=StudentTable[[#This Row],[SBP 90th Perc]]),1,IF(AND(StudentTable[[#This Row],[Systolic BP (Final)]]<StudentTable[[#This Row],[SBP 99th Perc]],StudentTable[[#This Row],[Systolic BP (Final)]]>=StudentTable[[#This Row],[SBP 95th Perc]]),2,IF(StudentTable[[#This Row],[Systolic BP (Final)]]>=StudentTable[[#This Row],[SBP 99th Perc]],3,"")))),"") -> 0 | AG5: =IF(StudentTable[[#This Row],[Diastolic BP (Final)]]<>"",IF(StudentTable[[#This Row],[Diastolic BP (Final)]]<StudentTable[[#This Row],[DBP 90th Perc]],0,IF(AND(StudentTable[[#This Row],[Diastolic BP (Final)]]<StudentTable[[#This Row],[DBP 95th Perc]], StudentTable[[#This Row],[Diastolic BP (Final)]]>=StudentTable[[#This Row],[DBP 90th Perc]]),1,IF(AND(StudentTable[[#This Row],[Diastolic BP (Final)]]<StudentTable[[#This Row],[DBP 99th Perc]],StudentTable[[#This Row],[Diastolic BP (Final)]]>=StudentTable[[#This Row],[DBP 95th Perc]]),2,IF(StudentTable[[#This Row],[Diastolic BP (Final)]]>=StudentTable[[#This Row],[DBP 99th Perc]],3,"")))),"") -> 0 | AH5: =IF(StudentTable[[#This Row],[Height (inches)]]="","",IF(StudentTable[[#This Row],[Systolic Level]]<=StudentTable[[#This Row],[Diastolic Level]],StudentTable[Diastolic Level],StudentTable[Systolic Level])) -> 0 | AI5: =IF(StudentTable[[#This Row],[Student Age]]>18,StudentTable[[#This Row],[Adult BP Measurement]],IF(OR(StudentTable[[#This Row],[Systolic BP (Final)]]>=StudentTable[[#This Row],[Quick SBP Check]],StudentTable[[#This Row],[Diastolic BP (Final)]]>=StudentTable[[#This Row],[Quick DBP Check]]),StudentTable[[#This Row],[BP Result]],"Normal")) -> Normal | AJ5: =IFERROR(IF(StudentTable[[#This Row],[Gender]]="M",VLOOKUP(ROUNDDOWN(YEARFRAC(StudentTable[[#This Row],[Exam Date]],StudentTable[[#This Row],[Date of Birth]],1)*12,1),BMITable!$A$3:$K$221,3,TRUE),IF(StudentTable[[#This Row],[Gender]]="F",VLOOKUP(ROUNDDOWN(YEARFRAC(StudentTable[[#This Row],[Exam Date]],StudentTable[[#This Row],[Date of Birth]],1)*12,1),BMITable!$A$224:$K$442,3,TRUE),"")),"") -> 13.53 | AK5: =IFERROR(IF(StudentTable[[#This Row],[Gender]]="M",VLOOKUP(ROUNDDOWN(YEARFRAC(StudentTable[[#This Row],[Exam Date]],StudentTable[[#This Row],[Date of Birth]],1)*12,1),BMITable!$A$3:$K$221,8,TRUE),IF(StudentTable[[#This Row],[Gender]]="F",VLOOKUP(ROUNDDOWN(YEARFRAC(StudentTable[[#This Row],[Exam Date]],StudentTable[[#This Row],[Date of Birth]],1)*12,1),BMITable!$A$224:$K$442,8,TRUE),"")),"") -> 16.79 | AL5: =IFERROR(IF(StudentTable[[#This Row],[Gender]]="M",VLOOKUP(ROUNDDOWN(YEARFRAC(StudentTable[[#This Row],[Exam Date]],StudentTable[[#This Row],[Date of Birth]],1)*12,1),BMITable!$A$3:$K$221,10,TRUE),IF(StudentTable[[#This Row],[Gender]]="F",VLOOKUP(ROUNDDOWN(YEARFRAC(StudentTable[[#This Row],[Exam Date]],StudentTable[[#This Row],[Date of Birth]],1)*12,1),BMITable!$A$224:$K$442,10,TRUE),"")),"") -> 18.22 | AM5: =IFERROR(IF(StudentTable[[#This Row],[Height (inches)]]<>"",HLOOKUP(StudentTable[[#This Row],[Height (inches)]],INDIRECT(StudentTable[[#This Row],[SBP Addy]]),2,TRUE),""),"") -> 96 | AN5: =IFERROR(IF(StudentTable[[#This Row],[Height (inches)]]<>"",HLOOKUP(StudentTable[[#This Row],[Height (inches)]],INDIRECT(StudentTable[[#This Row],[SBP Addy]]),3,TRUE),""),"") -> 110 | AO5: =IFERROR(IF(StudentTable[[#This Row],[Height (inches)]]<>"",HLOOKUP(StudentTable[[#This Row],[Height (inches)]],INDIRECT(StudentTable[[#This Row],[SBP Addy]]),4,TRUE),""),"") -> 113 | AP5: =IFERROR(IF(StudentTable[[#This Row],[Height (inches)]]<>"",HLOOKUP(StudentTable[[#This Row],[Height (inches)]],INDIRECT(StudentTable[[#This Row],[SBP Addy]]),5,TRUE),""),"") -> 125 | AQ5: =IFERROR(IF(StudentTable[[#This Row],[Height (inches)]]<>"",HLOOKUP(StudentTable[[#This Row],[Height (inches)]],INDIRECT(StudentTable[[#This Row],[DBP Addy]]),2,TRUE),""),"") -> 57 | AR5: =IFERROR(IF(StudentTable[[#This Row],[Height (inches)]]<>"",HLOOKUP(StudentTable[[#This Row],[Height (inches)]],INDIRECT(StudentTable[[#This Row],[DBP Addy]]),3,TRUE),""),"") -> 69 | AS5: =IFERROR(IF(StudentTable[[#This Row],[Height (inches)]]<>"",HLOOKUP(StudentTable[[#This Row],[Height (inches)]],INDIRECT(StudentTable[[#This Row],[DBP Addy]]),4,TRUE),""),"") -> 73 | AT5: =IFERROR(IF(StudentTable[[#This Row],[Height (inches)]]<>"",HLOOKUP(StudentTable[[#This Row],[Height (inches)]],INDIRECT(StudentTable[[#This Row],[DBP Addy]]),5,TRUE),""),"") -> 85 | AU5: =IF(StudentTable[[#This Row],[Gender]]="M",MATCH(ROUNDDOWN(YEARFRAC(StudentTable[[#This Row],[Exam Date]],StudentTable[[#This Row],[Date of Birth]]),0),'BP Lookup Table'!$A$3:$A$82,1)+ROW('BP Lookup Table'!$A$3:$A$82)-1,IF(StudentTable[[#This Row],[Gender]]="F",MATCH(ROUNDDOWN(YEARFRAC(StudentTable[[#This Row],[Exam Date]],StudentTable[[#This Row],[Date of Birth]]),0),'BP Lookup Table'!$A$86:$A$161,1)+ROW('BP Lookup Table'!$A$86:$A$161)-1,"")) -> 101 | AV5: =IF(StudentTable[[#This Row],[BP Row]]<>"","'BP Lookup Table'!B"&StudentTable[[#This Row],[BP Row]]&":"&"I"&StudentTable[[#This Row],[BP Row]]+4,"") -> 'BP Lookup Table'!B101:I105 | AW5: =IF(StudentTable[[#This Row],[BP Row]]<>"","'BP Lookup Table'!J"&StudentTable[[#This Row],[BP Row]]&":"&"Q"&StudentTable[[#This Row],[BP Row]]+4,"") -> 'BP Lookup Table'!J101:Q105 | AX5: =ROUND(_xlfn.DAYS(StudentTable[[#This Row],[Exam Date]],StudentTable[[#This Row],[Date of Birth]])/365,0) -> 5 | AY5: =IF(StudentTable[[#This Row],[Gender]]="M",INDEX('Simplified BP table'!$B$4:$B$21,MATCH(StudentTable[[#This Row],[Student Age]],'Simplified BP table'!$A$4:$A$21,0)),INDEX('Simplified BP table'!$D$4:$D$21,MATCH(StudentTable[[#This Row],[Student Age]],'Simplified BP table'!$A$4:$A$21,0))) -> 104 | AZ5: =IF(StudentTable[[#This Row],[Gender]]="M",INDEX('Simplified BP table'!$C$4:$C$21,MATCH(StudentTable[[#This Row],[Student Age]],'Simplified BP table'!$A$4:$A$21,0)),INDEX('Simplified BP table'!$E$4:$E$21,MATCH(StudentTable[[#This Row],[Student Age]],'Simplified BP table'!$A$4:$A$21,0))) -> 64 | BA5: =IF(StudentTable[[#This Row],[Student Age]]>=18,StudentTable[[#This Row],[Adult BP Measurement]],IF(StudentTable[[#This Row],[Height (inches)]]="","Height Needed",IFERROR(IF(StudentTable[[#This Row],[BP Final]]=0,"Normal",IF(StudentTable[[#This Row],[BP Final]]=1,"Elevated BP",IF(StudentTable[[#This Row],[BP Final]]=2,"Stage 1 HT",IF(StudentTable[[#This Row],[BP Final]]=3,"Stage 2 HT","Out of Range")))),""))) -> Normal | BB5: =IF(OR(StudentTable[[#This Row],[Vision Exam]] = "F", StudentTable[[#This Row],[Hearing Exam]] = "F", StudentTable[[#This Row],[Scoliosis Exam]] = "F",StudentTable[[#This Row],[Dental Exam]]="F", StudentTable[[#This Row],[Color Vision Exam]]="F",StudentTable[[#This Row],[Weight Category]] <> "Normal", StudentTable[[#This Row],[BP Category]] <>"Normal"),"Yes", "No") -> Yes | BC5: =AND(OR(StudentTable[[#This Row],[Systolic BP (Final)]]>=StudentTable[[#This Row],[Quick SBP Check]],StudentTable[[#This Row],[Diastolic BP (Final)]]>=StudentTable[[#This Row],[Quick DBP Check]]),StudentTable[[#This Row],[BP Result]]="Normal") -> TRUE | BD5: =IF(AND(StudentTable[[#This Row],[Systolic BP (Final)]]< 120,StudentTable[[#This Row],[Diastolic BP (Final)]]<80),"Normal",IF(AND(StudentTable[[#This Row],[Systolic BP (Final)]]>=120,StudentTable[[#This Row],[Systolic BP (Final)]]<=129,StudentTable[[#This Row],[Diastolic BP (Final)]]<80),"Elevated BP",IF(OR(AND(StudentTable[[#This Row],[Systolic BP (Final)]]>=130,StudentTable[[#This Row],[Systolic BP (Final)]]<=139),AND(StudentTable[[#This Row],[Diastolic BP (Final)]]>=80,StudentTable[[#This Row],[Diastolic BP (Final)]]<=89)),"Stage 1 HT",IF(OR(StudentTable[[#This Row],[Systolic BP (Final)]]>=140,StudentTable[[#This Row],[Diastolic BP (Final)]]>=90),"Stage 2 HT","Out of Range")))) -> Normal | BE5: Mr. Ramirez

Sheet Referrals
A1: LEA Code | B1: School Code | C1: System Name | D1: School Name | E1: Exam Date | F1: Grade Level | G1: Student ID Number | H1: Student Last Name | I1: Student First Name | J1: Student Middle Name | K1: Date of Birth | L1: Gender | M1: Height (inches) | N1: Weight (pounds) | O1: Systolic BP (Final) | P1: Diastolic BP (Final) | Q1: Vision Exam | R1: Hearing Exam | S1: Scoliosis Exam | T1: Dental Exam | U1: Color Vision Exam | V1: Referral Req | W1: Comments | X1: 15M PACER Laps | Y1: 20M PACER Laps | Z1: Street Address | AA1: City | AB1: State | AC1: ZIP Code | AD1: BMI | AE1: Weight Category | AF1: BP Category | AG1: BMI 5th Perc | AH1: BMI 85th Perc | AI1: BMI 95th Perc | AJ1: SBP 50th Perc | AK1: SBP 90th Perc | AL1: SBP 95th Perc | AM1: SBP 99th Perc | AN1: DBP 50th Perc | AO1: DBP 90th Perc | AP1: DBP 95th Perc | AQ1: DBP 99th Perc | AR1: DBP 90th Perc2 | AS1: DBP 95th Perc3 | AT1: DBP 99th Perc4 | AU1: BP Row | AV1: SBP Addy | AW1: DBP Addy | AX1: Referral Needed

Sheet HealthFitnessLevel (hidden)
A1: Girls | H1: Boys
B2: NI-Health Risk (<=) | C2: NI (Between Values) | D2: HFZ (>=) | I2: NI-Health Risk (<=) | J2: NI (Between Values) | K2: HFZ (>=)
A3: 5 | B3: Completion of test. Lap count or time standards not recommended. | H3: 5 | I3: Completion of test. Lap count or time standards not recommended.
A4: 6 | H4: 6
A5: 7 | H5: 7
A6: 8 | H6: 8
A7: 9 | H7: 9
A8: 10 | B8: 37.3 | D8: 40.2 | H8: 10 | I8: 37.3 | K8: 40.2
A9: 11 | B9: 37.3 | D9: 40.2 | H9: 11 | I9: 37.3 | K9: 40.2
A10: 12 | B10: 37 | D10: 40.1 | H10: 12 | I10: 37.6 | K10: 40.3
A11: 13 | B11: 36.6 | D11: 39.7 | H11: 13 | I11: 38.6 | K11: 41.1
A12: 14 | B12: 36.3 | D12: 39.4 | H12: 14 | I12: 39.6 | K12: 42.5
A13: 15 | B13: 36 | D13: 39.1 | H13: 15 | I13: 40.6 | K13: 43.6
A14: 16 | B14: 35.8 | D14: 38.9 | H14: 16 | I14: 41 | K14: 44.1
A15: 17 | B15: 35.7 | D15: 38.8 | H15: 17 | I15: 41.2 | K15: 44.2
A16: 18 | B16: 35.3 | D16: 38.6 | H16: 18 | I16: 41.2 | K16: 44.3

Sheet Export_Data

Sheet Reports
A2: School Name | B2: (All) | E2: School Name | F2: (All)
A4: Blood Pressure Category | B4: Frequency | E4: Weight Category | F4: Frequency
A5: Normal | B5: 1 | E5: Underweight | F5: 1
A6: Stage 2 HT | B6: 1 | E6: Normal | F6: 1
A7: Grand Total | B7: 2 | E7: Grand Total | F7: 2
A16: Count of Fitness Level | B16: Column Labels
A17: Row Labels | B17: Healthy Fitness Zone | C17: Grand Total
A18: Westwood Elementary School | B18: 1 | C18: 1
A19: Grand Total | B19: 1 | C19: 1

Sheet Report
A5: Student Health Report 2022-2023
A8: One of the primary functions of Coordinated School Health (CSH) is to address health related barriers to learning for (School District Name) students. CSH encourages vision, hearing, blood pressure (BP), and body mass index (BMI) screenings for grades K, 2, 4, 6, 8 and one year of high school. Screenings are not a medical diagnosis and should not be considered a physical examination. Students are encouraged to receive regular physical exams by a health care provider.
A12: Student Information | G12: Basic Health Profile
A13: Name | B13: B49 A49 | G13: Birth Date | H13: 10/3/2010 | I13: BP | J13: =B30 & "/" & B31 -> 106/59
A14: School | B14: Kennedy High School | G14: Gender | H14: F | I14: BMI | J14: 56.94
A15: Grade | B15: 10 | G15: Weight | H15: 181.2 lbs.
A16: School ID | B16: 4041417 | G16: Height | H16: 47.3 in.
A17: Address | B17: , | G17: Exam Date | H17: 10/3/2015
A20: BP Screening | G20: BMI Screening
A21: BP shows how hard the heart works to get blood to the body. High BP may indicate a health problem and high BP can lead to health problems later in life. Healthy BP for children and teens is dependent on age, sex, and height. *BP results are preliminary. If a student's BP is greater than or equal to the 90th percentile for the student's age/sex/height, they will be rescreened at school. If the average of the BP rescreens is greater than or equal to the 90th percentile, CSH will contact the parent/guardian and recommend the student be seen by a health care provider. | G21: BMI is calculated using weight and height measurements. BMI percentile is calculated using your child's weight and height and comparing it to children of the same age and sex. Being underweight or overweight percentile may increase a child's risk of health problems. It is important to understand that BMI does not diagnose your child with a weight problem. Only a health care provider can determine if your child's BMI-for-age is a problem. *Rarely, a child’s BMI may be high because the child is very muscular. Being muscular does not increase health problems for children.
A28: BP Category | G28: BMI Category
A29: ="Your Blood Pressure Reading is " & B30 & "/" & B31 & " mmHG" -> Your Blood Pressure Reading is 106/59 mmHG | G29: ="BMI for age is " & ROUND(J14,2) & " kg/m2" -> BMI for age is 56.94 kg/m2
A30: Systolic: | B30: 106 | C30: mmHg | G30: =IF(J14="","No information available.","If the student's BMI does not fall between " & TRIM(MID(SUBSTITUTE(G38," ",REPT(" ",LEN(G38))), (5-1)*LEN(G38)+1, LEN(G38))) & " and " & TRIM(MID(SUBSTITUTE(G38," ",REPT(" ",LEN(G38))), (8-1)*LEN(G38)+1, LEN(G38))) & ", it is recommended you schedule a visit with your child's health care provider and share these results. Results do not mean that your child is underweight or overweight.") -> If the student's BMI does not fall between 13.53 and 16.79, it is recommended you schedule a visit with your child's health care provider and share these results. Results do not mean that your child is underweight or overweight.
A31: Diastolic: | B31: 59 | C31: mmHg
A32: Your BP Category is Normal
A33: The table below highlights where your child's BP falls according to the American Academy of Pediatrics.
A34: =IF( OR(B30="",B31=""),"No information available.","If the student's systolic BP is above " & A45 & " OR diastolic BP is above " & B45 & ", then it is recommended that the student be seen by a health care provider and these results are shared with the provider. ") -> If the student's systolic BP is above 110 OR diastolic BP is above 69, then it is recommended that the student be seen by a health care provider and these results are shared with the provider. | G34: The BMI suggests the student may be Obese
G36: Is below 13.53
A37: BP | C37: BP Category
A38: Systolic | B38: Diastolic | G38: Is at OR above 13.53 but below 16.79
C40: Stage 2 Hypertension | G40: Is at OR above 16.79 but below 18.22
A41: 125 | B41: 85
C42: Stage 1 Hypertension | G42: Is at or above 18.22
A43: 113 | B43: 73
C44: Elevated
A45: 110 | B45: 69
C46: Normal
A48: Additional Health Screenings
A49: P = Pass R = Recommend follow-up with health care provider and share these results.
A51: Hearing | B51: P | C51: Vision | D51: P | E51: Scoliosis | F51: P | G51: Oral Health | H51: P | I51: Color Vision | J51: P
A52: *NOTE: NA indicates that no information is available.

Sheet BMITable (hidden)
A1: Males, 2-20 years
A2: Age (in months) | B2: 3rd Percentile BMI Value | C2: 5th Percentile BMI Value | D2: 10th Percentile BMI Value | E2: 25th Percentile BMI Value | F2: 50th Percentile BMI Value | G2: 75th Percentile BMI Value | H2: 85th Percentile BMI Value | I2: 90th Percentile BMI Value | J2: 95th Percentile BMI Value | K2: 97th Percentile BMI Value
A3: 24 | B3: 14.52095 | C3: 14.73732 | D3: 15.09033 | E3: 15.74164 | F3: 16.57503 | G3: 17.55719 | H3: 18.16219 | I3: 18.60948 | J3: 19.33801 | K3: 19.85986
A4: 24.5 | B4: 14.50348 | C4: 14.71929 | D4: 15.07117 | E4: 15.71963 | F4: 16.54777 | G4: 17.52129 | H4: 18.11955 | I4: 18.56111 | J4: 19.2789 | K4: 19.79194
A5: 25.5 | B5: 14.46882 | C5: 14.68361 | D5: 15.03336 | E5: 15.67634 | F5: 16.49443 | G5: 17.45135 | H5: 18.03668 | I5: 18.4673 | J5: 19.16466 | K5: 19.66102
A6: 26.5 | B6: 14.4346 | C6: 14.64843 | D6: 14.9962 | E6: 15.63403 | F6: 16.4426 | G6: 17.38384 | H6: 17.957 | I6: 18.37736 | J6: 19.05567 | K6: 19.53658
A7: 27.5 | B7: 14.40083 | C7: 14.61379 | D7: 14.95969 | E7: 15.59268 | F7: 16.39224 | G7: 17.31871 | H7: 17.88047 | I7: 18.29125 | J7: 18.95187 | K7: 19.41849
A8: 28.5 | B8: 14.36755 | C8: 14.57969 | D8: 14.92385 | E8: 15.55226 | F8: 16.34334 | G8: 17.25593 | H8: 17.80704 | I8: 18.20892 | J8: 18.85317 | K8: 19.30665
A9: 29.5 | B9: 14.33478 | C9: 14.54615 | D9: 14.88866 | E9: 15.51275 | F9: 16.29584 | G9: 17.19546 | H9: 17.73667 | I9: 18.13031 | J9: 18.75949 | K9: 19.20097
A10: 30.5 | B10: 14.30257 | C10: 14.51319 | D10: 14.85414 | E10: 15.47414 | F10: 16.24972 | G10: 17.13726 | H10: 17.66932 | I10: 18.05538 | J10: 18.67078 | K10: 19.10132
A11: 31.5 | B11: 14.27093 | C11: 14.48084 | D11: 14.82027 | E11: 15.43639 | F11: 16.20495 | G11: 17.0813 | H11: 17.60495 | I11: 17.98408 | J11: 18.58695 | K11: 19.00761
A12: 32.5 | B12: 14.23989 | C12: 14.44909 | D12: 14.78707 | E12: 15.39951 | F12: 16.1615 | G12: 17.02753 | H12: 17.54351 | I12: 17.91635 | J12: 18.50792 | K12: 18.91973
A13: 33.5 | B13: 14.20948 | C13: 14.41798 | D13: 14.75453 | E13: 15.36345 | F13: 16.11933 | G13: 16.97592 | H13: 17.48496 | I13: 17.85215 | J13: 18.43363 | K13: 18.83758
A14: 34.5 | B14: 14.17972 | C14: 14.3875 | D14: 14.72264 | E14: 15.32822 | F14: 16.07843 | G14: 16.92645 | H14: 17.42927 | I14: 17.79143 | J14: 18.364 | K14: 18.76106
A15: 35.5 | B15: 14.15063 | C15: 14.35767 | D15: 14.69142 | E15: 15.29379 | F15: 16.03876 | G15: 16.87907 | H15: 17.37639 | I15: 17.73414 | J15: 18.29895 | K15: 18.69006
A16: 36.5 | B16: 14.12223 | C16: 14.32851 | D16: 14.66086 | E16: 15.26016 | F16: 16.0003 | G16: 16.83376 | H16: 17.32627 | I16: 17.68022 | J16: 18.23842 | K16: 18.62449
A17: 37.5 | B17: 14.09453 | C17: 14.30002 | D17: 14.63096 | E17: 15.22731 | F17: 15.96304 | G17: 16.79048 | H17: 17.27889 | I17: 17.62963 | J17: 18.18231 | K17: 18.56425
A18: 38.5 | B18: 14.06756 | C18: 14.27222 | D18: 14.60173 | E18: 15.19523 | F18: 15.92695 | G18: 16.7492 | H18: 17.23419 | I18: 17.58231 | J18: 18.13057 | K18: 18.50924
A19: 39.5 | B19: 14.04132 | C19: 14.2451 | D19: 14.57316 | E19: 15.16392 | F19: 15.89203 | G19: 16.70988 | H19: 17.19213 | I19: 17.5382 | J19: 18.08311 | K19: 18.45938
A20: 40.5 | B20: 14.01582 | C20: 14.21868 | D20: 14.54527 | E20: 15.13337 | F20: 15.85824 | G20: 16.67251 | H20: 17.15266 | I20: 17.49725 | J20: 18.03986 | K20: 18.41456
A21: 41.5 | B21: 13.99107 | C21: 14.19297 | D21: 14.51805 | E21: 15.10359 | F21: 15.82559 | G21: 16.63704 | H21: 17.11575 | I21: 17.45941 | J21: 18.00074 | K21: 18.37469
A22: 42.5 | B22: 13.96707 | C22: 14.16796 | D22: 14.49151 | E22: 15.07458 | F22: 15.79406 | G22: 16.60345 | H22: 17.08135 | I22: 17.42462 | J22: 17.96568 | K22: 18.33969
A23: 43.5 | B23: 13.94383 | C23: 14.14367 | D23: 14.46566 | E23: 15.04633 | F23: 15.76364 | G23: 16.5717 | H23: 17.04941 | I23: 17.39282 | J23: 17.93459 | K23: 18.30947
A24: 44.5 | B24: 13.92133 | C24: 14.12009 | D24: 14.4405 | E24: 15.01886 | F24: 15.73434 | G24: 16.54177 | H24: 17.01988 | I24: 17.36395 | J24: 17.90741 | K24: 18.28393
A25: 45.5 | B25: 13.89959 | C25: 14.09723 | D25: 14.41604 | E25: 14.99218 | F25: 15.70614 | G25: 16.51364 | H25: 16.99272 | I25: 17.33795 | J25: 17.88405 | K25: 18.263
A26: 46.5 | B26: 13.87858 | C26: 14.07509 | D26: 14.39229 | E26: 14.96629 | F26: 15.67904 | G26: 16.48726 | H26: 16.96789 | I26: 17.31477 | J26: 17.86444 | K26: 18.24658
A27: 47.5 | B27: 13.85832 | C27: 14.05366 | D27: 14.36926 | E27: 14.9412 | F27: 15.65305 | G27: 16.46262 | H27: 16.94533 | I27: 17.29434 | J27: 17.8485 | K27: 18.23459
A28: 48.5 | B28: 13.83877 | C28: 14.03296 | D28: 14.34695 | E28: 14.91694 | F28: 15.62817 | G28: 16.4397 | H28: 16.92501 | I28: 17.27661 | J28: 17.83614 | K28: 18.22694
A29: 49.5 | B29: 13.81995 | C29: 14.01296 | D29: 14.32537 | E29: 14.89351 | F29: 15.60441 | G29: 16.41846 | H29: 16.90688 | I29: 17.26151 | J29: 17.8273 | K29: 18.22354
A30: 50.5 | B30: 13.80182 | C30: 13.99367 | D30: 14.30453 | E30: 14.87093 | F30: 15.58176 | G30: 16.39889 | H30: 16.89089 | I30: 17.24899 | J30: 17.82189 | K30: 18.22431
A31: 51.5 | B31: 13.78439 | C31: 13.97509 | D31: 14.28444 | E31: 14.84921 | F31: 15.56025 | G31: 16.38097 | H31: 16.87701 | I31: 17.23899 | J31: 17.81983 | K31: 18.22915
A32: 52.5 | B32: 13.76763 | C32: 13.95722 | D32: 14.2651 | E32: 14.82838 | F32: 15.53987 | G32: 16.36468 | H32: 16.86519 | I32: 17.23145 | J32: 17.82104 | K32: 18.23799
A33: 53.5 | B33: 13.75152 | C33: 13.94003 | D33: 14.24651 | E33: 14.80844 | F33: 15.52065 | G33: 16.35001 | H33: 16.8554 | I33: 17.22632 | J33: 17.82544 | K33: 18.25071
A34: 54.5 | B34: 13.73606 | C34: 13.92353 | D34: 14.22868 | E34: 14.78941 | F34: 15.50258 | G34: 16.33693 | H34: 16.8476 | I34: 17.22354 | J34: 17.83295 | K34: 18.26725
A35: 55.5 | B35: 13.72123 | C35: 13.90771 | D35: 14.21162 | E35: 14.7713 | F35: 15.48569 | G35: 16.32545 | H35: 16.84176 | I35: 17.22306 | J35: 17.84349 | K35: 18.2875
A36: 56.5 | B36: 13.70702 | C36: 13.89257 | D36: 14.19532 | E36: 14.75414 | F36: 15.46998 | G36: 16.31554 | H36: 16.83784 | I36: 17.22483 | J36: 17.85699 | K36: 18.31136
A37: 57.5 | B37: 13.6934 | C37: 13.87809 | D37: 14.17979 | E37: 14.73792 | F37: 15.45546 | G37: 16.3072 | H37: 16.8358 | I37: 17.2288 | J37: 17.87335 | K37: 18.33875
A38: 58.5 | B38: 13.68036 | C38: 13.86426 | D38: 14.16503 | E38: 14.72266 | F38: 15.44214 | G38: 16.30042 | H38: 16.83563 | I38: 17.23493 | J38: 17.89252 | K38: 18.36957
A39: 59.5 | B39: 13.6679 | C39: 13.85108 | D39: 14.15103 | E39: 14.70836 | F39: 15.43003 | G39: 16.29518 | H39: 16.83729 | I39: 17.24315 | J39: 17.9144 | K39: 18.40373
A40: 60.5 | B40: 13.656 | C40: 13.83855 | D40: 14.1378 | E40: 14.69504 | F40: 15.41914 | G40: 16.29148 | H40: 16.84076 | I40: 17.25344 | J40: 17.93893 | K40: 18.44112
A41: 61.5 | B41: 13.64464 | C41: 13.82665 | D41: 14.12534 | E41: 14.68269 | F41: 15.40947 | G41: 16.28932 | H41: 16.846 | I41: 17.26575 | J41: 17.96602 | K41: 18.48166
A42: 62.5 | B42: 13.63383 | C42: 13.81537 | D42: 14.11363 | E42: 14.67133 | F42: 15.40103 | G42: 16.28868 | H42: 16.853 | I42: 17.28003 | J42: 17.99562 | K42: 18.52525
A43: 63.5 | B43: 13.62355 | C43: 13.80472 | D43: 14.10268 | E43: 14.66094 | F43: 15.39382 | G43: 16.28955 | H43: 16.86173 | I43: 17.29625 | J43: 18.02764 | K43: 18.57179
A44: 64.5 | B44: 13.61379 | C44: 13.79469 | D44: 14.09249 | E44: 14.65154 | F44: 15.38783 | G44: 16.29192 | H44: 16.87217 | I44: 17.31437 | J44: 18.06201 | K44: 18.6212
A45: 65.5 | B45: 13.60456 | C45: 13.78527 | D45: 14.08305 | E45: 14.64312 | F45: 15.38307 | G45: 16.29578 | H45: 16.88428 | I45: 17.33435 | J45: 18.09868 | K45: 18.67337
A46: 66.5 | B46: 13.59584 | C46: 13.77646 | D46: 14.07436 | E46: 14.63567 | F46: 15.37953 | G46: 16.30113 | H46: 16.89805 | I46: 17.35616 | J46: 18.13758 | K46: 18.72823
A47: 67.5 | B47: 13.58764 | C47: 13.76825 | D47: 14.06642 | E47: 14.6292 | F47: 15.37721 | G47: 16.30794 | H47: 16.91346 | I47: 17.37975 | J47: 18.17863 | K47: 18.78569
A48: 68.5 | B48: 13.57996 | C48: 13.76065 | D48: 14.05921 | E48: 14.62369 | F48: 15.37609 | G48: 16.3162 | H48: 16.93048 | I48: 17.4051 | J48: 18.22179 | K48: 18.84564
A49: 69.5 | B49: 13.57278 | C49: 13.75364 | D49: 14.05274 | E49: 14.61914 | F49: 15.37618 | G49: 16.3259 | H49: 16.94909 | I49: 17.43217 | J49: 18.26698 | K49: 18.90802
A50: 70.5 | B50: 13.56612 | C50: 13.74724 | D50: 14.04701 | E50: 14.61555 | F50: 15.37745 | G50: 16.33702 | H50: 16.96925 | I50: 17.46092 | J50: 18.31416 | K50: 18.97273
A51: 71.5 | B51: 13.55998 | C51: 13.74144 | D51: 14.042 | E51: 14.6129 | F51: 15.37991 | G51: 16.34955 | H51: 16.99096 | I51: 17.49133 | J51: 18.36325 | K51: 19.03969
A52: 72.5 | B52: 13.55435 | C52: 13.73624 | D52: 14.03772 | E52: 14.6112 | F52: 15.38353 | G52: 16.36346 | H52: 17.01418 | I52: 17.52335 | J52: 18.41421 | K52: 19.10882
A53: 73.5 | B53: 13.54925 | C53: 13.73164 | D53: 14.03417 | E53: 14.61042 | F53: 15.38831 | G53: 16.37875 | H53: 17.03888 | I53: 17.55696 | J53: 18.46699 | K53: 19.18005
A54: 74.5 | B54: 13.54467 | C54: 13.72764 | D54: 14.03134 | E54: 14.61057 | F54: 15.39423 | G54: 16.39537 | H54: 17.06505 | I54: 17.59212 | J54: 18.52152 | K54: 19.25329
A55: 75.5 | B55: 13.54062 | C55: 13.72424 | D55: 14.02922 | E55: 14.61163 | F55: 15.40127 | G55: 16.41333 | H55: 17.09265 | I55: 17.6288 | J55: 18.57775 | K55: 19.32847
A56: 76.5 | B56: 13.5371 | C56: 13.72145 | D56: 14.02783 | E56: 14.61359 | F56: 15.40943 | G56: 16.4326 | H56: 17.12166 | I56: 17.66696 | J56: 18.63564 | K56: 19.40551
A57: 77.5 | B57: 13.53412 | C57: 13.71927 | D57: 14.02714 | E57: 14.61645 | F57: 15.41869 | G57: 16.45315 | H57: 17.15206 | I57: 17.70658 | J57: 18.69513 | K57: 19.48434
A58: 78.5 | B58: 13.53168 | C58: 13.71769 | D58: 14.02717 | E58: 14.6202 | F58: 15.42902 | G58: 16.47496 | H58: 17.1838 | I58: 17.74762 | J58: 18.75617 | K58: 19.5649
A59: 79.5 | B59: 13.5298 | C59: 13.71672 | D59: 14.02791 | E59: 14.62483 | F59: 15.44042 | G59: 16.49801 | H59: 17.21688 | I59: 17.79004 | J59: 18.81872 | K59: 19.6471
A60: 80.5 | B60: 13.52846 | C60: 13.71637 | D60: 14.02935 | E60: 14.63032 | F60: 15.45288 | G60: 16.52229 | H60: 17.25126 | I60: 17.83382 | J60: 18.88272 | K60: 19.73089
A61: 81.5 | B61: 13.52768 | C61: 13.71663 | D61: 14.0315 | E61: 14.63668 | F61: 15.46636 | G61: 16.54776 | H61: 17.28691 | I61: 17.87892 | J61: 18.94814 | K61: 19.81619
A62: 82.5 | B62: 13.52747 | C62: 13.71751 | D62: 14.03435 | E62: 14.64389 | F62: 15.48087 | G62: 16.5744 | H62: 17.3238 | I62: 17.92532 | J62: 19.01491 | K62: 19.90294
A63: 83.5 | B63: 13.52782 | C63: 13.71901 | D63: 14.03791 | E63: 14.65194 | F63: 15.49637 | G63: 16.60219 | H63: 17.36192 | I63: 17.97296 | J63: 19.083 | K63: 19.99107
A64: 84.5 | B64: 13.52874 | C64: 13.72113 | D64: 14.04216 | E64: 14.66082 | F64: 15.51287 | G64: 16.63112 | H64: 17.40122 | I64: 18.02183 | J64: 19.15236 | K64: 20.08052
A65: 85.5 | B65: 13.53025 | C65: 13.72387 | D65: 14.04711 | E65: 14.67054 | F65: 15.53034 | G65: 16.66114 | H65: 17.44168 | I65: 18.0719 | J65: 19.22295 | K65: 20.17123
A66: 86.5 | B66: 13.53233 | C66: 13.72724 | D66: 14.05276 | E66: 14.68107 | F66: 15.54876 | G66: 16.69225 | H66: 17.48329 | I66: 18.12312 | J66: 19.29471 | K66: 20.26314
A67: 87.5 | B67: 13.535 | C67: 13.73124 | D67: 14.0591 | E67: 14.69241 | F67: 15.56812 | G67: 16.72442 | H67: 17.52599 | I67: 18.17548 | J67: 19.36761 | K67: 20.35618
A68: 88.5 | B68: 13.53826 | C68: 13.73587 | D68: 14.06613 | E68: 14.70455 | F68: 15.58841 | G68: 16.75763 | H68: 17.56978 | I68: 18.22893 | J68: 19.44161 | K68: 20.45031
A69: 89.5 | B69: 13.54212 | C69: 13.74113 | D69: 14.07386 | E69: 14.71749 | F69: 15.60961 | G69: 16.79185 | H69: 17.61462 | I69: 18.28344 | J69: 19.51666 | K69: 20.54545
A70: 90.5 | B70: 13.54657 | C70: 13.74702 | D70: 14.08228 | E70: 14.73121 | F70: 15.63171 | G70: 16.82707 | H70: 17.66049 | I70: 18.33899 | J70: 19.59272 | K70: 20.64155
A71: 91.5 | B71: 13.55163 | C71: 13.75355 | D71: 14.09138 | E71: 14.74571 | F71: 15.65469 | G71: 16.86325 | H71: 17.70736 | I71: 18.39554 | J71: 19.66974 | K71: 20.73856
A72: 92.5 | B72: 13.55729 | C72: 13.76071 | D72: 14.10116 | E72: 14.76099 | F72: 15.67853 | G72: 16.90039 | H72: 17.7552 | I72: 18.45306 | J72: 19.74769 | K72: 20.83643
A73: 93.5 | B73: 13.56356 | C73: 13.76852 | D73: 14.11163 | E73: 14.77703 | F73: 15.70323 | G73: 16.93845 | H73: 17.80398 | I73: 18.51152 | J73: 19.82652 | K73: 20.93509
A74: 94.5 | B74: 13.57044 | C74: 13.77695 | D74: 14.12279 | E74: 14.79382 | F74: 15.72877 | G74: 16.97742 | H74: 17.85369 | I74: 18.57089 | J74: 19.9062 | K74: 21.03449
A75: 95.5 | B75: 13.57793 | C75: 13.78603 | D75: 14.13462 | E75: 14.81136 | F75: 15.75513 | G75: 17.01727 | H75: 17.90429 | I75: 18.63115 | J75: 19.98668 | K75: 21.13459
A76: 96.5 | B76: 13.58604 | C76: 13.79575 | D76: 14.14712 | E76: 14.82965 | F76: 15.78231 | G76: 17.05799 | H76: 17.95575 | I76: 18.69225 | J76: 20.06793 | K76: 21.23532
A77: 97.5 | B77: 13.59477 | C77: 13.8061 | D77: 14.1603 | E77: 14.84867 | F77: 15.81029 | G77: 17.09955 | H77: 18.00807 | I77: 18.75418 | J77: 20.1499 | K77: 21.33665
A78: 98.5 | B78: 13.60411 | C78: 13.8171 | D78: 14.17416 | E78: 14.86841 | F78: 15.83905 | G78: 17.14193 | H78: 18.0612 | I78: 18.8169 | J78: 20.23256 | K78: 21.43852
A79: 99.5 | B79: 13.61408 | C79: 13.82873 | D79: 14.18868 | E79: 14.88888 | F79: 15.86858 | G79: 17.18512 | H79: 18.11512 | I79: 18.88038 | J79: 20.31587 | K79: 21.54088
A80: 100.5 | B80: 13.62467 | C80: 13.84101 | D80: 14.20387 | E80: 14.91006 | F80: 15.89888 | G80: 17.22909 | H80: 18.16981 | I80: 18.94459 | J80: 20.39979 | K80: 21.64368
A81: 101.5 | B81: 13.63588 | C81: 13.85392 | D81: 14.21972 | E81: 14.93194 | F81: 15.92992 | G81: 17.27383 | H81: 18.22525 | I81: 19.00952 | J81: 20.48429 | K81: 21.74689
A82: 102.5 | B82: 13.64771 | C82: 13.86747 | D82: 14.23624 | E82: 14.95453 | F82: 15.96169 | G82: 17.31932 | H82: 18.28141 | I82: 19.07512 | J82: 20.56933 | K82: 21.85044
A83: 103.5 | B83: 13.66017 | C83: 13.88166 | D83: 14.25341 | E83: 14.9778 | F83: 15.99419 | G83: 17.36552 | H83: 18.33827 | I83: 19.14137 | J83: 20.65487 | K83: 21.9543
A84: 104.5 | B84: 13.67325 | C84: 13.89648 | D84: 14.27124 | E84: 15.00176 | F84: 16.02741 | G84: 17.41244 | H84: 18.3958 | I84: 19.20825 | J84: 20.74089 | K84: 22.05842
A85: 105.5 | B85: 13.68696 | C85: 13.91194 | D85: 14.28972 | E85: 15.0264 | F85: 16.06132 | G85: 17.46005 | H85: 18.45398 | I85: 19.27573 | J85: 20.82733 | K85: 22.16276
A86: 106.5 | B86: 13.70129 | C86: 13.92804 | D86: 14.30884 | E86: 15.05172 | F86: 16.09591 | G86: 17.50833 | H86: 18.5128 | I86: 19.34378 | J86: 20.91417 | K86: 22.26727
A87: 107.5 | B87: 13.71624 | C87: 13.94476 | D87: 14.32862 | E87: 15.07769 | F87: 16.13119 | G87: 17.55726 | H87: 18.57222 | I87: 19.41238 | J87: 21.00138 | K87: 22.37192
A88: 108.5 | B88: 13.73182 | C88: 13.96212 | D88: 14.34903 | E88: 15.10433 | F88: 16.16712 | G88: 17.60683 | H88: 18.63222 | I88: 19.48149 | J88: 21.08893 | K88: 22.47666
A89: 109.5 | B89: 13.74801 | C89: 13.9801 | D89: 14.37008 | E89: 15.13161 | F89: 16.20371 | G89: 17.65702 | H89: 18.69279 | I89: 19.5511 | J89: 21.17677 | K89: 22.58145
A90: 110.5 | B90: 13.76483 | C90: 13.99871 | D90: 14.39177 | E90: 15.15954 | F90: 16.24094 | G90: 17.7078 | H90: 18.7539 | I90: 19.62118 | J90: 21.26488 | K90: 22.68625
A91: 111.5 | B91: 13.78227 | C91: 14.01795 | D91: 14.41409 | E91: 15.1881 | F91: 16.2788 | G91: 17.75918 | H91: 18.81554 | I91: 19.69171 | J91: 21.35323 | K91: 22.79103
A92: 112.5 | B92: 13.80033 | C92: 14.0378 | D92: 14.43703 | E92: 15.2173 | F92: 16.31728 | G92: 17.81112 | H92: 18.87767 | I92: 19.76266 | J92: 21.44178 | K92: 22.89575
A93: 113.5 | B93: 13.819 | C93: 14.05828 | D93: 14.46059 | E93: 15.24712 | F93: 16.35637 | G93: 17.86361 | H93: 18.94028 | I93: 19.83401 | J93: 21.53051 | K93: 23.00036
A94: 114.5 | B94: 13.83828 | C94: 14.07937 | D94: 14.48478 | E94: 15.27755 | F94: 16.39606 | G94: 17.91664 | H94: 19.00336 | I94: 19.90573 | J94: 21.61938 | K94: 23.10484
A95: 115.5 | B95: 13.85818 | C95: 14.10107 | D95: 14.50957 | E95: 15.30859 | F95: 16.43633 | G95: 17.9702 | H95: 19.06688 | I95: 19.97781 | J95: 21.70837 | K95: 23.20915
A96: 116.5 | B96: 13.87868 | C96: 14.12338 | D96: 14.53498 | E96: 15.34024 | F96: 16.47718 | G96: 18.02425 | H96: 19.13081 | I96: 20.05021 | J96: 21.79745 | K96: 23.31326
A97: 117.5 | B97: 13.89979 | C97: 14.1463 | D97: 14.56099 | E97: 15.37248 | F97: 16.5186 | G97: 18.07879 | H97: 19.19516 | I97: 20.12292 | J97: 21.88659 | K97: 23.41712
A98: 118.5 | B98: 13.92151 | C98: 14.16982 | D98: 14.5876 | E98: 15.40531 | F98: 16.56057 | G98: 18.13381 | H98: 19.25988 | I98: 20.19592 | J98: 21.97576 | K98: 23.52071
A99: 119.5 | B99: 13.94382 | C99: 14.19394 | D99: 14.61481 | E99: 15.43872 | F99: 16.60309 | G99: 18.18929 | H99: 19.32497 | I99: 20.26919 | J99: 22.06494 | K99: 23.624
A100: 120.5 | B100: 13.96673 | C100: 14.21866 | D100: 14.6426 | E100: 15.4727 | F100: 16.64614 | G100: 18.24521 | H100: 19.39041 | I100: 20.3427 | J100: 22.15409 | K100: 23.72696
A101: 121.5 | B101: 13.99024 | C101: 14.24396 | D101: 14.67098 | E101: 15.50725 | F101: 16.68972 | G101: 18.30156 | H101: 19.45618 | I101: 20.41643 | J101: 22.2432 | K101: 23.82955
A102: 122.5 | B102: 14.01433 | C102: 14.26985 | D102: 14.69994 | E102: 15.54236 | F102: 16.73381 | G102: 18.35833 | H102: 19.52226 | I102: 20.49036 | J102: 22.33224 | K102: 23.93175
A103: 123.5 | B103: 14.03901 | C103: 14.29633 | D103: 14.72948 | E103: 15.57803 | F103: 16.7784 | G103: 18.4155 | H103: 19.58864 | I103: 20.56448 | J103: 22.42118 | K103: 24.03353
A104: 124.5 | B104: 14.06427 | C104: 14.32338 | D104: 14.75958 | E104: 15.61424 | F104: 16.8235 | G104: 18.47306 | H104: 19.6553 | I104: 20.63877 | J104: 22.51 | K104: 24.13486
A105: 125.5 | B105: 14.09011 | C105: 14.35101 | D105: 14.79025 | E105: 15.65099 | F105: 16.86907 | G105: 18.53099 | H105: 19.72222 | I105: 20.7132 | J105: 22.59868 | K105: 24.23571
A106: 126.5 | B106: 14.11653 | C106: 14.3792 | D106: 14.82148 | E106: 15.68826 | F106: 16.91512 | G106: 18.58928 | H106: 19.78938 | I106: 20.78775 | J106: 22.68719 | K106: 24.33606
A107: 127.5 | B107: 14.14351 | C107: 14.40796 | D107: 14.85326 | E107: 15.72607 | F107: 16.96164 | G107: 18.64792 | H107: 19.85678 | I107: 20.86242 | J107: 22.77551 | K107: 24.43589
A108: 128.5 | B108: 14.17106 | C108: 14.43727 | D108: 14.88558 | E108: 15.76439 | F108: 17.00862 | G108: 18.70689 | H108: 19.92439 | I108: 20.93718 | J108: 22.86363 | K108: 24.53516
A109: 129.5 | B109: 14.19916 | C109: 14.46714 | D109: 14.91845 | E109: 15.80322 | F109: 17.05604 | G109: 18.76619 | H109: 19.9922 | I109: 21.01201 | J109: 22.95151 | K109: 24.63386
A110: 130.5 | B110: 14.22782 | C110: 14.49756 | D110: 14.95184 | E110: 15.84255 | F110: 17.1039 | G110: 18.82579 | H110: 20.06019 | I110: 21.0869 | J110: 23.03915 | K110: 24.73197
A111: 131.5 | B111: 14.25703 | C111: 14.52852 | D111: 14.98577 | E111: 15.88237 | F111: 17.15218 | G111: 18.8857 | H111: 20.12835 | I111: 21.16183 | J111: 23.12651 | K111: 24.82945
A112: 132.5 | B112: 14.28678 | C112: 14.56001 | D112: 15.02022 | E112: 15.92268 | F112: 17.20089 | G112: 18.94588 | H112: 20.19667 | I112: 21.23679 | J112: 23.21358 | K112: 24.9263
A113: 133.5 | B113: 14.31707 | C113: 14.59203 | D113: 15.05519 | E113: 15.96347 | F113: 17.25 | G113: 19.00634 | H113: 20.26514 | I113: 21.31175 | J113: 23.30035 | K113: 25.02249
A114: 134.5 | B114: 14.34789 | C114: 14.62458 | D114: 15.09066 | E114: 16.00473 | F114: 17.29951 | G114: 19.06706 | H114: 20.33373 | I114: 21.38671 | J114: 23.38679 | K114: 25.11801
A115: 135.5 | B115: 14.37924 | C115: 14.65765 | D115: 15.12664 | E115: 16.04646 | F115: 17.34942 | G115: 19.12803 | H115: 20.40243 | I115: 21.46165 | J115: 23.47289 | K115: 25.21283
A116: 136.5 | B116: 14.41111 | C116: 14.69122 | D116: 15.16311 | E116: 16.08864 | F116: 17.3997 | G116: 19.18924 | H116: 20.47124 | I116: 21.53655 | J116: 23.55863 | K116: 25.30693
A117: 137.5 | B117: 14.44349 | C117: 14.72531 | D117: 15.20007 | E117: 16.13127 | F117: 17.45036 | G117: 19.25067 | H117: 20.54013 | I117: 21.61141 | J117: 23.644 | K117: 25.40031
A118: 138.5 | B118: 14.47638 | C118: 14.75989 | D118: 15.23751 | E118: 16.17434 | F118: 17.50138 | G118: 19.31232 | H118: 20.6091 | I118: 21.6862 | J118: 23.72897 | K118: 25.49294
A119: 139.5 | B119: 14.50977 | C119: 14.79496 | D119: 15.27543 | E119: 16.21784 | F119: 17.55276 | G119: 19.37417 | H119: 20.67814 | I119: 21.76091 | J119: 23.81354 | K119: 25.58481
A120: 140.5 | B120: 14.54365 | C120: 14.83052 | D120: 15.31381 | E120: 16.26177 | F120: 17.60448 | G120: 19.43622 | H120: 20.74722 | I120: 21.83554 | J120: 23.89769 | K120: 25.67591
A121: 141.5 | B121: 14.57802 | C121: 14.86655 | D121: 15.35265 | E121: 16.30612 | F121: 17.65653 | G121: 19.49845 | H121: 20.81635 | I121: 21.91006 | J121: 23.98141 | K121: 25.76623
A122: 142.5 | B122: 14.61287 | C122: 14.90306 | D122: 15.39195 | E122: 16.35087 | F122: 17.70892 | G122: 19.56086 | H122: 20.88551 | I122: 21.98447 | J122: 24.06469 | K122: 25.85575
A123: 143.5 | B123: 14.64819 | C123: 14.94002 | D123: 15.43169 | E123: 16.39603 | F123: 17.76162 | G123: 19.62342 | H123: 20.95468 | I123: 22.05876 | J123: 24.1475 | K123: 25.94446
A124: 144.5 | B124: 14.68398 | C124: 14.97745 | D124: 15.47187 | E124: 16.44158 | F124: 17.81463 | G124: 19.68614 | H124: 21.02386 | I124: 22.1329 | J124: 24.22985 | K124: 26.03234
A125: 145.5 | B125: 14.72022 | C125: 15.01532 | D125: 15.51248 | E125: 16.48751 | F125: 17.86795 | G125: 19.74901 | H125: 21.09304 | I125: 22.2069 | J125: 24.31172 | K125: 26.11941
A126: 146.5 | B126: 14.75692 | C126: 15.05363 | D126: 15.5535 | E126: 16.53382 | F126: 17.92155 | G126: 19.812 | H126: 21.1622 | I126: 22.28075 | J126: 24.3931 | K126: 26.20563
A127: 147.5 | B127: 14.79406 | C127: 15.09238 | D127: 15.59495 | E127: 16.5805 | F127: 17.97544 | G127: 19.87512 | H127: 21.23134 | I127: 22.35442 | J127: 24.47397 | K127: 26.29101
A128: 148.5 | B128: 14.83163 | C128: 15.13155 | D128: 15.6368 | E128: 16.62754 | F128: 18.02961 | G128: 19.93836 | H128: 21.30045 | I128: 22.42791 | J128: 24.55434 | K128: 26.37553
A129: 149.5 | B129: 14.86963 | C129: 15.17113 | D129: 15.67904 | E129: 16.67494 | F129: 18.08404 | G129: 20.0017 | H129: 21.36951 | I129: 22.50122 | J129: 24.6342 | K129: 26.4592
A130: 150.5 | B130: 14.90804 | C130: 15.21113 | D130: 15.72168 | E130: 16.72267 | F130: 18.13873 | G130: 20.06514 | H130: 21.43852 | I130: 22.57433 | J130: 24.71352 | K130: 26.54201
A131: 151.5 | B131: 14.94687 | C131: 15.25152 | D131: 15.7647 | E131: 16.77074 | F131: 18.19367 | G131: 20.12866 | H131: 21.50748 | I131: 22.64724 | J131: 24.79232 | K131: 26.62395
A132: 152.5 | B132: 14.98609 | C132: 15.2923 | D132: 15.80809 | E132: 16.81914 | F132: 18.24884 | G132: 20.19227 | H132: 21.57636 | I132: 22.71993 | J132: 24.87058 | K132: 26.70501
A133: 153.5 | B133: 15.02571 | C133: 15.33347 | D133: 15.85184 | E133: 16.86786 | F133: 18.30426 | G133: 20.25594 | H133: 21.64517 | I133: 22.7924 | J133: 24.94829 | K133: 26.78521
A134: 154.5 | B134: 15.06571 | C134: 15.37501 | D134: 15.89595 | E134: 16.91689 | F134: 18.35989 | G134: 20.31968 | H134: 21.71389 | I134: 22.86465 | J134: 25.02545 | K134: 26.86453
A135: 155.5 | B135: 15.10609 | C135: 15.41692 | D135: 15.94041 | E135: 16.96621 | F135: 18.41574 | G135: 20.38347 | H135: 21.78252 | I135: 22.93666 | J135: 25.10206 | K135: 26.94297
A136: 156.5 | B136: 15.14683 | C136: 15.45918 | D136: 15.9852 | E136: 17.01583 | F136: 18.4718 | G136: 20.44731 | H136: 21.85104 | I136: 23.00842 | J136: 25.17811 | K136: 27.02054
A137: 157.5 | B137: 15.18793 | C137: 15.50179 | D137: 16.03032 | E137: 17.06574 | F137: 18.52805 | G137: 20.51119 | H137: 21.91946 | I137: 23.07994 | J137: 25.2536 | K137: 27.09724
A138: 158.5 | B138: 15.22938 | C138: 15.54474 | D138: 16.07576 | E138: 17.11592 | F138: 18.5845 | G138: 20.5751 | H138: 21.98777 | I138: 23.15121 | J138: 25.32853 | K138: 27.17307
A139: 159.5 | B139: 15.27116 | C139: 15.58801 | D139: 16.12151 | E139: 17.16636 | F139: 18.64113 | G139: 20.63903 | H139: 22.05596 | I139: 23.22221 | J139: 25.40289 | K139: 27.24802
A140: 160.5 | B140: 15.31327 | C140: 15.63161 | D140: 16.16756 | E140: 17.21706 | F140: 18.69793 | G140: 20.70298 | H140: 22.12402 | I140: 23.29295 | J140: 25.47668 | K140: 27.32211
A141: 161.5 | B141: 15.3557 | C141: 15.67551 | D141: 16.21391 | E141: 17.26801 | F141: 18.75489 | G141: 20.76694 | H141: 22.19194 | I141: 23.36342 | J141: 25.5499 | K141: 27.39534
A142: 162.5 | B142: 15.39843 | C142: 15.71971 | D142: 16.26054 | E142: 17.3192 | F142: 18.81202 | G142: 20.8309 | H142: 22.25973 | I142: 23.43362 | J142: 25.62256 | K142: 27.46771
A143: 163.5 | B143: 15.44147 | C143: 15.7642 | D143: 16.30743 | E143: 17.37062 | F143: 18.86929 | G143: 20.89486 | H143: 22.32737 | I143: 23.50354 | J143: 25.69464 | K143: 27.53924
A144: 164.5 | B144: 15.48479 | C144: 15.80897 | D144: 16.3546 | E144: 17.42227 | F144: 18.9267 | G144: 20.9588 | H144: 22.39487 | I144: 23.57318 | J144: 25.76616 | K144: 27.60992
A145: 165.5 | B145: 15.52839 | C145: 15.85401 | D145: 16.40201 | E145: 17.47412 | F145: 18.98424 | G145: 21.02272 | H145: 22.46221 | I145: 23.64253 | J145: 25.83712 | K145: 27.67977
A146: 166.5 | B146: 15.57226 | C146: 15.89931 | D146: 16.44967 | E146: 17.52618 | F146: 19.04191 | G146: 21.08663 | H146: 22.52939 | I146: 23.7116 | J146: 25.90751 | K146: 27.74879
A147: 167.5 | B147: 15.61638 | C147: 15.94486 | D147: 16.49756 | E147: 17.57843 | F147: 19.0997 | G147: 21.15049 | H147: 22.5964 | I147: 23.78038 | J147: 25.97734 | K147: 27.817
A148: 168.5 | B148: 15.66076 | C148: 15.99065 | D148: 16.54568 | E148: 17.63086 | F148: 19.15759 | G148: 21.21433 | H148: 22.66325 | I148: 23.84887 | J148: 26.04662 | K148: 27.88441
A149: 169.5 | B149: 15.70536 | C149: 16.03667 | D149: 16.594 | E149: 17.68347 | F149: 19.21558 | G149: 21.27811 | H149: 22.72993 | I149: 23.91706 | J149: 26.11535 | K149: 27.95102
A150: 170.5 | B150: 15.75019 | C150: 16.0829 | D150: 16.64254 | E150: 17.73624 | F150: 19.27366 | G150: 21.34185 | H150: 22.79643 | I150: 23.98496 | J150: 26.18353 | K150: 28.01686
A151: 171.5 | B151: 15.79524 | C151: 16.12934 | D151: 16.69126 | E151: 17.78917 | F151: 19.33182 | G151: 21.40554 | H151: 22.86275 | I151: 24.05257 | J151: 26.25117 | K151: 28.08193
A152: 172.5 | B152: 15.84049 | C152: 16.17598 | D152: 16.74017 | E152: 17.84225 | F152: 19.39006 | G152: 21.46916 | H152: 22.92889 | I152: 24.11987 | J152: 26.31828 | K152: 28.14624
A153: 173.5 | B153: 15.88593 | C153: 16.2228 | D153: 16.78924 | E153: 17.89546 | F153: 19.44837 | G153: 21.53272 | H153: 22.99485 | I153: 24.18689 | J153: 26.38485 | K153: 28.20983
A154: 174.5 | B154: 15.93155 | C154: 16.2698 | D154: 16.83848 | E154: 17.9488 | F154: 19.50673 | G154: 21.5962 | H154: 23.06062 | I154: 24.25361 | J154: 26.45091 | K154: 28.27269
A155: 175.5 | B155: 15.97734 | C155: 16.31696 | D155: 16.88787 | E155: 18.00225 | F155: 19.56514 | G155: 21.65961 | H155: 23.12619 | I155: 24.32003 | J155: 26.51646 | K155: 28.33484
A156: 176.5 | B156: 16.02329 | C156: 16.36427 | D156: 16.9374 | E156: 18.05581 | F156: 19.6236 | G156: 21.72294 | H156: 23.19158 | I156: 24.38616 | J156: 26.58151 | K156: 28.39632
A157: 177.5 | B157: 16.06939 | C157: 16.41172 | D157: 16.98706 | E157: 18.10947 | F157: 19.68208 | G157: 21.78618 | H157: 23.25677 | I157: 24.452 | J157: 26.64606 | K157: 28.45712
A158: 178.5 | B158: 16.11562 | C158: 16.4593 | D158: 17.03683 | E158: 18.16322 | F158: 19.7406 | G158: 21.84932 | H158: 23.32177 | I158: 24.51755 | J158: 26.71014 | K158: 28.51728
A159: 179.5 | B159: 16.16198 | C159: 16.507 | D159: 17.08672 | E159: 18.21704 | F159: 19.79912 | G159: 21.91237 | H159: 23.38657 | I159: 24.58281 | J159: 26.77374 | K159: 28.57682
A160: 180.5 | B160: 16.20844 | C160: 16.55481 | D160: 17.1367 | E160: 18.27093 | F160: 19.85766 | G160: 21.97532 | H160: 23.45117 | I160: 24.64778 | J160: 26.83688 | K160: 28.63575
A161: 181.5 | B161: 16.25501 | C161: 16.60271 | D161: 17.18676 | E161: 18.32488 | F161: 19.9162 | G161: 22.03816 | H161: 23.51557 | I161: 24.71247 | J161: 26.89958 | K161: 28.6941
A162: 182.5 | B162: 16.30166 | C162: 16.6507 | D162: 17.23689 | E162: 18.37887 | F162: 19.97473 | G162: 22.10089 | H162: 23.57978 | I162: 24.77688 | J162: 26.96184 | K162: 28.75189
A163: 183.5 | B163: 16.34839 | C163: 16.69875 | D163: 17.28709 | E163: 18.4329 | F163: 20.03324 | G163: 22.1635 | H163: 23.64378 | I163: 24.84102 | J163: 27.02368 | K163: 28.80915
A164: 184.5 | B164: 16.39519 | C164: 16.74687 | D164: 17.33734 | E164: 18.48696 | F164: 20.09172 | G164: 22.226 | H164: 23.70758 | I164: 24.90489 | J164: 27.08511 | K164: 28.8659
A165: 185.5 | B165: 16.44203 | C165: 16.79503 | D165: 17.38763 | E165: 18.54102 | F165: 20.15017 | G165: 22.28837 | H165: 23.77119 | I165: 24.96848 | J165: 27.14616 | K165: 28.92217
A166: 186.5 | B166: 16.48892 | C166: 16.84323 | D166: 17.43794 | E166: 18.5951 | F166: 20.20858 | G166: 22.35061 | H166: 23.83459 | I166: 25.03182 | J166: 27.20683 | K166: 28.97798
A167: 187.5 | B167: 16.53583 | C167: 16.89146 | D167: 17.48827 | E167: 18.64916 | F167: 20.26694 | G167: 22.41272 | H167: 23.89779 | I167: 25.0949 | J167: 27.26714 | K167: 29.03337
A168: 188.5 | B168: 16.58276 | C168: 16.93969 | D168: 17.53861 | E168: 18.70321 | F168: 20.32524 | G168: 22.47469 | H168: 23.9608 | I168: 25.15773 | J168: 27.3271 | K168: 29.08835
A169: 189.5 | B169: 16.62969 | C169: 16.98792 | D169: 17.58893 | E169: 18.75723 | F169: 20.38346 | G169: 22.53652 | H169: 24.02361 | I169: 25.22032 | J169: 27.38675 | K169: 29.14297
A170: 190.5 | B170: 16.67661 | C170: 17.03615 | D170: 17.63924 | E170: 18.81121 | F170: 20.44162 | G170: 22.59821 | H170: 24.08622 | I170: 25.28267 | J170: 27.44609 | K170: 29.19725
A171: 191.5 | B171: 16.72351 | C171: 17.08434 | D171: 17.68951 | E171: 18.86514 | F171: 20.49968 | G171: 22.65976 | H171: 24.14864 | I171: 25.34478 | J171: 27.50514 | K171: 29.25123
A172: 192.5 | B172: 16.77038 | C172: 17.1325 | D172: 17.73974 | E172: 18.919 | F172: 20.55765 | G172: 22.72115 | H172: 24.21087 | I172: 25.40668 | J172: 27.56393 | K172: 29.30493
A173: 193.5 | B173: 16.8172 | C173: 17.18061 | D173: 17.78991 | E173: 18.97279 | F173: 20.61551 | G173: 22.78239 | H173: 24.27291 | I173: 25.46835 | J173: 27.62247 | K173: 29.35838
A174: 194.5 | B174: 16.86396 | C174: 17.22865 | D174: 17.84001 | E174: 19.0265 | F174: 20.67326 | G174: 22.84346 | H174: 24.33476 | I174: 25.52982 | J174: 27.68078 | K174: 29.41164
A175: 195.5 | B175: 16.91065 | C175: 17.27662 | D175: 17.89003 | E175: 19.08011 | F175: 20.73089 | G175: 22.90438 | H175: 24.39642 | I175: 25.59109 | J175: 27.7389 | K175: 29.46472
A176: 196.5 | B176: 16.95725 | C176: 17.3245 | D176: 17.93995 | E176: 19.13361 | F176: 20.78839 | G176: 22.96514 | H176: 24.4579 | I176: 25.65217 | J176: 27.79683 | K176: 29.51767
A177: 197.5 | B177: 17.00375 | C177: 17.37229 | D177: 17.98977 | E177: 19.187 | F177: 20.84574 | G177: 23.02572 | H177: 24.5192 | I177: 25.71306 | J177: 27.85461 | K177: 29.57051
A178: 198.5 | B178: 17.05015 | C178: 17.41995 | D178: 18.03947 | E178: 19.24025 | F178: 20.90294 | G178: 23.08614 | H178: 24.58033 | I178: 25.77379 | J178: 27.91225 | K178: 29.6233
A179: 199.5 | B179: 17.09642 | C179: 17.46749 | D179: 18.08904 | E179: 19.29335 | F179: 20.95999 | G179: 23.14638 | H179: 24.64128 | I179: 25.83436 | J179: 27.96979 | K179: 29.67606
A180: 200.5 | B180: 17.14256 | C180: 17.51489 | D180: 18.13846 | E180: 19.3463 | F180: 21.01686 | G180: 23.20645 | H180: 24.70207 | I180: 25.89477 | J180: 28.02724 | K180: 29.72885
A181: 201.5 | B181: 17.18854 | C181: 17.56214 | D181: 18.18773 | E181: 19.39908 | F181: 21.07356 | G181: 23.26633 | H181: 24.76269 | I181: 25.95504 | J181: 28.08464 | K181: 29.78169
A182: 202.5 | B182: 17.23437 | C182: 17.60923 | D182: 18.23682 | E182: 19.45168 | F182: 21.13007 | G182: 23.32604 | H182: 24.82315 | I182: 26.01519 | J182: 28.142 | K182: 29.83463
A183: 203.5 | B183: 17.28002 | C183: 17.65613 | D183: 18.28573 | E183: 19.50409 | F183: 21.18638 | G183: 23.38556 | H183: 24.88346 | I183: 26.07522 | J183: 28.19937 | K183: 29.88771
A184: 204.5 | B184: 17.32548 | C184: 17.70284 | D184: 18.33444 | E184: 19.55629 | F184: 21.24248 | G184: 23.4449 | H184: 24.94362 | I184: 26.13515 | J184: 28.25676 | K184: 29.94097
A185: 205.5 | B185: 17.37074 | C185: 17.74935 | D185: 18.38294 | E185: 19.60827 | F185: 21.29836 | G185: 23.50404 | H185: 25.00363 | I185: 26.19498 | J185: 28.3142 | K185: 29.99447
A186: 206.5 | B186: 17.41579 | C186: 17.79564 | D186: 18.43121 | E186: 19.66002 | F186: 21.35402 | G186: 23.563 | H186: 25.0635 | I186: 26.25474 | J186: 28.37173 | K186: 30.04824
A187: 207.5 | B187: 17.46061 | C187: 17.8417 | D187: 18.47925 | E187: 19.71153 | F187: 21.40944 | G187: 23.62176 | H187: 25.12324 | I187: 26.31443 | J187: 28.42937 | K187: 30.10232
A188: 208.5 | B188: 17.50518 | C188: 17.88751 | D188: 18.52703 | E188: 19.76278 | F188: 21.46461 | G188: 23.68033 | H188: 25.18286 | I188: 26.37407 | J188: 28.48716 | K188: 30.15677
A189: 209.5 | B189: 17.54951 | C189: 17.93306 | D189: 18.57455 | E189: 19.81376 | F189: 21.51952 | G189: 23.7387 | H189: 25.24235 | I189: 26.43368 | J189: 28.54513 | K189: 30.21164
A190: 210.5 | B190: 17.59356 | C190: 17.97834 | D190: 18.62179 | E190: 19.86445 | F190: 21.57417 | G190: 23.79687 | H190: 25.30173 | I190: 26.49326 | J190: 28.6033 | K190: 30.26696
A191: 211.5 | B191: 17.63734 | C191: 18.02333 | D191: 18.66873 | E191: 19.91485 | F191: 21.62854 | G191: 23.85484 | H191: 25.361 | I191: 26.55284 | J191: 28.66171 | K191: 30.3228
A192: 212.5 | B192: 17.68082 | C192: 18.06802 | D192: 18.71537 | E192: 19.96493 | F192: 21.68262 | G192: 23.91261 | H192: 25.42017 | I192: 26.61243 | J192: 28.72041 | K192: 30.3792
A193: 213.5 | B193: 17.72399 | C193: 18.11239 | D193: 18.76168 | E193: 20.01469 | F193: 21.7364 | G193: 23.97018 | H193: 25.47925 | I193: 26.67204 | J193: 28.77941 | K193: 30.4362
A194: 214.5 | B194: 17.76683 | C194: 18.15644 | D194: 18.80766 | E194: 20.06412 | F194: 21.78988 | G194: 24.02754 | H194: 25.53824 | I194: 26.73169 | J194: 28.83875 | K194: 30.49387
A195: 215.5 | B195: 17.80934 | C195: 18.20014 | D195: 18.85328 | E195: 20.11319 | F195: 21.84304 | G195: 24.0847 | H195: 25.59716 | I195: 26.79141 | J195: 28.89848 | K195: 30.55225
A196: 216.5 | B196: 17.8515 | C196: 18.24349 | D196: 18.89854 | E196: 20.1619 | F196: 21.89587 | G196: 24.14166 | H196: 25.65601 | I196: 26.8512 | J196: 28.95862 | K196: 30.6114
A197: 217.5 | B197: 17.89329 | C197: 18.28646 | D197: 18.94342 | E197: 20.21022 | F197: 21.94836 | G197: 24.19841 | H197: 25.71481 | I197: 26.91109 | J197: 29.01921 | K197: 30.67137
A198: 218.5 | B198: 17.93471 | C198: 18.32904 | D198: 18.98791 | E198: 20.25816 | F198: 22.00051 | G198: 24.25495 | H198: 25.77355 | I198: 26.97108 | J198: 29.0803 | K198: 30.73222
A199: 219.5 | B199: 17.97573 | C199: 18.37122 | D199: 19.03198 | E199: 20.30569 | F199: 22.05229 | G199: 24.31129 | H199: 25.83225 | I199: 27.03121 | J199: 29.14191 | K199: 30.794
A200: 220.5 | B200: 18.01634 | C200: 18.41299 | D200: 19.07563 | E200: 20.35279 | F200: 22.10371 | G200: 24.36742 | H200: 25.89093 | I200: 27.09149 | J200: 29.20409 | K200: 30.85677
... 242 more rows

Sheet BP List
A1: LEA Code | B1: School Code | C1: System Name | D1: School Name | E1: Exam Date | F1: Grade Level | G1: Student Last Name | H1: Student First Name | I1: Student Middle Name | J1: Date of Birth | K1: Gender | L1: Height (inches) | M1: Systolic BP (Final) | N1: Diastolic BP (Final) | O1: Vision Exam | P1: Hearing Exam | Q1: Scoliosis Exam | R1: Dental Exam | S1: Color Vision Exam | T1: Referral Req | U1: Comments | V1: 15M PACER Laps | W1: 20M PACER Laps | X1: Street Address | Y1: City | Z1: State | AA1: ZIP Code | AB1: BMI | AC1: Weight Category | AD1: Systolic Level | AE1: Diastolic Level | AF1: BP Final | AG1: BP Category | AH1: BMI 5th Perc | AI1: BMI 85th Perc | AJ1: BMI 95th Perc | AK1: SBP 50th Perc | AL1: SBP 90th Perc | AM1: SBP 95th Perc | AN1: SBP 99th Perc | AO1: DBP 50th Perc | AP1: DBP 90th Perc | AQ1: DBP 95th Perc | AR1: DBP 99th Perc | AS1: BP Row | AT1: SBP Addy | AU1: DBP Addy | AV1: Student Age | AW1: Quick SBP Check | AX1: Quick DBP Check | AY1: BP Result | AZ1: Referral Needed | BA1: Homeroom Teacher
A2: 530 | B2: 48 | C2: =VLOOKUP(StudentTable6[[#This Row],[LEA Code]],School_Listing[[System Code]:[System Name]],2,FALSE) -> LOUDON COUNTY | D2: =VLOOKUP(StudentTable6[[#This Row],[LEA Code]]&StudentTable6[[#This Row],[School Code]],School_Listing[[Column1]:[School Name]],2,FALSE) -> North Middle School | E2: 2015-10-03 | F2: HS | G2: Doe | H2: Jane | I2: G | J2: 2000-10-03 | K2: F | L2: 60.5 | M2: 102 | N2: 70 | P2: NA | Q2: NA | R2: NA | S2: NA | T2: =IFERROR(IF(OR(StudentTable6[[#This Row],[Vision Exam]] = "F", StudentTable6[[#This Row],[Hearing Exam]] = "F", StudentTable6[[#This Row],[Scoliosis Exam]] = "F",StudentTable6[[#This Row],[Dental Exam]]="F", StudentTable6[[#This Row],[Color Vision Exam]]="F",NOT(OR(StudentTable6[[#This Row],[Weight Category]] = "Normal",StudentTable6[[#This Row],[Weight Category]] = "")), NOT(OR(StudentTable6[[#This Row],[BP Category]] ="Normal",StudentTable6[[#This Row],[BP Category]] =""))),"Yes", "No"),"") -> No | X2: 123 West End | Y2: Nashville | Z2: TN | AA2: 37115 | AB2: =IFERROR(#REF!/(StudentTable6[[#This Row],[Height (inches)]]^2)*703,"") ->  | AC2: =IF(StudentTable6[[#This Row],[BMI]]="","",IFERROR(IF(StudentTable6[[#This Row],[BMI]]<StudentTable6[[#This Row],[BMI 5th Perc]],"Underweight",IF(AND(StudentTable6[[#This Row],[BMI]]>=StudentTable6[[#This Row],[BMI 5th Perc]],StudentTable6[[#This Row],[BMI]]<StudentTable6[[#This Row],[BMI 85th Perc]]),"Normal",IF(AND(StudentTable6[[#This Row],[BMI]]>=StudentTable6[[#This Row],[BMI 85th Perc]],StudentTable6[[#This Row],[BMI]]<StudentTable6[[#This Row],[BMI 95th Perc]]),"Overweight",IF(StudentTable6[[#This Row],[BMI]]>=StudentTable6[[#This Row],[BMI 95th Perc]],"Obese","Out-of-Bounds")))),"")) ->  | AD2: =IF(StudentTable6[[#This Row],[Systolic BP (Final)]]<>"",IF(StudentTable6[[#This Row],[Systolic BP (Final)]]<StudentTable6[[#This Row],[SBP 90th Perc]],0,IF(AND(StudentTable6[[#This Row],[Systolic BP (Final)]]<StudentTable6[[#This Row],[SBP 95th Perc]], StudentTable6[[#This Row],[Systolic BP (Final)]]>=StudentTable6[[#This Row],[SBP 90th Perc]]),1,IF(AND(StudentTable6[[#This Row],[Systolic BP (Final)]]<StudentTable6[[#This Row],[SBP 99th Perc]],StudentTable6[[#This Row],[Systolic BP (Final)]]>=StudentTable6[[#This Row],[SBP 95th Perc]]),2,IF(StudentTable6[[#This Row],[Systolic BP (Final)]]>=StudentTable6[[#This Row],[SBP 99th Perc]],3,"")))),"") -> 0 | AE2: =IF(StudentTable6[[#This Row],[Diastolic BP (Final)]]<>"",IF(StudentTable6[[#This Row],[Diastolic BP (Final)]]<StudentTable6[[#This Row],[DBP 90th Perc]],0,IF(AND(StudentTable6[[#This Row],[Diastolic BP (Final)]]<StudentTable6[[#This Row],[DBP 95th Perc]], StudentTable6[[#This Row],[Diastolic BP (Final)]]>=StudentTable6[[#This Row],[DBP 90th Perc]]),1,IF(AND(StudentTable6[[#This Row],[Diastolic BP (Final)]]<StudentTable6[[#This Row],[DBP 99th Perc]],StudentTable6[[#This Row],[Diastolic BP (Final)]]>=StudentTable6[[#This Row],[DBP 95th Perc]]),2,IF(StudentTable6[[#This Row],[Diastolic BP (Final)]]>=StudentTable6[[#This Row],[DBP 99th Perc]],3,"")))),"") -> 0 | AF2: =IF(StudentTable6[[#This Row],[Height (inches)]]="","",IF(StudentTable6[[#This Row],[Systolic Level]]<=StudentTable6[[#This Row],[Diastolic Level]],StudentTable6[Diastolic Level],StudentTable6[Systolic Level])) -> 0 | AG2: =IF(OR(StudentTable6[[#This Row],[Systolic BP (Final)]]>=StudentTable6[[#This Row],[Quick SBP Check]],StudentTable6[[#This Row],[Diastolic BP (Final)]]>=StudentTable6[[#This Row],[Quick DBP Check]]),StudentTable6[[#This Row],[BP Result]],"Normal") -> Normal | AH2: =IFERROR(IF(StudentTable6[[#This Row],[Gender]]="M",VLOOKUP(ROUNDDOWN(YEARFRAC(StudentTable6[[#This Row],[Exam Date]],StudentTable6[[#This Row],[Date of Birth]],1)*12,1),BMITable!$A$3:$K$221,3,TRUE),IF(StudentTable6[[#This Row],[Gender]]="F",VLOOKUP(ROUNDDOWN(YEARFRAC(StudentTable6[[#This Row],[Exam Date]],StudentTable6[[#This Row],[Date of Birth]],1)*12,1),BMITable!$A$224:$K$442,3,TRUE),"")),"") -> 16.27 | AI2: =IFERROR(IF(StudentTable6[[#This Row],[Gender]]="M",VLOOKUP(ROUNDDOWN(YEARFRAC(StudentTable6[[#This Row],[Exam Date]],StudentTable6[[#This Row],[Date of Birth]],1)*12,1),BMITable!$A$3:$K$221,8,TRUE),IF(StudentTable6[[#This Row],[Gender]]="F",VLOOKUP(ROUNDDOWN(YEARFRAC(StudentTable6[[#This Row],[Exam Date]],StudentTable6[[#This Row],[Date of Birth]],1)*12,1),BMITable!$A$224:$K$442,8,TRUE),"")),"") -> 23.99 | AJ2: =IFERROR(IF(StudentTable6[[#This Row],[Gender]]="M",VLOOKUP(ROUNDDOWN(YEARFRAC(StudentTable6[[#This Row],[Exam Date]],StudentTable6[[#This Row],[Date of Birth]],1)*12,1),BMITable!$A$3:$K$221,10,TRUE),IF(StudentTable6[[#This Row],[Gender]]="F",VLOOKUP(ROUNDDOWN(YEARFRAC(StudentTable6[[#This Row],[Exam Date]],StudentTable6[[#This Row],[Date of Birth]],1)*12,1),BMITable!$A$224:$K$442,10,TRUE),"")),"") -> 28.05 | AK2: =IFERROR(IF(StudentTable6[[#This Row],[Height (inches)]]<>"",HLOOKUP(StudentTable6[[#This Row],[Height (inches)]],INDIRECT(StudentTable6[[#This Row],[SBP Addy]]),2,TRUE),""),"") ->  | AL2: =IFERROR(IF(StudentTable6[[#This Row],[Height (inches)]]<>"",HLOOKUP(StudentTable6[[#This Row],[Height (inches)]],INDIRECT(StudentTable6[[#This Row],[SBP Addy]]),3,TRUE),""),"") ->  | AM2: =IFERROR(IF(StudentTable6[[#This Row],[Height (inches)]]<>"",HLOOKUP(StudentTable6[[#This Row],[Height (inches)]],INDIRECT(StudentTable6[[#This Row],[SBP Addy]]),4,TRUE),""),"") ->  | AN2: =IFERROR(IF(StudentTable6[[#This Row],[Height (inches)]]<>"",HLOOKUP(StudentTable6[[#This Row],[Height (inches)]],INDIRECT(StudentTable6[[#This Row],[SBP Addy]]),5,TRUE),""),"") ->  | AO2: =IFERROR(IF(StudentTable6[[#This Row],[Height (inches)]]<>"",HLOOKUP(StudentTable6[[#This Row],[Height (inches)]],INDIRECT(StudentTable6[[#This Row],[DBP Addy]]),2,TRUE),""),"") ->  | AP2: =IFERROR(IF(StudentTable6[[#This Row],[Height (inches)]]<>"",HLOOKUP(StudentTable6[[#This Row],[Height (inches)]],INDIRECT(StudentTable6[[#This Row],[DBP Addy]]),3,TRUE),""),"") ->  | AQ2: =IFERROR(IF(StudentTable6[[#This Row],[Height (inches)]]<>"",HLOOKUP(StudentTable6[[#This Row],[Height (inches)]],INDIRECT(StudentTable6[[#This Row],[DBP Addy]]),4,TRUE),""),"") ->  | AR2: =IFERROR(IF(StudentTable6[[#This Row],[Height (inches)]]<>"",HLOOKUP(StudentTable6[[#This Row],[Height (inches)]],INDIRECT(StudentTable6[[#This Row],[DBP Addy]]),5,TRUE),""),"") ->  | AS2: =IF(StudentTable6[[#This Row],[Gender]]="M",MATCH(ROUNDDOWN(YEARFRAC(StudentTable6[[#This Row],[Exam Date]],StudentTable6[[#This Row],[Date of Birth]]),0),'BP Lookup Table'!$A$3:$A$82,1)+ROW('BP Lookup Table'!$A$3:$A$82)-1,IF(StudentTable6[[#This Row],[Gender]]="F",MATCH(ROUNDDOWN(YEARFRAC(StudentTable6[[#This Row],[Exam Date]],StudentTable6[[#This Row],[Date of Birth]]),0),'BP Lookup Table'!$A$86:$A$161,1)+ROW('BP Lookup Table'!$A$86:$A$161)-1,"")) -> 151 | AT2: =IF(StudentTable6[[#This Row],[BP Row]]<>"","BPTable!B"&StudentTable6[[#This Row],[BP Row]]&":"&"I"&StudentTable6[[#This Row],[BP Row]]+4,"") -> BPTable!B151:I155 | AU2: =IF(StudentTable6[[#This Row],[BP Row]]<>"","BPTable!J"&StudentTable6[[#This Row],[BP Row]]&":"&"Q"&StudentTable6[[#This Row],[BP Row]]+4,"") -> BPTable!J151:Q155 | AV2: =ROUND(_xlfn.DAYS(StudentTable6[[#This Row],[Exam Date]],StudentTable6[[#This Row],[Date of Birth]])/365,0) -> 15 | AW2: =IF(StudentTable6[[#This Row],[Gender]]="M",INDEX('Simplified BP table'!$B$4:$B$20,MATCH(StudentTable6[[#This Row],[Student Age]],'Simplified BP table'!$A$4:$A$20,0)),INDEX('Simplified BP table'!$D$4:$D$20,MATCH(StudentTable6[[#This Row],[Student Age]],'Simplified BP table'!$A$4:$A$20,0))) -> 120 | AX2: =IF(StudentTable6[[#This Row],[Gender]]="M",INDEX('Simplified BP table'!$C$4:$C$20,MATCH(StudentTable6[[#This Row],[Student Age]],'Simplified BP table'!$A$4:$A$20,0)),INDEX('Simplified BP table'!$E$4:$E$20,MATCH(StudentTable6[[#This Row],[Student Age]],'Simplified BP table'!$A$4:$A$20,0))) -> 80 | AY2: =IF(StudentTable6[[#This Row],[Height (inches)]]="","Height Needed",IFERROR(IF(StudentTable6[[#This Row],[BP Final]]=0,"Normal",IF(StudentTable6[[#This Row],[BP Final]]=1,"Pre-HT",IF(StudentTable6[[#This Row],[BP Final]]=2,"Stage 1 HT",IF(StudentTable6[[#This Row],[BP Final]]=3,"Stage 2 HT","Out of Range")))),"")) -> Normal | AZ2: =IF(OR(StudentTable6[[#This Row],[Vision Exam]] = "F", StudentTable6[[#This Row],[Hearing Exam]] = "F", StudentTable6[[#This Row],[Scoliosis Exam]] = "F",StudentTable6[[#This Row],[Dental Exam]]="F", StudentTable6[[#This Row],[Color Vision Exam]]="F",StudentTable6[[#This Row],[Weight Category]] <> "Normal", StudentTable6[[#This Row],[BP Category]] <>"Normal"),"Yes", "No") -> Yes
A3: 530 | B3: 48 | C3: =VLOOKUP(StudentTable6[[#This Row],[LEA Code]],School_Listing[[System Code]:[System Name]],2,FALSE) -> LOUDON COUNTY | D3: =VLOOKUP(StudentTable6[[#This Row],[LEA Code]]&StudentTable6[[#This Row],[School Code]],School_Listing[[Column1]:[School Name]],2,FALSE) -> North Middle School | E3: 2020-05-13 | F3: K/k | J3: 2012-10-17 | K3: M | L3: 53.4 | M3: 130 | N3: 71 | O3: NA | P3: NA | Q3: NA | R3: NA | S3: NA | T3: =IFERROR(IF(OR(StudentTable6[[#This Row],[Vision Exam]] = "F", StudentTable6[[#This Row],[Hearing Exam]] = "F", StudentTable6[[#This Row],[Scoliosis Exam]] = "F",StudentTable6[[#This Row],[Dental Exam]]="F", StudentTable6[[#This Row],[Color Vision Exam]]="F",NOT(OR(StudentTable6[[#This Row],[Weight Category]] = "Normal",StudentTable6[[#This Row],[Weight Category]] = "")), NOT(OR(StudentTable6[[#This Row],[BP Category]] ="Normal",StudentTable6[[#This Row],[BP Category]] =""))),"Yes", "No"),"") -> No | Z3: TN | AB3: =IFERROR(#REF!/(StudentTable6[[#This Row],[Height (inches)]]^2)*703,"") ->  | AC3: =IF(StudentTable6[[#This Row],[BMI]]="","",IFERROR(IF(StudentTable6[[#This Row],[BMI]]<StudentTable6[[#This Row],[BMI 5th Perc]],"Underweight",IF(AND(StudentTable6[[#This Row],[BMI]]>=StudentTable6[[#This Row],[BMI 5th Perc]],StudentTable6[[#This Row],[BMI]]<StudentTable6[[#This Row],[BMI 85th Perc]]),"Normal",IF(AND(StudentTable6[[#This Row],[BMI]]>=StudentTable6[[#This Row],[BMI 85th Perc]],StudentTable6[[#This Row],[BMI]]<StudentTable6[[#This Row],[BMI 95th Perc]]),"Overweight",IF(StudentTable6[[#This Row],[BMI]]>=StudentTable6[[#This Row],[BMI 95th Perc]],"Obese","Out-of-Bounds")))),"")) ->  | AD3: =IF(StudentTable6[[#This Row],[Systolic BP (Final)]]<>"",IF(StudentTable6[[#This Row],[Systolic BP (Final)]]<StudentTable6[[#This Row],[SBP 90th Perc]],0,IF(AND(StudentTable6[[#This Row],[Systolic BP (Final)]]<StudentTable6[[#This Row],[SBP 95th Perc]], StudentTable6[[#This Row],[Systolic BP (Final)]]>=StudentTable6[[#This Row],[SBP 90th Perc]]),1,IF(AND(StudentTable6[[#This Row],[Systolic BP (Final)]]<StudentTable6[[#This Row],[SBP 99th Perc]],StudentTable6[[#This Row],[Systolic BP (Final)]]>=StudentTable6[[#This Row],[SBP 95th Perc]]),2,IF(StudentTable6[[#This Row],[Systolic BP (Final)]]>=StudentTable6[[#This Row],[SBP 99th Perc]],3,"")))),"") -> 0 | AE3: =IF(StudentTable6[[#This Row],[Diastolic BP (Final)]]<>"",IF(StudentTable6[[#This Row],[Diastolic BP (Final)]]<StudentTable6[[#This Row],[DBP 90th Perc]],0,IF(AND(StudentTable6[[#This Row],[Diastolic BP (Final)]]<StudentTable6[[#This Row],[DBP 95th Perc]], StudentTable6[[#This Row],[Diastolic BP (Final)]]>=StudentTable6[[#This Row],[DBP 90th Perc]]),1,IF(AND(StudentTable6[[#This Row],[Diastolic BP (Final)]]<StudentTable6[[#This Row],[DBP 99th Perc]],StudentTable6[[#This Row],[Diastolic BP (Final)]]>=StudentTable6[[#This Row],[DBP 95th Perc]]),2,IF(StudentTable6[[#This Row],[Diastolic BP (Final)]]>=StudentTable6[[#This Row],[DBP 99th Perc]],3,"")))),"") -> 0 | AF3: =IF(StudentTable6[[#This Row],[Height (inches)]]="","",IF(StudentTable6[[#This Row],[Systolic Level]]<=StudentTable6[[#This Row],[Diastolic Level]],StudentTable6[Diastolic Level],StudentTable6[Systolic Level])) -> 0 | AG3: =IF(OR(StudentTable6[[#This Row],[Systolic BP (Final)]]>=StudentTable6[[#This Row],[Quick SBP Check]],StudentTable6[[#This Row],[Diastolic BP (Final)]]>=StudentTable6[[#This Row],[Quick DBP Check]]),StudentTable6[[#This Row],[BP Result]],"Normal") -> Normal | AH3: =IFERROR(IF(StudentTable6[[#This Row],[Gender]]="M",VLOOKUP(ROUNDDOWN(YEARFRAC(StudentTable6[[#This Row],[Exam Date]],StudentTable6[[#This Row],[Date of Birth]],1)*12,1),BMITable!$A$3:$K$221,3,TRUE),IF(StudentTable6[[#This Row],[Gender]]="F",VLOOKUP(ROUNDDOWN(YEARFRAC(StudentTable6[[#This Row],[Exam Date]],StudentTable6[[#This Row],[Date of Birth]],1)*12,1),BMITable!$A$224:$K$442,3,TRUE),"")),"") -> 13.75 | AI3: =IFERROR(IF(StudentTable6[[#This Row],[Gender]]="M",VLOOKUP(ROUNDDOWN(YEARFRAC(StudentTable6[[#This Row],[Exam Date]],StudentTable6[[#This Row],[Date of Birth]],1)*12,1),BMITable!$A$3:$K$221,8,TRUE),IF(StudentTable6[[#This Row],[Gender]]="F",VLOOKUP(ROUNDDOWN(YEARFRAC(StudentTable6[[#This Row],[Exam Date]],StudentTable6[[#This Row],[Date of Birth]],1)*12,1),BMITable!$A$224:$K$442,8,TRUE),"")),"") -> 17.66 | AJ3: =IFERROR(IF(StudentTable6[[#This Row],[Gender]]="M",VLOOKUP(ROUNDDOWN(YEARFRAC(StudentTable6[[#This Row],[Exam Date]],StudentTable6[[#This Row],[Date of Birth]],1)*12,1),BMITable!$A$3:$K$221,10,TRUE),IF(StudentTable6[[#This Row],[Gender]]="F",VLOOKUP(ROUNDDOWN(YEARFRAC(StudentTable6[[#This Row],[Exam Date]],StudentTable6[[#This Row],[Date of Birth]],1)*12,1),BMITable!$A$224:$K$442,10,TRUE),"")),"") -> 19.59 | AK3: =IFERROR(IF(StudentTable6[[#This Row],[Height (inches)]]<>"",HLOOKUP(StudentTable6[[#This Row],[Height (inches)]],INDIRECT(StudentTable6[[#This Row],[SBP Addy]]),2,TRUE),""),"") ->  | AL3: =IFERROR(IF(StudentTable6[[#This Row],[Height (inches)]]<>"",HLOOKUP(StudentTable6[[#This Row],[Height (inches)]],INDIRECT(StudentTable6[[#This Row],[SBP Addy]]),3,TRUE),""),"") ->  | AM3: =IFERROR(IF(StudentTable6[[#This Row],[Height (inches)]]<>"",HLOOKUP(StudentTable6[[#This Row],[Height (inches)]],INDIRECT(StudentTable6[[#This Row],[SBP Addy]]),4,TRUE),""),"") ->  | AN3: =IFERROR(IF(StudentTable6[[#This Row],[Height (inches)]]<>"",HLOOKUP(StudentTable6[[#This Row],[Height (inches)]],INDIRECT(StudentTable6[[#This Row],[SBP Addy]]),5,TRUE),""),"") ->  | AO3: =IFERROR(IF(StudentTable6[[#This Row],[Height (inches)]]<>"",HLOOKUP(StudentTable6[[#This Row],[Height (inches)]],INDIRECT(StudentTable6[[#This Row],[DBP Addy]]),2,TRUE),""),"") ->  | AP3: =IFERROR(IF(StudentTable6[[#This Row],[Height (inches)]]<>"",HLOOKUP(StudentTable6[[#This Row],[Height (inches)]],INDIRECT(StudentTable6[[#This Row],[DBP Addy]]),3,TRUE),""),"") ->  | AQ3: =IFERROR(IF(StudentTable6[[#This Row],[Height (inches)]]<>"",HLOOKUP(StudentTable6[[#This Row],[Height (inches)]],INDIRECT(StudentTable6[[#This Row],[DBP Addy]]),4,TRUE),""),"") ->  | AR3: =IFERROR(IF(StudentTable6[[#This Row],[Height (inches)]]<>"",HLOOKUP(StudentTable6[[#This Row],[Height (inches)]],INDIRECT(StudentTable6[[#This Row],[DBP Addy]]),5,TRUE),""),"") ->  | AS3: =IF(StudentTable6[[#This Row],[Gender]]="M",MATCH(ROUNDDOWN(YEARFRAC(StudentTable6[[#This Row],[Exam Date]],StudentTable6[[#This Row],[Date of Birth]]),0),'BP Lookup Table'!$A$3:$A$82,1)+ROW('BP Lookup Table'!$A$3:$A$82)-1,IF(StudentTable6[[#This Row],[Gender]]="F",MATCH(ROUNDDOWN(YEARFRAC(StudentTable6[[#This Row],[Exam Date]],StudentTable6[[#This Row],[Date of Birth]]),0),'BP Lookup Table'!$A$86:$A$161,1)+ROW('BP Lookup Table'!$A$86:$A$161)-1,"")) -> 28 | AT3: =IF(StudentTable6[[#This Row],[BP Row]]<>"","BPTable!B"&StudentTable6[[#This Row],[BP Row]]&":"&"I"&StudentTable6[[#This Row],[BP Row]]+4,"") -> BPTable!B28:I32 | AU3: =IF(StudentTable6[[#This Row],[BP Row]]<>"","BPTable!J"&StudentTable6[[#This Row],[BP Row]]&":"&"Q"&StudentTable6[[#This Row],[BP Row]]+4,"") -> BPTable!J28:Q32 | AV3: =ROUND(_xlfn.DAYS(StudentTable6[[#This Row],[Exam Date]],StudentTable6[[#This Row],[Date of Birth]])/365,0) -> 8 | AW3: =IF(StudentTable6[[#This Row],[Gender]]="M",INDEX('Simplified BP table'!$B$4:$B$20,MATCH(StudentTable6[[#This Row],[Student Age]],'Simplified BP table'!$A$4:$A$20,0)),INDEX('Simplified BP table'!$D$4:$D$20,MATCH(StudentTable6[[#This Row],[Student Age]],'Simplified BP table'!$A$4:$A$20,0))) -> 107 | AX3: =IF(StudentTable6[[#This Row],[Gender]]="M",INDEX('Simplified BP table'!$C$4:$C$20,MATCH(StudentTable6[[#This Row],[Student Age]],'Simplified BP table'!$A$4:$A$20,0)),INDEX('Simplified BP table'!$E$4:$E$20,MATCH(StudentTable6[[#This Row],[Student Age]],'Simplified BP table'!$A$4:$A$20,0))) -> 69 | AY3: =IF(StudentTable6[[#This Row],[Height (inches)]]="","Height Needed",IFERROR(IF(StudentTable6[[#This Row],[BP Final]]=0,"Normal",IF(StudentTable6[[#This Row],[BP Final]]=1,"Pre-HT",IF(StudentTable6[[#This Row],[BP Final]]=2,"Stage 1 HT",IF(StudentTable6[[#This Row],[BP Final]]=3,"Stage 2 HT","Out of Range")))),"")) -> Normal | AZ3: =IF(OR(StudentTable6[[#This Row],[Vision Exam]] = "F", StudentTable6[[#This Row],[Hearing Exam]] = "F", StudentTable6[[#This Row],[Scoliosis Exam]] = "F",StudentTable6[[#This Row],[Dental Exam]]="F", StudentTable6[[#This Row],[Color Vision Exam]]="F",StudentTable6[[#This Row],[Weight Category]] <> "Normal", StudentTable6[[#This Row],[BP Category]] <>"Normal"),"Yes", "No") -> Yes

Sheet Simplified BP table
A1: BP, mmHg
B2: Boys | D2: Girls
A3: Age | B3: Systolic | C3: Diastolic | D3: Systolic | E3: Diastolic
A4: 1 | B4: 98 | C4: 52 | D4: 98 | E4: 54
A5: 2 | B5: 100 | C5: 55 | D5: 101 | E5: 58
A6: 3 | B6: 101 | C6: 58 | D6: 102 | E6: 60
A7: 4 | B7: 102 | C7: 60 | D7: 103 | E7: 62
A8: 5 | B8: 103 | C8: 63 | D8: 104 | E8: 64
A9: 6 | B9: 105 | C9: 66 | D9: 105 | E9: 67
A10: 7 | B10: 106 | C10: 68 | D10: 106 | E10: 68
A11: 8 | B11: 107 | C11: 69 | D11: 107 | E11: 69
A12: 9 | B12: 107 | C12: 70 | D12: 108 | E12: 71
A13: 10 | B13: 108 | C13: 72 | D13: 109 | E13: 72
A14: 11 | B14: 110 | C14: 74 | D14: 111 | E14: 74
A15: 12 | B15: 113 | C15: 75 | D15: 114 | E15: 75
A16: 13 | B16: 120 | C16: 80 | D16: 120 | E16: 80
A17: 14 | B17: 120 | C17: 80 | D17: 120 | E17: 80
A18: 15 | B18: 120 | C18: 80 | D18: 120 | E18: 80
A19: 16 | B19: 120 | C19: 80 | D19: 120 | E19: 80
A20: 17 | B20: 120 | C20: 80 | D20: 120 | E20: 80
A21: 18 | B21: 120 | C21: 80 | D21: 120 | E21: 80

Sheet BP Lookup Table
A1: Age yrs | B1: Systolic BP (mmHg) | J1: Diastolic BP (mmHg) | S1: BP Percentile
B2: 5th | C2: 10th | D2: 25th | E2: 50th | G2: 75th | H2: 90th | I2: 95th | J2: 5th | K2: 10th | M2: 25th | N2: 50th | O2: 75th | P2: 90th | Q2: 95th
A3: 2 | B3: 33.9 | C3: 34.4 | D3: 35.3 | E3: 36.3 | G3: 37.3 | H3: 38.2 | I3: 38.8 | J3: 33.9 | K3: 34.4 | M3: 35.3 | N3: 36.3 | O3: 37.3 | P3: 38.2 | Q3: 38.8 | S3: Height - inches
B4: 87 | C4: 87 | D4: 88 | E4: 89 | G4: 89 | H4: 90 | I4: 91 | J4: 43 | K4: 43 | M4: 44 | N4: 44 | O4: 45 | P4: 46 | Q4: 46 | S4: NT
B5: 100 | C5: 100 | D5: 101 | E5: 102 | G5: 103 | H5: 103 | I5: 104 | J5: 55 | K5: 55 | M5: 56 | N5: 56 | O5: 57 | P5: 58 | Q5: 58 | S5: Elevated
B6: 104 | C6: 105 | D6: 105 | E6: 106 | G6: 107 | H6: 107 | I6: 108 | J6: 57 | K6: 58 | M6: 58 | N6: 59 | O6: 60 | P6: 61 | Q6: 61 | S6: Stage 1 HT
B7: 116 | C7: 117 | D7: 117 | E7: 118 | G7: 119 | H7: 119 | I7: 120 | J7: 69 | K7: 70 | M7: 70 | N7: 71 | O7: 72 | P7: 73 | Q7: 73 | S7: Stage 2 HT
A8: 3 | B8: 36.4 | C8: 37.0 | D8: 37.9 | E8: 39.0 | G8: 40.1 | H8: 41.1 | I8: 41.7 | J8: 36.4 | K8: 37.0 | M8: 37.9 | N8: 39.0 | O8: 40.1 | P8: 41.1 | Q8: 41.7 | S8: Height - inches
B9: 88 | C9: 89 | D9: 89 | E9: 90 | G9: 91 | H9: 92 | I9: 92 | J9: 45 | K9: 46 | M9: 46 | N9: 47 | O9: 48 | P9: 49 | Q9: 49 | S9: NT
B10: 101 | C10: 102 | D10: 102 | E10: 103 | G10: 104 | H10: 105 | I10: 105 | J10: 58 | K10: 58 | M10: 59 | N10: 59 | O10: 60 | P10: 61 | Q10: 61 | S10: Elevated
B11: 106 | C11: 106 | D11: 107 | E11: 107 | G11: 108 | H11: 109 | I11: 109 | J11: 60 | K11: 61 | M11: 61 | N11: 62 | O11: 63 | P11: 64 | Q11: 64 | S11: Stage 1 HT
B12: 118 | C12: 118 | D12: 119 | E12: 119 | G12: 120 | H12: 121 | I12: 121 | J12: 72 | K12: 73 | M12: 73 | N12: 74 | O12: 75 | P12: 76 | Q12: 76 | S12: Stage 2 HT
A13: 4 | B13: 38.8 | C13: 39.4 | D13: 40.5 | E13: 41.7 | G13: 42.9 | H13: 43.9 | I13: 44.5 | J13: 38.8 | K13: 39.4 | M13: 40.5 | N13: 41.7 | O13: 42.9 | P13: 43.9 | Q13: 44.5 | S13: Height - inches
B14: 90 | C14: 90 | D14: 91 | E14: 92 | G14: 93 | H14: 94 | I14: 94 | J14: 48 | K14: 49 | M14: 49 | N14: 50 | O14: 51 | P14: 52 | Q14: 52 | S14: NT
B15: 102 | C15: 103 | D15: 104 | E15: 105 | G15: 105 | H15: 106 | I15: 107 | J15: 60 | K15: 61 | M15: 62 | N15: 62 | O15: 63 | P15: 64 | Q15: 64 | S15: Elevated
B16: 107 | C16: 107 | D16: 108 | E16: 108 | G16: 109 | H16: 110 | I16: 110 | J16: 63 | K16: 64 | M16: 65 | N16: 66 | O16: 67 | P16: 67 | Q16: 68 | S16: Stage 1 HT
B17: 119 | C17: 119 | D17: 120 | E17: 120 | G17: 121 | H17: 122 | I17: 122 | J17: 75 | K17: 76 | M17: 77 | N17: 78 | O17: 79 | P17: 79 | Q17: 80 | S17: Stage 2 HT
A18: 5 | B18: 41.1 | C18: 41.8 | D18: 43.0 | E18: 44.3 | G18: 45.5 | H18: 46.7 | I18: 47.4 | J18: 41.1 | K18: 41.8 | M18: 43.0 | N18: 44.3 | O18: 45.5 | P18: 46.7 | Q18: 47.4 | S18: Height - inches
B19: 91 | C19: 92 | D19: 93 | E19: 94 | G19: 95 | H19: 96 | I19: 96 | J19: 51 | K19: 51 | M19: 52 | N19: 53 | O19: 54 | P19: 55 | Q19: 55 | S19: NT
B20: 103 | C20: 104 | D20: 105 | E20: 106 | G20: 107 | H20: 108 | I20: 108 | J20: 63 | K20: 64 | M20: 65 | N20: 65 | O20: 66 | P20: 67 | Q20: 67 | S20: Elevated
B21: 107 | C21: 108 | D21: 109 | E21: 109 | G21: 110 | H21: 111 | I21: 112 | J21: 66 | K21: 67 | M21: 68 | N21: 69 | O21: 70 | P21: 70 | Q21: 71 | S21: Stage 1 HT
B22: 119 | C22: 120 | D22: 121 | E22: 121 | G22: 122 | H22: 123 | I22: 124 | J22: 78 | K22: 79 | M22: 80 | N22: 81 | O22: 82 | P22: 82 | Q22: 83 | S22: Stage 2 HT
A23: 6 | B23: 43.4 | C23: 44.2 | D23: 45.4 | E23: 46.8 | G23: 48.2 | H23: 49.4 | I23: 50.2 | J23: 43.4 | K23: 44.2 | M23: 45.4 | N23: 46.8 | O23: 48.2 | P23: 49.4 | Q23: 50.2 | S23: Height - inches
B24: 93 | C24: 93 | D24: 94 | E24: 95 | G24: 96 | H24: 97 | I24: 98 | J24: 54 | K24: 54 | M24: 55 | N24: 56 | O24: 57 | P24: 57 | Q24: 58 | S24: NT
B25: 105 | C25: 105 | D25: 106 | E25: 107 | G25: 109 | H25: 110 | I25: 110 | J25: 66 | K25: 66 | M25: 67 | N25: 68 | O25: 68 | P25: 69 | Q25: 69 | S25: Elevated
B26: 108 | C26: 109 | D26: 110 | E26: 111 | G26: 112 | H26: 113 | I26: 114 | J26: 69 | K26: 70 | M26: 70 | N26: 71 | O26: 72 | P26: 72 | Q26: 73 | S26: Stage 1 HT
B27: 120 | C27: 121 | D27: 122 | E27: 123 | G27: 124 | H27: 125 | I27: 126 | J27: 81 | K27: 82 | M27: 82 | N27: 83 | O27: 84 | P27: 84 | Q27: 85 | S27: Stage 2 HT
A28: 7 | B28: 4.5.7 | C28: 46.5 | D28: 47.8 | E28: 49.3 | G28: 50.8 | H28: 52.1 | I28: 52.9 | J28: 45.7 | K28: 46.5 | M28: 47.8 | N28: 49.3 | O28: 50.8 | P28: 52.1 | Q28: 52.9 | S28: Height - inches
B29: 94 | C29: 94 | D29: 95 | E29: 97 | G29: 98 | H29: 98 | I29: 99 | J29: 56 | K29: 56 | M29: 57 | N29: 58 | O29: 58 | P29: 59 | Q29: 59 | S29: NT
B30: 106 | C30: 107 | D30: 108 | E30: 109 | G30: 110 | H30: 111 | I30: 111 | J30: 68 | K30: 68 | M30: 69 | N30: 70 | O30: 70 | P30: 71 | Q30: 71 | S30: Elevated
B31: 110 | C31: 110 | D31: 111 | E31: 112 | G31: 114 | H31: 115 | I31: 116 | J31: 71 | K31: 71 | M31: 72 | N31: 73 | O31: 73 | P31: 74 | Q31: 74 | S31: Stage 1 HT
B32: 122 | C32: 122 | D32: 123 | E32: 124 | G32: 126 | H32: 127 | I32: 128 | J32: 83 | K32: 83 | M32: 84 | N32: 85 | O32: 85 | P32: 86 | Q32: 86 | S32: Stage 2 HT
A33: 8 | B33: 47.8 | C33: 48.6 | D33: 50.0 | E33: 51.6 | G33: 53.2 | H33: 54.6 | I33: 55.5 | J33: 47.8 | K33: 48.6 | M33: 50.0 | N33: 51.6 | O33: 53.2 | P33: 54.6 | Q33: 55.5 | S33: Height - inches
B34: 95 | C34: 96 | D34: 97 | E34: 98 | G34: 99 | H34: 99 | I34: 100 | J34: 57 | K34: 57 | M34: 58 | N34: 59 | O34: 59 | P34: 60 | Q34: 60 | S34: NT
B35: 107 | C35: 108 | D35: 109 | E35: 110 | G35: 111 | H35: 112 | I35: 112 | J35: 69 | K35: 70 | M35: 70 | N35: 71 | O35: 72 | P35: 72 | Q35: 73 | S35: Elevated
B36: 111 | C36: 112 | D36: 112 | E36: 114 | G36: 115 | H36: 116 | I36: 117 | J36: 72 | K36: 73 | M36: 73 | N36: 74 | O36: 75 | P36: 75 | Q36: 75 | S36: Stage 1 HT
B37: 123 | C37: 124 | D37: 124 | E37: 126 | G37: 127 | H37: 128 | I37: 129 | J37: 84 | K37: 85 | M37: 85 | N37: 86 | O37: 87 | P37: 87 | Q37: 87 | S37: Stage 2 HT
A38: 9 | B38: 49.6 | C38: 50.5 | D38: 52.0 | E38: 53.7 | G38: 55.4 | H38: 56.9 | I38: 57.9 | J38: 49.6 | K38: 50.5 | M38: 52.0 | N38: 53.7 | O38: 55.4 | P38: 56.9 | Q38: 57.9 | S38: Height - inches
B39: 96 | C39: 97 | D39: 98 | E39: 99 | G39: 100 | H39: 101 | I39: 101 | J39: 57 | K39: 58 | M39: 59 | N39: 60 | O39: 61 | P39: 62 | Q39: 62 | S39: NT
B40: 107 | C40: 108 | D40: 109 | E40: 110 | G40: 112 | H40: 113 | I40: 114 | J40: 70 | K40: 71 | M40: 72 | N40: 73 | O40: 74 | P40: 74 | Q40: 74 | S40: Elevated
B41: 112 | C41: 112 | D41: m | E41: 115 | G41: 116 | H41: 118 | I41: 119 | J41: 74 | K41: 74 | M41: 75 | N41: 76 | O41: 76 | P41: 77 | Q41: 77 | S41: Stage 1 HT
B42: 124 | C42: 124 | D42: 125 | E42: 127 | G42: 128 | H42: 130 | I42: 131 | J42: 86 | K42: 86 | M42: 87 | N42: 8 | O42: 88 | P42: 89 | Q42: 89 | S42: Stage 2 HT
A43: 10 | B43: 51.3 | C43: 52.2 | D43: 53.8 | E43: 55.6 | G43: 57.4 | H43: 59.1 | I43: 60.1 | J43: 51.3 | K43: 52.2 | M43: 53.8 | N43: 55.6 | O43: 57.4 | P43: 59.1 | Q43: 60.1 | S43: Height - inches
B44: 97 | C44: 98 | D44: 99 | E44: 100 | G44: 101 | H44: 102 | I44: 103 | J44: 59 | K44: 60 | M44: 61 | N44: 62 | O44: 63 | P44: 63 | Q44: 64 | S44: NT
B45: 108 | C45: 109 | D45: 111 | E45: 112 | G45: 113 | H45: 115 | I45: 116 | J45: 72 | K45: 73 | M45: 74 | N45: 74 | O45: 75 | P45: 75 | Q45: 76 | S45: Elevated
B46: 112 | C46: 113 | D46: 114 | E46: 116 | G46: 118 | H46: 120 | I46: 121 | J46: 76 | K46: 76 | M46: 77 | N46: 77 | O46: 78 | P46: 78 | Q46: 78 | S46: Stage 1 HT
B47: 124 | C47: 125 | D47: 126 | E47: 128 | G47: 130 | H47: 132 | I47: 133 | J47: 88 | K47: 88 | M47: 89 | N47: 89 | O47: 90 | P47: 90 | Q47: 90 | S47: Stage 2 HT
A48: 11 | B48: 53.0 | C48: 54.0 | D48: 55.7 | E48: 57.6 | G48: 59.6 | H48: 61.3 | I48: 62.4 | J48: 53.0 | K48: 54.0 | M48: 55.7 | N48: 57.6 | O48: 59.6 | P48: 61.3 | Q48: 62.4 | S48: Height - inches
B49: 99 | C49: 99 | D49: 101 | E49: 102 | G49: 103 | H49: 104 | I49: 106 | J49: 61 | K49: 61 | M49: 62 | N49: 63 | O49: 63 | P49: 63 | Q49: 63 | S49: NT
B50: 110 | C50: 111 | D50: 112 | E50: 114 | G50: 116 | H50: 117 | I50: 118 | J50: 74 | K50: 74 | M50: 75 | N50: 75 | O50: 75 | P50: 76 | Q50: 76 | S50: Elevated
B51: 114 | C51: 114 | D51: 116 | E51: 118 | G51: 120 | H51: 123 | I51: 124 | J51: 77 | K51: 78 | M51: 78 | N51: 78 | O51: 78 | P51: 78 | Q51: 78 | S51: Stage 1 HT
B52: 126 | C52: 126 | D52: 128 | E52: 130 | G52: 132 | H52: 135 | I52: 136 | J52: 89 | K52: 90 | M52: 90 | N52: 90 | O52: 90 | P52: 90 | Q52: 90 | S52: Stage 2 HT
A53: 12 | B53: 55.2 | C53: 56.3 | D53: 58.1 | E53: 60.1 | G53: 62.2 | H53: 64.0 | I53: 65.2 | J53: 55.2 | K53: 56.3 | M53: 58.1 | N53: 60.1 | O53: 62.2 | P53: 64.0 | Q53: 65.2 | S53: Height - inches
B54: 101 | C54: 101 | D54: 102 | E54: 104 | G54: 106 | H54: 108 | I54: 109 | J54: 61 | K54: 62 | M54: 62 | N54: 62 | O54: 62 | P54: 63 | Q54: 63 | S54: NT
B55: 113 | C55: 114 | D55: 115 | E55: 117 | G55: 119 | H55: 121 | I55: 122 | J55: 75 | K55: 75 | M55: 75 | N55: 75 | O55: 75 | P55: 76 | Q55: 76 | S55: Elevated
B56: 116 | C56: 117 | D56: 118 | E56: 121 | G56: 124 | H56: 126 | I56: 128 | J56: 78 | K56: 78 | M56: 78 | N56: 78 | O56: 78 | P56: 79 | Q56: 79 | S56: Stage 1 HT
B57: 128 | C57: 129 | D57: 130 | E57: 133 | G57: 136 | H57: 138 | I57: 140 | J57: 90 | K57: 90 | M57: 90 | N57: 90 | O57: 90 | P57: 91 | Q57: 91 | S57: Stage 2 HT
A58: 13 | B58: 57.9 | C58: 59.1 | D58: 61.0 | E58: 63.1 | G58: 65.2 | H58: 67.1 | I58: 68.3 | J58: 57.9 | K58: 59.1 | M58: 61.0 | N58: 63.1 | O58: 65.2 | P58: 67.1 | Q58: 68.3 | S58: Height - inches
B59: 103 | C59: 104 | D59: 105 | E59: 108 | G59: 110 | H59: 111 | I59: 112 | J59: 61 | K59: 60 | M59: 61 | N59: 62 | O59: 63 | P59: 64 | Q59: 65 | S59: NT
B60: 115 | C60: 116 | D60: 118 | E60: 121 | G60: 124 | H60: 126 | I60: 126 | J60: 74 | K60: 74 | M60: 74 | N60: 75 | O60: 76 | P60: 77 | Q60: 77 | S60: Elevated
B61: 119 | C61: 120 | D61: 122 | E61: 125 | G61: 128 | H61: 130 | I61: 131 | J61: 78 | K61: 78 | M61: 78 | N61: 78 | O61: 80 | P61: 81 | Q61: 81 | S61: Stage 1 HT
B62: 131 | C62: 132 | D62: 134 | E62: 137 | G62: 140 | H62: 142 | I62: 143 | J62: 90 | K62: 90 | M62: 90 | N62: 90 | O62: 92 | P62: 93 | Q62: 93 | S62: Stage 2 HT
A63: 14 | B63: 60.6 | C63: 61.8 | D63: 63.8 | E63: 65.9 | G63: 68.0 | H63: 69.8 | I63: 70.9 | J63: 60.6 | K63: 61.8 | M63: 63.8 | N63: 65.9 | O63: 68.0 | P63: 69.8 | Q63: 70.9 | S63: Height - inches
B64: 105 | C64: 106 | D64: 109 | E64: 111 | G64: 112 | H64: 113 | I64: 113 | J64: 60 | K64: 60 | M64: 62 | N64: 64 | O64: 65 | P64: 66 | Q64: 67 | S64: NT
B65: 119 | C65: 120 | D65: 123 | E65: 126 | G65: 127 | H65: 128 | I65: 129 | J65: 74 | K65: 74 | M65: 75 | N65: 77 | O65: 78 | P65: 79 | Q65: 80 | S65: Elevated
B66: 123 | C66: 125 | D66: 127 | E66: 130 | G66: 132 | H66: 133 | I66: 134 | J66: 77 | K66: 78 | M66: 79 | N66: 81 | O66: 82 | P66: 83 | Q66: 84 | S66: Stage 1 HT
B67: 135 | C67: 137 | D67: 139 | E67: 142 | G67: 144 | H67: 145 | I67: 146 | J67: 89 | K67: 90 | M67: 91 | N67: 93 | O67: 94 | P67: 95 | Q67: 96 | S67: Stage 2 HT
A68: 15 | B68: 62.6 | C68: 63.8 | D68: 65.7 | E68: 67.8 | G68: 69.8 | H68: 71.5 | I68: 72.5 | J68: 62.6 | K68: 63.8 | M68: 65.7 | N68: 67.8 | O68: 69.8 | P68: 71.5 | Q68: 72.5 | S68: Height - inches
B69: 108 | C69: 110 | D69: 112 | E69: 113 | G69: 114 | H69: 114 | I69: 114 | J69: 61 | K69: 62 | M69: 64 | N69: 65 | O69: 66 | P69: 67 | Q69: 68 | S69: NT
B70: 123 | C70: 124 | D70: 126 | E70: 128 | G70: 129 | H70: 130 | I70: 130 | J70: 75 | K70: 76 | M70: 78 | N70: 79 | O70: 80 | P70: 81 | Q70: 81 | S70: Elevated
B71: 127 | C71: 129 | D71: 131 | E71: 132 | G71: 134 | H71: 135 | I71: 135 | J71: 78 | K71: 79 | M71: 81 | N71: 83 | O71: 84 | P71: 85 | Q71: 85 | S71: Stage 1 HT
B72: 139 | C72: 141 | D72: 143 | E72: 144 | G72: 146 | H72: 147 | I72: 147 | J72: 90 | K72: 91 | M72: 93 | N72: 95 | O72: 96 | P72: 97 | Q72: 97 | S72: Stage 2 HT
A73: 16 | B73: 63.8 | C73: 64.9 | D73: 66.8 | E73: 68.8 | G73: 70.7 | H73: 72.4 | I73: 73.4 | J73: 63.8 | K73: 64.9 | M73: 66.8 | N73: 68.8 | O73: 70.7 | P73: 72.4 | Q73: 73.4 | S73: Height - inches
B74: 111 | C74: 112 | D74: 114 | E74: 115 | G74: 115 | H74: 116 | I74: 116 | J74: 63 | K74: 64 | M74: 66 | N74: 67 | O74: 68 | P74: 69 | Q74: 69 | S74: NT
B75: 126 | C75: 127 | D75: 128 | E75: 129 | G75: 131 | H75: 131 | I75: 132 | J75: 77 | K75: 78 | M75: 79 | N75: 80 | O75: 81 | P75: 82 | Q75: 82 | S75: Elevated
B76: 130 | C76: 131 | D76: 133 | E76: 134 | G76: 135 | H76: 136 | I76: 137 | J76: 80 | K76: 81 | M76: 83 | N76: 84 | O76: 85 | P76: 86 | Q76: 86 | S76: Stage 1 HT
B77: 142 | C77: 143 | D77: 15 | E77: 146 | G77: 147 | H77: 148 | I77: 149 | J77: 92 | K77: 93 | M77: 95 | N77: 96 | O77: 97 | P77: 98 | Q77: 98 | S77: Stage 2 HT
A78: 17 | B78: 64.5 | C78: 65.5 | D78: 67.3 | E78: 69.2 | G78: 71.1 | H78: 72.8 | I78: 73.8 | J78: 64.5 | K78: 65.5 | M78: 67.3 | N78: 69.2 | O78: 71.1 | P78: 72.8 | Q78: 73.8 | S78: Height - inches
B79: 114 | C79: 115 | D79: 116 | E79: 117 | G79: 117 | H79: 118 | I79: 118 | J79: 65 | K79: 66 | M79: 67 | N79: 68 | O79: 69 | P79: 70 | Q79: 70 | S79: NT
B80: 128 | C80: 129 | D80: 130 | E80: 131 | G80: 132 | H80: 133 | I80: 134 | J80: 78 | K80: 79 | M80: 80 | N80: 81 | O80: 82 | P80: 82 | Q80: 83 | S80: Elevated
B81: 132 | C81: 133 | D81: 134 | E81: 135 | G81: 137 | H81: 138 | I81: 138 | J81: 8l | K81: 82 | M81: 84 | N81: 85 | O81: 86 | P81: 86 | Q81: 87 | S81: Stage 1 HT
B82: 144 | C82: 145 | D82: 146 | E82: 147 | G82: 149 | H82: 150 | I82: 150 | J82: 93 | K82: 94 | M82: 96 | N82: 97 | O82: 98 | P82: 98 | Q82: 99 | S82: Stage 2 HT
A83: The 90th percentile is 1.28 SD, the 95th percentile is 1.645 SD, and the 99th percentile is 2.326 SD over the mean. NT = normotensive (50th percentile PreHT = pre-hypertensive (90th percentile) HT = hypertensive (95th percentile for stage 1 and 99th% + 5 mmHg for stage 2)
A84: Age yrs | B84: Systolic BP (mmHg) | J84: Diastolic BP (mmHg) | S84: BP Percentile
B85: 5th | C85: 10th | D85: 25th | F85: 50th | G85: 75th | H85: 90th | I85: 95th | J85: 5th | L85: 10th | M85: 25th | N85: 50th | O85: 75th | P85: 90th | R85: 95th
A86: 2 | B86: 33.4 | C86: 34.0 | D86: 34.9 | F86: 35.9 | G86: 36.9 | H86: 37.8 | I86: 38.4 | J86: 33.4 | L86: 34.0 | M86: 34.9 | N86: 35.9 | O86: 36.9 | P86: 37.8 | R86: 38.4 | S86: Height - inches
B87: 87 | C87: 87 | D87: 88 | F87: 89 | G87: 90 | H87: 91 | I87: 91 | J87: 45 | L87: 46 | M87: 47 | N87: 48 | O87: 49 | P87: 50 | R87: 51 | S87: NT
B88: 101 | C88: 101 | D88: 102 | F88: 103 | G88: 104 | H88: 105 | I88: 106 | J88: 58 | L88: 58 | M88: 59 | N88: 60 | O88: 61 | P88: 62 | R88: 62 | S88: Elevated
B89: 104 | C89: 105 | D89: 106 | F89: 106 | G89: 107 | H89: 108 | I89: 109 | J89: 62 | L89: 63 | M89: 63 | N89: 64 | O89: 65 | P89: 66 | R89: 66 | S89: Stage 1 HT
B90: 116 | C90: 117 | D90: 118 | F90: 118 | G90: 119 | H90: 120 | I90: 121 | J90: 74 | L90: 75 | M90: 75 | N90: 76 | O90: 77 | P90: 78 | R90: 78 | S90: Stage 2 HT
A91: 3 | B91: 35.8 | C91: 36.4 | D91: 37.3 | F91: 38.4 | G91: 39.6 | H91: 40.6 | I91: 41.2 | J91: 35.8 | L91: 36.4 | M91: 37.3 | N91: 38.4 | O91: 39.6 | P91: 40.6 | R91: 41.2 | S91: Height - inches
B92: 88 | C92: 89 | D92: 89 | F92: 90 | G92: 91 | H92: 92 | I92: 93 | J92: 48 | L92: 48 | M92: 49 | N92: 50 | O92: 51 | P92: 53 | R92: 53 | S92: NT
B93: 102 | C93: 103 | D93: 104 | F93: 104 | G93: 105 | H93: 106 | I93: 107 | J93: 60 | L93: 61 | M93: 61 | N93: 62 | O93: 63 | P93: 64 | R93: 65 | S93: Elevated
B94: 106 | C94: 106 | D94: 107 | F94: 108 | G94: 109 | H94: 110 | I94: 110 | J94: 64 | L94: 65 | M94: 65 | N94: 66 | O94: 67 | P94: 68 | R94: 69 | S94: Stage 1 HT
B95: 118 | C95: 118 | D95: 119 | F95: 120 | G95: 121 | H95: 122 | I95: 122 | J95: 76 | L95: 77 | M95: 77 | N95: 78 | O95: 79 | P95: 80 | R95: 81 | S95: Stage 2 HT
A96: 4 | B96: 38.3 | C96: 38.9 | D96: 39.9 | F96: 41.1 | G96: 42.4 | H96: 43.5 | I96: 44.2 | J96: 38.3 | L96: 38.9 | M96: 39.9 | N96: 41.1 | O96: 42.4 | P96: 43.5 | R96: 44.2 | S96: Height - inches
B97: 89 | C97: 90 | D97: 91 | F97: 92 | G97: 93 | H97: 94 | I97: 94 | J97: 50 | L97: 51 | M97: 51 | N97: 53 | O97: 54 | P97: 55 | R97: 55 | S97: NT
B98: 103 | C98: 104 | D98: 105 | F98: 106 | G98: 107 | H98: 108 | I98: 108 | J98: 62 | L98: 63 | M98: 64 | N98: 65 | O98: 66 | P98: 67 | R98: 67 | S98: Elevated
B99: 107 | C99: 108 | D99: 109 | F99: 109 | G99: 110 | H99: 111 | I99: 112 | J99: 66 | L99: 67 | M99: 68 | N99: 69 | O99: 70 | P99: 70 | R99: 71 | S99: Stage 1 HT
B100: 119 | C100: 120 | D100: 121 | F100: 121 | G100: 122 | H100: 123 | I100: 124 | J100: 78 | L100: 79 | M100: 80 | N100: 81 | O100: 82 | P100: 82 | R100: 83 | S100: Stage 2 HT
A101: 5 | B101: 40.8 | C101: 41.5 | D101: 42.6 | F101: 43.9 | G101: 45.2 | H101: 46.5 | I101: 47.3 | J101: 40.8 | L101: 41.5 | M101: 42.6 | N101: 43.9 | O101: 45.2 | P101: 46.5 | R101: 47.3 | S101: Height - inches
B102: 90 | C102: 91 | D102: 92 | F102: 93 | G102: 94 | H102: 95 | I102: 96 | J102: 52 | L102: 52 | M102: 53 | N102: 55 | O102: 56 | P102: 57 | R102: 57 | S102: NT
B103: 104 | C103: 105 | D103: 106 | F103: 107 | G103: 108 | H103: 109 | I103: 110 | J103: 64 | L103: 65 | M103: 66 | N103: 67 | O103: 68 | P103: 69 | R103: 70 | S103: Elevated
B104: 108 | C104: 109 | D104: 109 | F104: 110 | G104: 111 | H104: 112 | I104: 113 | J104: 68 | L104: 69 | M104: 70 | N104: 71 | O104: 72 | P104: 73 | R104: 73 | S104: Stage 1 HT
B105: 120 | C105: 121 | D105: 121 | F105: 122 | G105: 123 | H105: 124 | I105: 125 | J105: 80 | L105: 81 | M105: 82 | N105: 83 | O105: 84 | P105: 85 | R105: 85 | S105: Stage 2 HT
A106: 6 | B106: 43.3 | C106: 44.0 | D106: 45.2 | F106: 46.6 | G106: 48.1 | H106: 49.4 | I106: 50.3 | J106: 43.3 | L106: 44.0 | M106: 45.2 | N106: 46.6 | O106: 48.1 | P106: 49.4 | R106: 50.3 | S106: Height - inches
B107: 92 | C107: 92 | D107: 93 | F107: 94 | G107: 96 | H107: 97 | I107: 97 | J107: 54 | L107: 54 | M107: 55 | N107: 56 | O107: 57 | P107: 58 | R107: 59 | S107: NT
B108: 105 | C108: 106 | D108: 107 | F108: 108 | G108: 109 | H108: 110 | I108: 111 | J108: 67 | L108: 67 | M108: 68 | N108: 69 | O108: 70 | P108: 71 | R108: 71 | S108: Elevated
B109: 109 | C109: 109 | D109: 110 | F109: 111 | G109: 112 | H109: 113 | I109: 114 | J109: 70 | L109: 71 | M109: 72 | N109: 72 | O109: 73 | P109: 74 | R109: 74 | S109: Stage 1 HT
B110: 121 | C110: 121 | D110: 122 | F110: 123 | G110: 124 | H110: 125 | I110: 126 | J110: 82 | L110: 83 | M110: 84 | N110: 84 | O110: 85 | P110: 86 | R110: 86 | S110: Stage 2 HT
A111: 7 | B111: 45.6 | C111: 46.4 | D111: 47.7 | F111: 49.2 | G111: 50.7 | H111: 52.1 | I111: 53.0 | J111: 45.6 | L111: 46.4 | M111: 47.7 | N111: 49.2 | O111: 50.7 | P111: 52.1 | R111: 53.0 | S111: Height - inches
B112: 92 | C112: 93 | D112: 94 | F112: 95 | G112: 97 | H112: 98 | I112: 99 | J112: 55 | L112: 55 | M112: 56 | N112: 57 | O112: 58 | P112: 59 | R112: 60 | S112: NT
B113: 106 | C113: 106 | D113: 107 | F113: 109 | G113: 110 | H113: 111 | I113: 112 | J113: 68 | L113: 68 | M113: 69 | N113: 70 | O113: 71 | P113: 72 | R113: 72 | S113: Elevated
B114: 109 | C114: 110 | D114: 111 | F114: 112 | G114: 113 | H114: 114 | I114: 115 | J114: 72 | L114: 72 | M114: 73 | N114: 73 | O114: 74 | P114: 74 | R114: 75 | S114: Stage 1 HT
B115: 121 | C115: 122 | D115: 123 | F115: 124 | G115: 125 | H115: 126 | I115: 127 | J115: 84 | L115: 84 | M115: 85 | N115: 85 | O115: 86 | P115: 86 | R115: 87 | S115: Stage 2 HT
A116: 8 | B116: 47.6 | C116: 48.4 | D116: 49.8 | F116: 51.4 | G116: 53.0 | H116: 54.5 | I116: 55.5 | J116: 47.6 | L116: 48.4 | M116: 49.8 | N116: 51.4 | O116: 53.0 | P116: 54.5 | R116: 55.5 | S116: Height - inches
B117: 93 | C117: 94 | D117: 95 | F117: 97 | G117: 98 | H117: 99 | I117: 100 | J117: 56 | L117: 56 | M117: 57 | N117: 59 | O117: 60 | P117: 61 | R117: 61 | S117: NT
B118: 107 | C118: 107 | D118: 108 | F118: 110 | G118: 111 | H118: 112 | I118: 113 | J118: 69 | L118: 70 | M118: 71 | N118: 72 | O118: 72 | P118: 73 | R118: 73 | S118: Elevated
B119: 110 | C119: 111 | D119: 112 | F119: 113 | G119: 115 | H119: 116 | I119: 117 | J119: 72 | L119: 73 | M119: 74 | N119: 74 | O119: 75 | P119: 75 | R119: 75 | S119: Stage 1 HT
B120: 122 | C120: 123 | D120: 124 | F120: 125 | G120: 127 | H120: 128 | I120: 129 | J120: 84 | L120: 85 | M120: 86 | N120: 86 | O120: 87 | P120: 87 | R120: 87 | S120: Stage 2 HT
A121: 9 | B121: 49.3 | C121: 50.2 | D121: 51.7 | F121: 53.4 | G121: 55.1 | H121: 56.7 | I121: 57.7 | J121: 49.3 | L121: 50.2 | M121: 51.7 | N121: 53.4 | O121: 55.1 | P121: 56.7 | R121: 57.7 | S121: Height - inches
B122: 95 | C122: 95 | D122: 97 | F122: 98 | G122: 99 | H122: 100 | I122: 101 | J122: 57 | L122: 58 | M122: 59 | N122: 60 | O122: 60 | P122: 61 | R122: 61 | S122: NT
B123: 108 | C123: 108 | D123: 109 | F123: 111 | G123: 112 | H123: 113 | I123: 114 | J123: 71 | L123: 71 | M123: 72 | N123: 73 | O123: 73 | P123: 73 | R123: 73 | S123: Elevated
B124: 112 | C124: 112 | D124: 113 | F124: 114 | G124: 116 | H124: 117 | I124: 118 | J124: 74 | L124: 74 | M124: 75 | N124: 75 | O124: 75 | P124: 75 | R124: 75 | S124: Stage 1 HT
B125: 124 | C125: 124 | D125: 125 | F125: 126 | G125: 128 | H125: 129 | I125: 130 | J125: 86 | L125: 86 | M125: 87 | N125: 87 | O125: 87 | P125: 87 | R125: 87 | S125: Stage 2 HT
A126: 10 | B126: 51.1 | C126: 52.0 | D126: 53.7 | F126: 55.5 | G126: 57.4 | H126: 59.1 | I126: 60.2 | J126: 51.1 | L126: 52.0 | M126: 53.7 | N126: 55.5 | O126: 57.4 | P126: 59.1 | R126: 60.2 | S126: Height - inches
B127: 96 | C127: 97 | D127: 98 | F127: 99 | G127: 101 | H127: 102 | I127: 103 | J127: 58 | L127: 59 | M127: 59 | N127: 60 | O127: 61 | P127: 61 | R127: 62 | S127: NT
B128: 109 | C128: 110 | D128: 111 | F128: 112 | G128: 113 | H128: 115 | I128: 116 | J128: 72 | L128: 73 | M128: 73 | N128: 73 | O128: 73 | P128: 73 | R128: 73 | S128: Elevated
B129: 113 | C129: 114 | D129: 114 | F129: 116 | G129: 117 | H129: 119 | I129: 120 | J129: 75 | L129: 75 | M129: 76 | N129: 76 | O129: 76 | P129: 76 | R129: 76 | S129: Stage 1 HT
B130: 125 | C130: 126 | D130: 126 | F130: 128 | G130: 129 | H130: 131 | I130: 132 | J130: 87 | L130: 87 | M130: 88 | N130: 88 | O130: 88 | P130: 88 | R130: 88 | S130: Stage 2 HT
A131: 11 | B131: 53.4 | C131: 54.5 | D131: 56.2 | F131: 58.2 | G131: 60.2 | H131: 61.9 | I131: 63.0 | J131: 53.4 | L131: 54.5 | M131: 56.2 | N131: 58.2 | O131: 60.2 | P131: 61.9 | R131: 63.0 | S131: Height - inches
B132: 98 | C132: 9 | D132: 101 | F132: 102 | G132: 104 | H132: 105 | I132: 106 | J132: 60 | L132: 60 | M132: 60 | N132: 61 | O132: 62 | P132: 63 | R132: 64 | S132: NT
B133: 111 | C133: 112 | D133: 113 | F133: 114 | G133: 116 | H133: 118 | I133: 120 | J133: 74 | L133: 74 | M133: 74 | N133: 74 | O133: 74 | P133: 75 | R133: 75 | S133: Elevated
B134: 115 | C134: 116 | D134: 117 | F134: 118 | G134: 120 | H134: 123 | I134: 124 | J134: 76 | L134: 77 | M134: 77 | N134: 77 | O134: 77 | P134: 77 | R134: 77 | S134: Stage 1 HT
B135: 127 | C135: 128 | D135: 129 | F135: 130 | G135: 132 | H135: 135 | I135: 136 | J135: 88 | L135: 89 | M135: 89 | N135: 89 | O135: 89 | P135: 89 | R135: 89 | S135: Stage 2 HT
A136: 12 | B136: 56.2 | C136: 57.3 | D136: 59.0 | F136: 60.9 | G136: 62.8 | H136: 64.5 | I136: 65.5 | J136: 56.2 | L136: 57.3 | M136: 59.0 | N136: 60.9 | O136: 62.8 | P136: 64.5 | R136: 65.5 | S136: Height - inches
B137: 102 | C137: 102 | D137: 104 | F137: 105 | G137: 107 | H137: 108 | I137: 108 | J137: 61 | L137: 61 | M137: 61 | N137: 62 | O137: 64 | P137: 65 | R137: 65 | S137: NT
B138: 114 | C138: 115 | D138: 116 | F138: 118 | G138: 120 | H138: 122 | I138: 122 | J138: 75 | L138: 75 | M138: 75 | N138: 75 | O138: 76 | P138: 76 | R138: 76 | S138: Elevated
B139: 118 | C139: 119 | D139: 120 | F139: 122 | G139: 124 | H139: 125 | I139: 126 | J139: 78 | L139: 78 | M139: 78 | N139: 78 | O139: 79 | P139: 79 | R139: 79 | S139: Stage 1 HT
B140: 130 | C140: 131 | D140: 132 | F140: 134 | G140: 136 | H140: 137 | I140: 138 | J140: 90 | L140: 90 | M140: 90 | N140: 90 | O140: 91 | P140: 91 | R140: 91 | S140: Stage 2 HT
A141: 13 | B141: 58.3 | C141: 59.3 | D141: 60.9 | F141: 62.7 | G141: 64.5 | H141: 66.1 | I141: 67.0 | J141: 58.3 | L141: 59.3 | M141: 60.9 | N141: 62.7 | O141: 64.5 | P141: 66.1 | R141: 67.0 | S141: Height - inches
B142: 104 | C142: 105 | D142: 106 | F142: 107 | G142: 108 | H142: 108 | I142: 109 | J142: 62 | L142: 62 | M142: 63 | N142: 64 | O142: 65 | P142: 65 | R142: 66 | S142: NT
B143: 116 | C143: 117 | D143: 119 | F143: 121 | G143: 122 | H143: 123 | I143: 123 | J143: 75 | L143: 75 | M143: 75 | N143: 76 | O143: 76 | P143: 76 | R143: 76 | S143: Elevated
B144: 121 | C144: 122 | D144: 123 | F144: 124 | G144: 126 | H144: 126 | I144: 127 | J144: 79 | L144: 79 | M144: 79 | N144: 79 | O144: 80 | P144: 80 | R144: 81 | S144: Stage 1 HT
B145: 133 | C145: 134 | D145: 135 | F145: 136 | G145: 138 | H145: 138 | I145: 139 | J145: 91 | L145: 91 | M145: 91 | N145: 91 | O145: 92 | P145: 92 | R145: 93 | S145: Stage 2 HT
A146: 14 | B146: 59.3 | C146: 60.2 | D146: 61.8 | F146: 63.5 | G146: 65.2 | H146: 66.8 | I146: 67.7 | J146: 59.3 | L146: 60.2 | M146: 61.8 | N146: 63.5 | O146: 65.2 | P146: 66.8 | R146: 67.7 | S146: Height - inches
B147: 105 | C147: 106 | D147: 107 | F147: 108 | G147: 109 | H147: 109 | I147: 109 | J147: 63 | L147: 63 | M147: 64 | N147: 65 | O147: 66 | P147: 66 | R147: 66 | S147: NT
B148: 118 | C148: 118 | D148: 120 | F148: 122 | G148: 123 | H148: 123 | I148: 123 | J148: 76 | L148: 76 | M148: 76 | N148: 76 | O148: 77 | P148: 77 | R148: 77 | S148: Elevated
B149: 123 | C149: 123 | D149: 124 | F149: 125 | G149: 126 | H149: 127 | I149: 127 | J149: 80 | L149: 80 | M149: 80 | N149: 80 | O149: 81 | P149: 81 | R149: 82 | S149: Stage 1 HT
B150: 135 | C150: 135 | D150: 136 | F150: 137 | G150: 138 | H150: 139 | I150: 139 | J150: 92 | L150: 92 | M150: 92 | N150: 92 | O150: 93 | P150: 93 | R150: 94 | S150: Stage 2 HT
A151: 15 | B151: 59.7 | C151: 60.6 | D151: 62.2 | F151: 63.9 | G151: 65.6 | H151: 67.2 | I151: 68.1 | J151: 59.7 | L151: 60.6 | M151: 62.2 | N151: 63.9 | O151: 65.6 | P151: 67.2 | R151: 68.1 | S151: Height - inches
B152: 105 | C152: 106 | D152: 107 | F152: 108 | G152: 109 | H152: 109 | I152: 109 | J152: 64 | L152: 64 | M152: 64 | N152: 65 | O152: 66 | P152: 67 | R152: 67 | S152: NT
B153: 118 | C153: 119 | D153: 121 | F153: 122 | G153: 123 | H153: 123 | I153: 124 | J153: 76 | L153: 76 | M153: 76 | N153: 77 | O153: 77 | P153: 78 | R153: 78 | S153: Elevated
B154: 124 | C154: 124 | D154: 125 | F154: 126 | G154: 127 | H154: 127 | I154: 128 | J154: 80 | L154: 80 | M154: 80 | N154: 81 | O154: 82 | P154: 82 | R154: 82 | S154: Stage 1 HT
B155: 136 | C155: 136 | D155: 137 | F155: 138 | G155: 139 | H155: 139 | I155: 140 | J155: 92 | L155: 92 | M155: 92 | N155: 93 | O155: 94 | P155: 94 | R155: 94 | S155: Stage 2 HT
A156: 16 | B156: 59.9 | C156: 60.8 | D156: 62.4 | F156: 64.1 | G156: 65.8 | H156: 67.3 | I156: 68.3 | J156: 59.9 | L156: 60.8 | M156: 62.4 | N156: 64.1 | O156: 65.8 | P156: 67.3 | R156: 68.3 | S156: Height - inches
B157: 106 | C157: 107 | D157: 108 | F157: 109 | G157: 109 | H157: 110 | I157: 110 | J157: 64 | L157: 64 | M157: 65 | N157: 66 | O157: 66 | P157: 67 | R157: 67 | S157: NT
B158: 119 | C158: 120 | D158: 122 | F158: 123 | G158: 124 | H158: 124 | I158: 124 | J158: 76 | L158: 76 | M158: 76 | N158: 77 | O158: 78 | P158: 78 | R158: 78 | S158: Elevated
B159: 124 | C159: 125 | D159: 125 | F159: 127 | G159: 127 | H159: 128 | I159: 128 | J159: 80 | L159: 80 | M159: 80 | N159: 81 | O159: 82 | P159: 82 | R159: 82 | S159: Stage 1 HT
B160: 136 | C160: 137 | D160: 137 | F160: 139 | G160: 139 | H160: 140 | I160: 140 | J160: 92 | L160: 92 | M160: 92 | N160: 93 | O160: 94 | P160: 94 | R160: 94 | S160: Stage 2 HT
A161: 17 | B161: 60.0 | C161: 60.9 | D161: 62.5 | F161: 64.2 | G161: 65.9 | H161: 67.4 | I161: 68.4 | J161: 60.0 | L161: 60.9 | M161: 62.5 | N161: 64.2 | O161: 65.9 | P161: 67.4 | R161: 68.4 | S161: Height - inches
B162: 107 | C162: 108 | D162: 109 | F162: 110 | G162: 110 | H162: 110 | I162: 111 | J162: 64 | L162: 64 | M162: 65 | N162: 66 | O162: 66 | P162: 66 | R162: 67 | S162: NT
B163: 120 | C163: 121 | D163: 123 | F163: 124 | G163: 124 | H163: 125 | I163: 125 | J163: 76 | L163: 76 | M163: 77 | N163: 77 | O163: 78 | P163: 78 | R163: 78 | S163: Elevated
B164: 125 | C164: 125 | D164: 126 | F164: 127 | G164: 128 | H164: 128 | I164: 128 | J164: 80 | L164: 80 | M164: 80 | N164: 81 | O164: 82 | P164: 82 | R164: 82 | S164: Stage 1 HT
B165: 137 | C165: 137 | D165: 138 | F165: 139 | G165: 140 | H165: 140 | I165: 140 | J165: 92 | L165: 92 | M165: 92 | N165: 93 | O165: 94 | P165: 94 | R165: 94 | S165: Stage 2 HT
A166: The 90th percentile is 1.28 SD, the 95th percentile is 1.645 SD, and the 99th percentile is 2.326 SD over the mean. NT = normotensive (50th percentile PreHT = pre-hypertensive (90th percentile) HT = hypertensive (95th percentile for stage 1 and 99th% + 5 mmHg for stage 2)

Sheet Lookup_Tables
A1: System Code | B1: System Name | C1: SysCode | D1: School Code | E1: Column1 | F1: School Name | G1: SchCode | I1: Gender | K1: Exam Status | M1: Grade Level | O1: System Code | P1: System Name
A2: 10 | B2: ANDERSON COUNTY | C2: =School_Listing[[#This Row],[System Code]] -> 10 | D2: 3 | E2: =School_Listing[[#This Row],[System Code]]&School_Listing[[#This Row],[School Code]] -> 103 | F2: Anderson County Career Technical Center | G2: =School_Listing[[#This Row],[School Code]] -> 3 | I2: M | K2: P | M2: K/k | O2: 985 | P2: ACHIEVEMENT SCHOOL DISTRICT
A3: 10 | B3: ANDERSON COUNTY | C3: =School_Listing[[#This Row],[System Code]] -> 10 | D3: 7001 | E3: =School_Listing[[#This Row],[System Code]]&School_Listing[[#This Row],[School Code]] -> 107001 | F3: Anderson County Head Start / Preschool | G3: =School_Listing[[#This Row],[School Code]] -> 7001 | I3: F | K3: F | M3: 2 | O3: 171 | P3: ALAMO
A4: 10 | B4: ANDERSON COUNTY | C4: =School_Listing[[#This Row],[System Code]] -> 10 | D4: 2 | E4: =School_Listing[[#This Row],[System Code]]&School_Listing[[#This Row],[School Code]] -> 102 | F4: Anderson County High School | G4: =School_Listing[[#This Row],[School Code]] -> 2 | K4: NA | M4: 4 | O4: 51 | P4: ALCOA
A5: 10 | B5: ANDERSON COUNTY | C5: =School_Listing[[#This Row],[System Code]] -> 10 | D5: 4 | E5: =School_Listing[[#This Row],[System Code]]&School_Listing[[#This Row],[School Code]] -> 104 | F5: Anderson County Innovation Academy | G5: =School_Listing[[#This Row],[School Code]] -> 4 | M5: 6 | O5: 961 | P5: ALVIN C YORK INSTITUTE
A6: 10 | B6: ANDERSON COUNTY | C6: =School_Listing[[#This Row],[System Code]] -> 10 | D6: 5 | E6: =School_Listing[[#This Row],[System Code]]&School_Listing[[#This Row],[School Code]] -> 105 | F6: Andersonville Elementary | G6: =School_Listing[[#This Row],[School Code]] -> 5 | M6: 8 | O6: 10 | P6: ANDERSON COUNTY
A7: 10 | B7: ANDERSON COUNTY | C7: =School_Listing[[#This Row],[System Code]] -> 10 | D7: 10 | E7: =School_Listing[[#This Row],[System Code]]&School_Listing[[#This Row],[School Code]] -> 1010 | F7: Briceville Elementary | G7: =School_Listing[[#This Row],[School Code]] -> 10 | M7: H | O7: 793 | P7: ARLINGTON
A8: 10 | B8: ANDERSON COUNTY | C8: =School_Listing[[#This Row],[System Code]] -> 10 | D8: 15 | E8: =School_Listing[[#This Row],[System Code]]&School_Listing[[#This Row],[School Code]] -> 1015 | F8: Claxton Elementary | G8: =School_Listing[[#This Row],[School Code]] -> 15 | O8: 541 | P8: ATHENS
A9: 10 | B9: ANDERSON COUNTY | C9: =School_Listing[[#This Row],[System Code]] -> 10 | D9: 105 | E9: =School_Listing[[#This Row],[System Code]]&School_Listing[[#This Row],[School Code]] -> 10105 | F9: Clinch River Community School | G9: =School_Listing[[#This Row],[School Code]] -> 105 | O9: 794 | P9: BARTLETT
A10: 10 | B10: ANDERSON COUNTY | C10: =School_Listing[[#This Row],[System Code]] -> 10 | D10: 25 | E10: =School_Listing[[#This Row],[System Code]]&School_Listing[[#This Row],[School Code]] -> 1025 | F10: Clinton High School | G10: =School_Listing[[#This Row],[School Code]] -> 25 | O10: 20 | P10: BEDFORD COUNTY
A11: 10 | B11: ANDERSON COUNTY | C11: =School_Listing[[#This Row],[System Code]] -> 10 | D11: 20 | E11: =School_Listing[[#This Row],[System Code]]&School_Listing[[#This Row],[School Code]] -> 1020 | F11: Clinton Middle School | G11: =School_Listing[[#This Row],[School Code]] -> 20 | O11: 172 | P11: BELLS
A12: 10 | B12: ANDERSON COUNTY | C12: =School_Listing[[#This Row],[System Code]] -> 10 | D12: 35 | E12: =School_Listing[[#This Row],[System Code]]&School_Listing[[#This Row],[School Code]] -> 1035 | F12: Dutch Valley Elementary | G12: =School_Listing[[#This Row],[School Code]] -> 35 | O12: 30 | P12: BENTON COUNTY
A13: 10 | B13: ANDERSON COUNTY | C13: =School_Listing[[#This Row],[System Code]] -> 10 | D13: 40 | E13: =School_Listing[[#This Row],[System Code]]&School_Listing[[#This Row],[School Code]] -> 1040 | F13: Fairview Elementary | G13: =School_Listing[[#This Row],[School Code]] -> 40 | O13: 40 | P13: BLEDSOE COUNTY
A14: 10 | B14: ANDERSON COUNTY | C14: =School_Listing[[#This Row],[System Code]] -> 10 | D14: 46 | E14: =School_Listing[[#This Row],[System Code]]&School_Listing[[#This Row],[School Code]] -> 1046 | F14: Grand Oaks Elementary | G14: =School_Listing[[#This Row],[School Code]] -> 46 | O14: 50 | P14: BLOUNT COUNTY
A15: 10 | B15: ANDERSON COUNTY | C15: =School_Listing[[#This Row],[System Code]] -> 10 | D15: 50 | E15: =School_Listing[[#This Row],[System Code]]&School_Listing[[#This Row],[School Code]] -> 1050 | F15: Lake City Elementary | G15: =School_Listing[[#This Row],[School Code]] -> 50 | O15: 274 | P15: BRADFORD
A16: 10 | B16: ANDERSON COUNTY | C16: =School_Listing[[#This Row],[System Code]] -> 10 | D16: 55 | E16: =School_Listing[[#This Row],[System Code]]&School_Listing[[#This Row],[School Code]] -> 1055 | F16: Lake City Middle School | G16: =School_Listing[[#This Row],[School Code]] -> 55 | O16: 60 | P16: BRADLEY COUNTY
A17: 10 | B17: ANDERSON COUNTY | C17: =School_Listing[[#This Row],[System Code]] -> 10 | D17: 70 | E17: =School_Listing[[#This Row],[System Code]]&School_Listing[[#This Row],[School Code]] -> 1070 | F17: Norris Elementary | G17: =School_Listing[[#This Row],[School Code]] -> 70 | O17: 821 | P17: BRISTOL
A18: 10 | B18: ANDERSON COUNTY | C18: =School_Listing[[#This Row],[System Code]] -> 10 | D18: 75 | E18: =School_Listing[[#This Row],[System Code]]&School_Listing[[#This Row],[School Code]] -> 1075 | F18: Norris Middle School | G18: =School_Listing[[#This Row],[School Code]] -> 75 | O18: 70 | P18: CAMPBELL COUNTY
A19: 10 | B19: ANDERSON COUNTY | C19: =School_Listing[[#This Row],[System Code]] -> 10 | D19: 80 | E19: =School_Listing[[#This Row],[System Code]]&School_Listing[[#This Row],[School Code]] -> 1080 | F19: Norwood Elementary | G19: =School_Listing[[#This Row],[School Code]] -> 80 | O19: 80 | P19: CANNON COUNTY
A20: 10 | B20: ANDERSON COUNTY | C20: =School_Listing[[#This Row],[System Code]] -> 10 | D20: 85 | E20: =School_Listing[[#This Row],[System Code]]&School_Listing[[#This Row],[School Code]] -> 1085 | F20: Norwood Middle School | G20: =School_Listing[[#This Row],[School Code]] -> 85 | O20: 90 | P20: CARROLL COUNTY
A21: 11 | B21: CLINTON | C21: =School_Listing[[#This Row],[System Code]] -> 11 | D21: 5 | E21: =School_Listing[[#This Row],[System Code]]&School_Listing[[#This Row],[School Code]] -> 115 | F21: Clinton Elementary | G21: =School_Listing[[#This Row],[School Code]] -> 5 | O21: 100 | P21: CARTER COUNTY
A22: 11 | B22: CLINTON | C22: =School_Listing[[#This Row],[System Code]] -> 11 | D22: 10 | E22: =School_Listing[[#This Row],[System Code]]&School_Listing[[#This Row],[School Code]] -> 1110 | F22: North Clinton Elementary | G22: =School_Listing[[#This Row],[School Code]] -> 10 | O22: 110 | P22: CHEATHAM COUNTY
A23: 11 | B23: CLINTON | C23: =School_Listing[[#This Row],[System Code]] -> 11 | D23: 15 | E23: =School_Listing[[#This Row],[System Code]]&School_Listing[[#This Row],[School Code]] -> 1115 | F23: South Clinton Elementary | G23: =School_Listing[[#This Row],[School Code]] -> 15 | O23: 120 | P23: CHESTER COUNTY
A24: 12 | B24: OAK RIDGE | C24: =School_Listing[[#This Row],[System Code]] -> 12 | D24: 15 | E24: =School_Listing[[#This Row],[System Code]]&School_Listing[[#This Row],[School Code]] -> 1215 | F24: Glenwood Elementary | G24: =School_Listing[[#This Row],[School Code]] -> 15 | O24: 130 | P24: CLAIBORNE COUNTY
A25: 12 | B25: OAK RIDGE | C25: =School_Listing[[#This Row],[System Code]] -> 12 | D25: 25 | E25: =School_Listing[[#This Row],[System Code]]&School_Listing[[#This Row],[School Code]] -> 1225 | F25: Jefferson Middle School | G25: =School_Listing[[#This Row],[School Code]] -> 25 | O25: 140 | P25: CLAY COUNTY
A26: 12 | B26: OAK RIDGE | C26: =School_Listing[[#This Row],[System Code]] -> 12 | D26: 30 | E26: =School_Listing[[#This Row],[System Code]]&School_Listing[[#This Row],[School Code]] -> 1230 | F26: Linden Elementary | G26: =School_Listing[[#This Row],[School Code]] -> 30 | O26: 61 | P26: CLEVELAND
A27: 12 | B27: OAK RIDGE | C27: =School_Listing[[#This Row],[System Code]] -> 12 | D27: 35 | E27: =School_Listing[[#This Row],[System Code]]&School_Listing[[#This Row],[School Code]] -> 1235 | F27: Oak Ridge High School | G27: =School_Listing[[#This Row],[School Code]] -> 35 | O27: 11 | P27: CLINTON
A28: 12 | B28: OAK RIDGE | C28: =School_Listing[[#This Row],[System Code]] -> 12 | D28: 43 | E28: =School_Listing[[#This Row],[System Code]]&School_Listing[[#This Row],[School Code]] -> 1243 | F28: Preschool | G28: =School_Listing[[#This Row],[School Code]] -> 43 | O28: 150 | P28: COCKE COUNTY
A29: 12 | B29: OAK RIDGE | C29: =School_Listing[[#This Row],[System Code]] -> 12 | D29: 40 | E29: =School_Listing[[#This Row],[System Code]]&School_Listing[[#This Row],[School Code]] -> 1240 | F29: Robertsville Middle School | G29: =School_Listing[[#This Row],[School Code]] -> 40 | O29: 160 | P29: COFFEE COUNTY
A30: 12 | B30: OAK RIDGE | C30: =School_Listing[[#This Row],[System Code]] -> 12 | D30: 45 | E30: =School_Listing[[#This Row],[System Code]]&School_Listing[[#This Row],[School Code]] -> 1245 | F30: Willow Brook Elementary | G30: =School_Listing[[#This Row],[School Code]] -> 45 | O30: 795 | P30: COLLIERVILLE
A31: 12 | B31: OAK RIDGE | C31: =School_Listing[[#This Row],[System Code]] -> 12 | D31: 50 | E31: =School_Listing[[#This Row],[System Code]]&School_Listing[[#This Row],[School Code]] -> 1250 | F31: Woodland Elementary | G31: =School_Listing[[#This Row],[School Code]] -> 50 | O31: 170 | P31: CROCKETT COUNTY
A32: 20 | B32: BEDFORD COUNTY | C32: =School_Listing[[#This Row],[System Code]] -> 20 | D32: 11 | E32: =School_Listing[[#This Row],[System Code]]&School_Listing[[#This Row],[School Code]] -> 2011 | F32: Bedford County Virtual School | G32: =School_Listing[[#This Row],[School Code]] -> 11 | O32: 180 | P32: CUMBERLAND COUNTY
A33: 20 | B33: BEDFORD COUNTY | C33: =School_Listing[[#This Row],[System Code]] -> 20 | D33: 12 | E33: =School_Listing[[#This Row],[System Code]]&School_Listing[[#This Row],[School Code]] -> 2012 | F33: Cascade Elementary | G33: =School_Listing[[#This Row],[School Code]] -> 12 | O33: 190 | P33: DAVIDSON COUNTY
A34: 20 | B34: BEDFORD COUNTY | C34: =School_Listing[[#This Row],[System Code]] -> 20 | D34: 13 | E34: =School_Listing[[#This Row],[System Code]]&School_Listing[[#This Row],[School Code]] -> 2013 | F34: Cascade High School | G34: =School_Listing[[#This Row],[School Code]] -> 13 | O34: 721 | P34: DAYTON
A35: 20 | B35: BEDFORD COUNTY | C35: =School_Listing[[#This Row],[System Code]] -> 20 | D35: 17 | E35: =School_Listing[[#This Row],[System Code]]&School_Listing[[#This Row],[School Code]] -> 2017 | F35: Cascade Middle School | G35: =School_Listing[[#This Row],[School Code]] -> 17 | O35: 200 | P35: DECATUR COUNTY
A36: 20 | B36: BEDFORD COUNTY | C36: =School_Listing[[#This Row],[System Code]] -> 20 | D36: 33 | E36: =School_Listing[[#This Row],[System Code]]&School_Listing[[#This Row],[School Code]] -> 2033 | F36: Community Elementary School | G36: =School_Listing[[#This Row],[School Code]] -> 33 | O36: 210 | P36: DEKALB COUNTY
A37: 20 | B37: BEDFORD COUNTY | C37: =School_Listing[[#This Row],[System Code]] -> 20 | D37: 35 | E37: =School_Listing[[#This Row],[System Code]]&School_Listing[[#This Row],[School Code]] -> 2035 | F37: Community High School | G37: =School_Listing[[#This Row],[School Code]] -> 35 | O37: 970 | P37: DEPARTMENT OF CHILDREN'S SERVICES EDUCATION DIVISION
A38: 20 | B38: BEDFORD COUNTY | C38: =School_Listing[[#This Row],[System Code]] -> 20 | D38: 37 | E38: =School_Listing[[#This Row],[System Code]]&School_Listing[[#This Row],[School Code]] -> 2037 | F38: Community Middle School | G38: =School_Listing[[#This Row],[School Code]] -> 37 | O38: 971 | P38: DEPARTMENT OF CORRECTION
A39: 20 | B39: BEDFORD COUNTY | C39: =School_Listing[[#This Row],[System Code]] -> 20 | D39: 15 | E39: =School_Listing[[#This Row],[System Code]]&School_Listing[[#This Row],[School Code]] -> 2015 | F39: Eakin Elementary | G39: =School_Listing[[#This Row],[School Code]] -> 15 | O39: 972 | P39: DEPT OF MENTAL HEALTH
A40: 20 | B40: BEDFORD COUNTY | C40: =School_Listing[[#This Row],[System Code]] -> 20 | D40: 40 | E40: =School_Listing[[#This Row],[System Code]]&School_Listing[[#This Row],[School Code]] -> 2040 | F40: East Side Elementary | G40: =School_Listing[[#This Row],[School Code]] -> 40 | O40: 220 | P40: DICKSON COUNTY
A41: 20 | B41: BEDFORD COUNTY | C41: =School_Listing[[#This Row],[System Code]] -> 20 | D41: 25 | E41: =School_Listing[[#This Row],[System Code]]&School_Listing[[#This Row],[School Code]] -> 2025 | F41: Harris Middle School | G41: =School_Listing[[#This Row],[School Code]] -> 25 | O41: 230 | P41: DYER COUNTY
A42: 20 | B42: BEDFORD COUNTY | C42: =School_Listing[[#This Row],[System Code]] -> 20 | D42: 39 | E42: =School_Listing[[#This Row],[System Code]]&School_Listing[[#This Row],[School Code]] -> 2039 | F42: Learning Way Elementary | G42: =School_Listing[[#This Row],[School Code]] -> 39 | O42: 231 | P42: DYERSBURG
A43: 20 | B43: BEDFORD COUNTY | C43: =School_Listing[[#This Row],[System Code]] -> 20 | D43: 53 | E43: =School_Listing[[#This Row],[System Code]]&School_Listing[[#This Row],[School Code]] -> 2053 | F43: Liberty Elementary | G43: =School_Listing[[#This Row],[School Code]] -> 53 | O43: 101 | P43: ELIZABETHTON
A44: 20 | B44: BEDFORD COUNTY | C44: =School_Listing[[#This Row],[System Code]] -> 20 | D44: 20 | E44: =School_Listing[[#This Row],[System Code]]&School_Listing[[#This Row],[School Code]] -> 2020 | F44: Shelbyville Central High School | G44: =School_Listing[[#This Row],[School Code]] -> 20 | O44: 542 | P44: ETOWAH
A45: 20 | B45: BEDFORD COUNTY | C45: =School_Listing[[#This Row],[System Code]] -> 20 | D45: 75 | E45: =School_Listing[[#This Row],[System Code]]&School_Listing[[#This Row],[School Code]] -> 2075 | F45: South Side Elementary | G45: =School_Listing[[#This Row],[School Code]] -> 75 | O45: 240 | P45: FAYETTE COUNTY PUBLIC SCHOOLS
A46: 20 | B46: BEDFORD COUNTY | C46: =School_Listing[[#This Row],[System Code]] -> 20 | D46: 78 | E46: =School_Listing[[#This Row],[System Code]]&School_Listing[[#This Row],[School Code]] -> 2078 | F46: Thomas Magnet School | G46: =School_Listing[[#This Row],[School Code]] -> 78 | O46: 521 | P46: FAYETTEVILLE
A47: 30 | B47: BENTON COUNTY | C47: =School_Listing[[#This Row],[System Code]] -> 30 | D47: 4 | E47: =School_Listing[[#This Row],[System Code]]&School_Listing[[#This Row],[School Code]] -> 304 | F47: Benton County Academy | G47: =School_Listing[[#This Row],[School Code]] -> 4 | O47: 250 | P47: FENTRESS COUNTY
A48: 30 | B48: BENTON COUNTY | C48: =School_Listing[[#This Row],[System Code]] -> 30 | D48: 10 | E48: =School_Listing[[#This Row],[System Code]]&School_Listing[[#This Row],[School Code]] -> 3010 | F48: Big Sandy School | G48: =School_Listing[[#This Row],[School Code]] -> 10 | O48: 260 | P48: FRANKLIN COUNTY
A49: 30 | B49: BENTON COUNTY | C49: =School_Listing[[#This Row],[System Code]] -> 30 | D49: 15 | E49: =School_Listing[[#This Row],[System Code]]&School_Listing[[#This Row],[School Code]] -> 3015 | F49: Briarwood School | G49: =School_Listing[[#This Row],[School Code]] -> 15 | O49: 941 | P49: FRANKLIN SSD
A50: 30 | B50: BENTON COUNTY | C50: =School_Listing[[#This Row],[System Code]] -> 30 | D50: 25 | E50: =School_Listing[[#This Row],[System Code]]&School_Listing[[#This Row],[School Code]] -> 3025 | F50: Camden Central High School | G50: =School_Listing[[#This Row],[School Code]] -> 25 | O50: 796 | P50: GERMANTOWN
A51: 30 | B51: BENTON COUNTY | C51: =School_Listing[[#This Row],[System Code]] -> 30 | D51: 20 | E51: =School_Listing[[#This Row],[System Code]]&School_Listing[[#This Row],[School Code]] -> 3020 | F51: Camden Elementary | G51: =School_Listing[[#This Row],[School Code]] -> 20 | O51: 275 | P51: GIBSON CO SP DIST
A52: 30 | B52: BENTON COUNTY | C52: =School_Listing[[#This Row],[System Code]] -> 30 | D52: 27 | E52: =School_Listing[[#This Row],[System Code]]&School_Listing[[#This Row],[School Code]] -> 3027 | F52: Camden Jr High School | G52: =School_Listing[[#This Row],[School Code]] -> 27 | O52: 280 | P52: GILES COUNTY
A53: 30 | B53: BENTON COUNTY | C53: =School_Listing[[#This Row],[System Code]] -> 30 | D53: 30 | E53: =School_Listing[[#This Row],[System Code]]&School_Listing[[#This Row],[School Code]] -> 3030 | F53: Holladay Elementary | G53: =School_Listing[[#This Row],[School Code]] -> 30 | O53: 290 | P53: GRAINGER COUNTY
A54: 30 | B54: BENTON COUNTY | C54: =School_Listing[[#This Row],[System Code]] -> 30 | D54: 9 | E54: =School_Listing[[#This Row],[System Code]]&School_Listing[[#This Row],[School Code]] -> 309 | F54: Senator Frank P. Lashlee Career and Technical Center | G54: =School_Listing[[#This Row],[School Code]] -> 9 | O54: 300 | P54: GREENE COUNTY
A55: 40 | B55: BLEDSOE COUNTY | C55: =School_Listing[[#This Row],[System Code]] -> 40 | D55: 5 | E55: =School_Listing[[#This Row],[System Code]]&School_Listing[[#This Row],[School Code]] -> 405 | F55: Bledsoe County High School | G55: =School_Listing[[#This Row],[School Code]] -> 5 | O55: 301 | P55: GREENEVILLE
A56: 40 | B56: BLEDSOE COUNTY | C56: =School_Listing[[#This Row],[System Code]] -> 40 | D56: 6 | E56: =School_Listing[[#This Row],[System Code]]&School_Listing[[#This Row],[School Code]] -> 406 | F56: Bledsoe County Middle School | G56: =School_Listing[[#This Row],[School Code]] -> 6 | O56: 310 | P56: GRUNDY COUNTY
A57: 40 | B57: BLEDSOE COUNTY | C57: =School_Listing[[#This Row],[System Code]] -> 40 | D57: 10 | E57: =School_Listing[[#This Row],[System Code]]&School_Listing[[#This Row],[School Code]] -> 4010 | F57: Cecil B Rigsby Elementary | G57: =School_Listing[[#This Row],[School Code]] -> 10 | O57: 320 | P57: HAMBLEN COUNTY
A58: 40 | B58: BLEDSOE COUNTY | C58: =School_Listing[[#This Row],[System Code]] -> 40 | D58: 25 | E58: =School_Listing[[#This Row],[System Code]]&School_Listing[[#This Row],[School Code]] -> 4025 | F58: Mary V Wheeler Elementary | G58: =School_Listing[[#This Row],[School Code]] -> 25 | O58: 330 | P58: HAMILTON COUNTY
A59: 40 | B59: BLEDSOE COUNTY | C59: =School_Listing[[#This Row],[System Code]] -> 40 | D59: 30 | E59: =School_Listing[[#This Row],[System Code]]&School_Listing[[#This Row],[School Code]] -> 4030 | F59: Pikeville Elementary | G59: =School_Listing[[#This Row],[School Code]] -> 30 | O59: 340 | P59: HANCOCK COUNTY
A60: 50 | B60: BLOUNT COUNTY | C60: =School_Listing[[#This Row],[System Code]] -> 50 | D60: 22 | E60: =School_Listing[[#This Row],[System Code]]&School_Listing[[#This Row],[School Code]] -> 5022 | F60: Carpenters Elementary School | G60: =School_Listing[[#This Row],[School Code]] -> 22 | O60: 350 | P60: HARDEMAN COUNTY SCHOOLS
A61: 50 | B61: BLOUNT COUNTY | C61: =School_Listing[[#This Row],[System Code]] -> 50 | D61: 23 | E61: =School_Listing[[#This Row],[System Code]]&School_Listing[[#This Row],[School Code]] -> 5023 | F61: Carpenters Middle School | G61: =School_Listing[[#This Row],[School Code]] -> 23 | O61: 360 | P61: HARDIN COUNTY
A62: 50 | B62: BLOUNT COUNTY | C62: =School_Listing[[#This Row],[System Code]] -> 50 | D62: 7001 | E62: =School_Listing[[#This Row],[System Code]]&School_Listing[[#This Row],[School Code]] -> 507001 | F62: Eagleton 1 Head Start | G62: =School_Listing[[#This Row],[School Code]] -> 7001 | O62: 370 | P62: HAWKINS COUNTY
A63: 50 | B63: BLOUNT COUNTY | C63: =School_Listing[[#This Row],[System Code]] -> 50 | D63: 31 | E63: =School_Listing[[#This Row],[System Code]]&School_Listing[[#This Row],[School Code]] -> 5031 | F63: Eagleton College and Career Academy | G63: =School_Listing[[#This Row],[School Code]] -> 31 | O63: 380 | P63: HAYWOOD COUNTY
A64: 50 | B64: BLOUNT COUNTY | C64: =School_Listing[[#This Row],[System Code]] -> 50 | D64: 43 | E64: =School_Listing[[#This Row],[System Code]]&School_Listing[[#This Row],[School Code]] -> 5043 | F64: Eagleton Elementary | G64: =School_Listing[[#This Row],[School Code]] -> 43 | O64: 390 | P64: HENDERSON COUNTY
A65: 50 | B65: BLOUNT COUNTY | C65: =School_Listing[[#This Row],[System Code]] -> 50 | D65: 45 | E65: =School_Listing[[#This Row],[System Code]]&School_Listing[[#This Row],[School Code]] -> 5045 | F65: Fairview Elementary | G65: =School_Listing[[#This Row],[School Code]] -> 45 | O65: 400 | P65: HENRY COUNTY
A66: 50 | B66: BLOUNT COUNTY | C66: =School_Listing[[#This Row],[System Code]] -> 50 | D66: 55 | E66: =School_Listing[[#This Row],[System Code]]&School_Listing[[#This Row],[School Code]] -> 5055 | F66: Friendsville Elementary | G66: =School_Listing[[#This Row],[School Code]] -> 55 | O66: 410 | P66: HICKMAN COUNTY
A67: 50 | B67: BLOUNT COUNTY | C67: =School_Listing[[#This Row],[System Code]] -> 50 | D67: 63 | E67: =School_Listing[[#This Row],[System Code]]&School_Listing[[#This Row],[School Code]] -> 5063 | F67: Heritage High School | G67: =School_Listing[[#This Row],[School Code]] -> 63 | O67: 92 | P67: HOLLOW ROCK - BRUCETON
A68: 50 | B68: BLOUNT COUNTY | C68: =School_Listing[[#This Row],[System Code]] -> 50 | D68: 61 | E68: =School_Listing[[#This Row],[System Code]]&School_Listing[[#This Row],[School Code]] -> 5061 | F68: Heritage Middle School | G68: =School_Listing[[#This Row],[School Code]] -> 61 | O68: 420 | P68: HOUSTON COUNTY
A69: 50 | B69: BLOUNT COUNTY | C69: =School_Listing[[#This Row],[System Code]] -> 50 | D69: 70 | E69: =School_Listing[[#This Row],[System Code]]&School_Listing[[#This Row],[School Code]] -> 5070 | F69: Lanier Elementary | G69: =School_Listing[[#This Row],[School Code]] -> 70 | O69: 271 | P69: HUMBOLDT CITY SCHOOLS
A70: 50 | B70: BLOUNT COUNTY | C70: =School_Listing[[#This Row],[System Code]] -> 50 | D70: 90 | E70: =School_Listing[[#This Row],[System Code]]&School_Listing[[#This Row],[School Code]] -> 5090 | F70: Mary Blount Elementary | G70: =School_Listing[[#This Row],[School Code]] -> 90 | O70: 430 | P70: HUMPHREYS COUNTY
A71: 50 | B71: BLOUNT COUNTY | C71: =School_Listing[[#This Row],[System Code]] -> 50 | D71: 93 | E71: =School_Listing[[#This Row],[System Code]]&School_Listing[[#This Row],[School Code]] -> 5093 | F71: Middlesettlements | G71: =School_Listing[[#This Row],[School Code]] -> 93 | O71: 93 | P71: HUNTINGDON SPECIAL SCHOOL DISTRICT
A72: 50 | B72: BLOUNT COUNTY | C72: =School_Listing[[#This Row],[System Code]] -> 50 | D72: 94 | E72: =School_Listing[[#This Row],[System Code]]&School_Listing[[#This Row],[School Code]] -> 5094 | F72: Montvale Elementary | G72: =School_Listing[[#This Row],[School Code]] -> 94 | O72: 440 | P72: JACKSON COUNTY
A73: 50 | B73: BLOUNT COUNTY | C73: =School_Listing[[#This Row],[System Code]] -> 50 | D73: 95 | E73: =School_Listing[[#This Row],[System Code]]&School_Listing[[#This Row],[School Code]] -> 5095 | F73: Porter Elementary | G73: =School_Listing[[#This Row],[School Code]] -> 95 | O73: 450 | P73: JEFFERSON COUNTY
A74: 50 | B74: BLOUNT COUNTY | C74: =School_Listing[[#This Row],[System Code]] -> 50 | D74: 160 | E74: =School_Listing[[#This Row],[System Code]]&School_Listing[[#This Row],[School Code]] -> 50160 | F74: Prospect Elementary School | G74: =School_Listing[[#This Row],[School Code]] -> 160 | O74: 901 | P74: JOHNSON CITY
A75: 50 | B75: BLOUNT COUNTY | C75: =School_Listing[[#This Row],[System Code]] -> 50 | D75: 110 | E75: =School_Listing[[#This Row],[System Code]]&School_Listing[[#This Row],[School Code]] -> 50110 | F75: Rockford Elementary | G75: =School_Listing[[#This Row],[School Code]] -> 110 | O75: 460 | P75: JOHNSON COUNTY
A76: 50 | B76: BLOUNT COUNTY | C76: =School_Listing[[#This Row],[System Code]] -> 50 | D76: 123 | E76: =School_Listing[[#This Row],[System Code]]&School_Listing[[#This Row],[School Code]] -> 50123 | F76: Samuel Everett School of Innovation | G76: =School_Listing[[#This Row],[School Code]] -> 123 | O76: 822 | P76: KINGSPORT
A77: 50 | B77: BLOUNT COUNTY | C77: =School_Listing[[#This Row],[System Code]] -> 50 | D77: 125 | E77: =School_Listing[[#This Row],[System Code]]&School_Listing[[#This Row],[School Code]] -> 50125 | F77: Townsend Elementary | G77: =School_Listing[[#This Row],[School Code]] -> 125 | O77: 470 | P77: KNOX COUNTY
A78: 50 | B78: BLOUNT COUNTY | C78: =School_Listing[[#This Row],[System Code]] -> 50 | D78: 138 | E78: =School_Listing[[#This Row],[System Code]]&School_Listing[[#This Row],[School Code]] -> 50138 | F78: Union Grove Elementary School | G78: =School_Listing[[#This Row],[School Code]] -> 138 | O78: 480 | P78: LAKE COUNTY
A79: 50 | B79: BLOUNT COUNTY | C79: =School_Listing[[#This Row],[System Code]] -> 50 | D79: 84 | E79: =School_Listing[[#This Row],[System Code]]&School_Listing[[#This Row],[School Code]] -> 5084 | F79: Union Grove Middle School | G79: =School_Listing[[#This Row],[School Code]] -> 84 | O79: 797 | P79: LAKELAND
A80: 50 | B80: BLOUNT COUNTY | C80: =School_Listing[[#This Row],[System Code]] -> 50 | D80: 145 | E80: =School_Listing[[#This Row],[System Code]]&School_Listing[[#This Row],[School Code]] -> 50145 | F80: Walland Elementary School | G80: =School_Listing[[#This Row],[School Code]] -> 145 | O80: 490 | P80: LAUDERDALE COUNTY
A81: 50 | B81: BLOUNT COUNTY | C81: =School_Listing[[#This Row],[System Code]] -> 50 | D81: 155 | E81: =School_Listing[[#This Row],[System Code]]&School_Listing[[#This Row],[School Code]] -> 50155 | F81: William Blount High School | G81: =School_Listing[[#This Row],[School Code]] -> 155 | O81: 500 | P81: LAWRENCE COUNTY
A82: 51 | B82: ALCOA | C82: =School_Listing[[#This Row],[System Code]] -> 51 | D82: 5 | E82: =School_Listing[[#This Row],[System Code]]&School_Listing[[#This Row],[School Code]] -> 515 | F82: Alcoa Elementary | G82: =School_Listing[[#This Row],[School Code]] -> 5 | O82: 951 | P82: LEBANON
A83: 51 | B83: ALCOA | C83: =School_Listing[[#This Row],[System Code]] -> 51 | D83: 10 | E83: =School_Listing[[#This Row],[System Code]]&School_Listing[[#This Row],[School Code]] -> 5110 | F83: Alcoa High School | G83: =School_Listing[[#This Row],[School Code]] -> 10 | O83: 531 | P83: LENOIR CITY
A84: 51 | B84: ALCOA | C84: =School_Listing[[#This Row],[System Code]] -> 51 | D84: 12 | E84: =School_Listing[[#This Row],[System Code]]&School_Listing[[#This Row],[School Code]] -> 5112 | F84: Alcoa Intermediate School | G84: =School_Listing[[#This Row],[School Code]] -> 12 | O84: 510 | P84: LEWIS COUNTY
A85: 51 | B85: ALCOA | C85: =School_Listing[[#This Row],[System Code]] -> 51 | D85: 6 | E85: =School_Listing[[#This Row],[System Code]]&School_Listing[[#This Row],[School Code]] -> 516 | F85: Alcoa Middle School | G85: =School_Listing[[#This Row],[School Code]] -> 6 | O85: 391 | P85: LEXINGTON
A86: 52 | B86: MARYVILLE | C86: =School_Listing[[#This Row],[System Code]] -> 52 | D86: 35 | E86: =School_Listing[[#This Row],[System Code]]&School_Listing[[#This Row],[School Code]] -> 5235 | F86: Coulter Grove Intermediate School | G86: =School_Listing[[#This Row],[School Code]] -> 35 | O86: 520 | P86: LINCOLN COUNTY
A87: 52 | B87: MARYVILLE | C87: =School_Listing[[#This Row],[System Code]] -> 52 | D87: 30 | E87: =School_Listing[[#This Row],[System Code]]&School_Listing[[#This Row],[School Code]] -> 5230 | F87: Foothills Elementary | G87: =School_Listing[[#This Row],[School Code]] -> 30 | O87: 530 | P87: LOUDON COUNTY
A88: 52 | B88: MARYVILLE | C88: =School_Listing[[#This Row],[System Code]] -> 52 | D88: 10 | E88: =School_Listing[[#This Row],[System Code]]&School_Listing[[#This Row],[School Code]] -> 5210 | F88: John Sevier Elementary | G88: =School_Listing[[#This Row],[School Code]] -> 10 | O88: 560 | P88: MACON COUNTY
A89: 52 | B89: MARYVILLE | C89: =School_Listing[[#This Row],[System Code]] -> 52 | D89: 15 | E89: =School_Listing[[#This Row],[System Code]]&School_Listing[[#This Row],[School Code]] -> 5215 | F89: Maryville High School | G89: =School_Listing[[#This Row],[School Code]] -> 15 | O89: 570 | P89: MADISON COUNTY
A90: 52 | B90: MARYVILLE | C90: =School_Listing[[#This Row],[System Code]] -> 52 | D90: 20 | E90: =School_Listing[[#This Row],[System Code]]&School_Listing[[#This Row],[School Code]] -> 5220 | F90: Maryville Junior High School | G90: =School_Listing[[#This Row],[School Code]] -> 20 | O90: 161 | P90: MANCHESTER
A91: 52 | B91: MARYVILLE | C91: =School_Listing[[#This Row],[System Code]] -> 52 | D91: 22 | E91: =School_Listing[[#This Row],[System Code]]&School_Listing[[#This Row],[School Code]] -> 5222 | F91: Maryville Virtual School | G91: =School_Listing[[#This Row],[School Code]] -> 22 | O91: 580 | P91: MARION COUNTY
A92: 52 | B92: MARYVILLE | C92: =School_Listing[[#This Row],[System Code]] -> 52 | D92: 18 | E92: =School_Listing[[#This Row],[System Code]]&School_Listing[[#This Row],[School Code]] -> 5218 | F92: Montgomery Ridge Intermediate School | G92: =School_Listing[[#This Row],[School Code]] -> 18 | O92: 590 | P92: MARSHALL COUNTY
A93: 52 | B93: MARYVILLE | C93: =School_Listing[[#This Row],[System Code]] -> 52 | D93: 25 | E93: =School_Listing[[#This Row],[System Code]]&School_Listing[[#This Row],[School Code]] -> 5225 | F93: Sam Houston Elementary | G93: =School_Listing[[#This Row],[School Code]] -> 25 | O93: 52 | P93: MARYVILLE
A94: 60 | B94: BRADLEY COUNTY | C94: =School_Listing[[#This Row],[System Code]] -> 60 | D94: 10 | E94: =School_Listing[[#This Row],[System Code]]&School_Listing[[#This Row],[School Code]] -> 6010 | F94: Black Fox Elementary School | G94: =School_Listing[[#This Row],[School Code]] -> 10 | O94: 600 | P94: MAURY COUNTY
A95: 60 | B95: BRADLEY COUNTY | C95: =School_Listing[[#This Row],[System Code]] -> 60 | D95: 20 | E95: =School_Listing[[#This Row],[System Code]]&School_Listing[[#This Row],[School Code]] -> 6020 | F95: Bradley Central High School | G95: =School_Listing[[#This Row],[School Code]] -> 20 | O95: 94 | P95: MCKENZIE
A96: 60 | B96: BRADLEY COUNTY | C96: =School_Listing[[#This Row],[System Code]] -> 60 | D96: 105 | E96: =School_Listing[[#This Row],[System Code]]&School_Listing[[#This Row],[School Code]] -> 60105 | F96: Bradley County Virtual School | G96: =School_Listing[[#This Row],[School Code]] -> 105 | O96: 540 | P96: MCMINN COUNTY
A97: 60 | B97: BRADLEY COUNTY | C97: =School_Listing[[#This Row],[System Code]] -> 60 | D97: 30 | E97: =School_Listing[[#This Row],[System Code]]&School_Listing[[#This Row],[School Code]] -> 6030 | F97: Charleston Elementary School | G97: =School_Listing[[#This Row],[School Code]] -> 30 | O97: 550 | P97: MCNAIRY COUNTY
A98: 60 | B98: BRADLEY COUNTY | C98: =School_Listing[[#This Row],[System Code]] -> 60 | D98: 40 | E98: =School_Listing[[#This Row],[System Code]]&School_Listing[[#This Row],[School Code]] -> 6040 | F98: Hopewell Elementary School | G98: =School_Listing[[#This Row],[School Code]] -> 40 | O98: 610 | P98: MEIGS COUNTY
A99: 60 | B99: BRADLEY COUNTY | C99: =School_Listing[[#This Row],[System Code]] -> 60 | D99: 72 | E99: =School_Listing[[#This Row],[System Code]]&School_Listing[[#This Row],[School Code]] -> 6072 | F99: Lake Forest Middle School | G99: =School_Listing[[#This Row],[School Code]] -> 72 | O99: 792 | P99: MEMPHIS-SHELBY COUNTY SCHOOLS
A100: 60 | B100: BRADLEY COUNTY | C100: =School_Listing[[#This Row],[System Code]] -> 60 | D100: 50 | E100: =School_Listing[[#This Row],[System Code]]&School_Listing[[#This Row],[School Code]] -> 6050 | F100: Michigan Avenue Elementary School | G100: =School_Listing[[#This Row],[School Code]] -> 50 | O100: 272 | P100: MILAN
A101: 60 | B101: BRADLEY COUNTY | C101: =School_Listing[[#This Row],[System Code]] -> 60 | D101: 53 | E101: =School_Listing[[#This Row],[System Code]]&School_Listing[[#This Row],[School Code]] -> 6053 | F101: North Cleveland GOAL Academy | G101: =School_Listing[[#This Row],[School Code]] -> 53 | O101: 798 | P101: MILLINGTON MUNICIPAL SCHOOLS
A102: 60 | B102: BRADLEY COUNTY | C102: =School_Listing[[#This Row],[System Code]] -> 60 | D102: 55 | E102: =School_Listing[[#This Row],[System Code]]&School_Listing[[#This Row],[School Code]] -> 6055 | F102: North Lee Elementary School | G102: =School_Listing[[#This Row],[School Code]] -> 55 | O102: 620 | P102: MONROE COUNTY
A103: 60 | B103: BRADLEY COUNTY | C103: =School_Listing[[#This Row],[System Code]] -> 60 | D103: 60 | E103: =School_Listing[[#This Row],[System Code]]&School_Listing[[#This Row],[School Code]] -> 6060 | F103: Oak Grove Elementary School | G103: =School_Listing[[#This Row],[School Code]] -> 60 | O103: 630 | P103: MONTGOMERY COUNTY
A104: 60 | B104: BRADLEY COUNTY | C104: =School_Listing[[#This Row],[System Code]] -> 60 | D104: 18 | E104: =School_Listing[[#This Row],[System Code]]&School_Listing[[#This Row],[School Code]] -> 6018 | F104: Ocoee Middle School | G104: =School_Listing[[#This Row],[School Code]] -> 18 | O104: 640 | P104: MOORE COUNTY
A105: 60 | B105: BRADLEY COUNTY | C105: =School_Listing[[#This Row],[System Code]] -> 60 | D105: 102 | E105: =School_Listing[[#This Row],[System Code]]&School_Listing[[#This Row],[School Code]] -> 60102 | F105: Park View Elementary School | G105: =School_Listing[[#This Row],[School Code]] -> 102 | O105: 650 | P105: MORGAN COUNTY
A106: 60 | B106: BRADLEY COUNTY | C106: =School_Listing[[#This Row],[System Code]] -> 60 | D106: 62 | E106: =School_Listing[[#This Row],[System Code]]&School_Listing[[#This Row],[School Code]] -> 6062 | F106: PIE Innovation Center | G106: =School_Listing[[#This Row],[School Code]] -> 62 | O106: 751 | P106: MURFREESBORO
A107: 60 | B107: BRADLEY COUNTY | C107: =School_Listing[[#This Row],[System Code]] -> 60 | D107: 65 | E107: =School_Listing[[#This Row],[System Code]]&School_Listing[[#This Row],[School Code]] -> 6065 | F107: Prospect Elementary School | G107: =School_Listing[[#This Row],[School Code]] -> 65 | O107: 151 | P107: NEWPORT
A108: 60 | B108: BRADLEY COUNTY | C108: =School_Listing[[#This Row],[System Code]] -> 60 | D108: 70 | E108: =School_Listing[[#This Row],[System Code]]&School_Listing[[#This Row],[School Code]] -> 6070 | F108: Taylor Elementary School | G108: =School_Listing[[#This Row],[School Code]] -> 70 | O108: 12 | P108: OAK RIDGE
A109: 60 | B109: BRADLEY COUNTY | C109: =School_Listing[[#This Row],[System Code]] -> 60 | D109: 75 | E109: =School_Listing[[#This Row],[System Code]]&School_Listing[[#This Row],[School Code]] -> 6075 | F109: Valley View Elementary School | G109: =School_Listing[[#This Row],[School Code]] -> 75 | O109: 660 | P109: OBION COUNTY
A110: 60 | B110: BRADLEY COUNTY | C110: =School_Listing[[#This Row],[System Code]] -> 60 | D110: 78 | E110: =School_Listing[[#This Row],[System Code]]&School_Listing[[#This Row],[School Code]] -> 6078 | F110: Walker Valley High School | G110: =School_Listing[[#This Row],[School Code]] -> 78 | O110: 761 | P110: ONEIDA
A111: 60 | B111: BRADLEY COUNTY | C111: =School_Listing[[#This Row],[System Code]] -> 60 | D111: 100 | E111: =School_Listing[[#This Row],[System Code]]&School_Listing[[#This Row],[School Code]] -> 60100 | F111: Waterville Community Elementary School | G111: =School_Listing[[#This Row],[School Code]] -> 100 | O111: 670 | P111: OVERTON COUNTY
A112: 61 | B112: CLEVELAND | C112: =School_Listing[[#This Row],[System Code]] -> 61 | D112: 10 | E112: =School_Listing[[#This Row],[System Code]]&School_Listing[[#This Row],[School Code]] -> 6110 | F112: Arnold Memorial Elementary | G112: =School_Listing[[#This Row],[School Code]] -> 10 | O112: 401 | P112: PARIS
A113: 61 | B113: CLEVELAND | C113: =School_Listing[[#This Row],[System Code]] -> 61 | D113: 12 | E113: =School_Listing[[#This Row],[System Code]]&School_Listing[[#This Row],[School Code]] -> 6112 | F113: Blythe-Bower Elementary | G113: =School_Listing[[#This Row],[School Code]] -> 12 | O113: 680 | P113: PERRY COUNTY
A114: 61 | B114: CLEVELAND | C114: =School_Listing[[#This Row],[System Code]] -> 61 | D114: 45 | E114: =School_Listing[[#This Row],[System Code]]&School_Listing[[#This Row],[School Code]] -> 6145 | F114: Candy's Creek Cherokee Elementary School | G114: =School_Listing[[#This Row],[School Code]] -> 45 | O114: 690 | P114: PICKETT COUNTY
A115: 61 | B115: CLEVELAND | C115: =School_Listing[[#This Row],[System Code]] -> 61 | D115: 20 | E115: =School_Listing[[#This Row],[System Code]]&School_Listing[[#This Row],[School Code]] -> 6120 | F115: Cleveland High | G115: =School_Listing[[#This Row],[School Code]] -> 20 | O115: 700 | P115: POLK COUNTY
A116: 61 | B116: CLEVELAND | C116: =School_Listing[[#This Row],[System Code]] -> 61 | D116: 18 | E116: =School_Listing[[#This Row],[System Code]]&School_Listing[[#This Row],[School Code]] -> 6118 | F116: Cleveland Middle | G116: =School_Listing[[#This Row],[School Code]] -> 18 | O116: 710 | P116: PUTNAM COUNTY
A117: 61 | B117: CLEVELAND | C117: =School_Listing[[#This Row],[System Code]] -> 61 | D117: 21 | E117: =School_Listing[[#This Row],[System Code]]&School_Listing[[#This Row],[School Code]] -> 6121 | F117: D.P. Yates Primary | G117: =School_Listing[[#This Row],[School Code]] -> 21 | O117: 720 | P117: RHEA COUNTY
A118: 61 | B118: CLEVELAND | C118: =School_Listing[[#This Row],[System Code]] -> 61 | D118: 22 | E118: =School_Listing[[#This Row],[System Code]]&School_Listing[[#This Row],[School Code]] -> 6122 | F118: E.L. Ross Elementary | G118: =School_Listing[[#This Row],[School Code]] -> 22 | O118: 581 | P118: RICHARD CITY
A119: 61 | B119: CLEVELAND | C119: =School_Listing[[#This Row],[System Code]] -> 61 | D119: 25 | E119: =School_Listing[[#This Row],[System Code]]&School_Listing[[#This Row],[School Code]] -> 6125 | F119: G.R. Stuart Elementary | G119: =School_Listing[[#This Row],[School Code]] -> 25 | O119: 730 | P119: ROANE COUNTY
A120: 61 | B120: CLEVELAND | C120: =School_Listing[[#This Row],[System Code]] -> 61 | D120: 30 | E120: =School_Listing[[#This Row],[System Code]]&School_Listing[[#This Row],[School Code]] -> 6130 | F120: Mayfield Elementary | G120: =School_Listing[[#This Row],[School Code]] -> 30 | O120: 740 | P120: ROBERTSON COUNTY
A121: 70 | B121: CAMPBELL COUNTY | C121: =School_Listing[[#This Row],[System Code]] -> 70 | D121: 2 | E121: =School_Listing[[#This Row],[System Code]]&School_Listing[[#This Row],[School Code]] -> 702 | F121: Campbell Co Adult High School | G121: =School_Listing[[#This Row],[School Code]] -> 2 | O121: 371 | P121: ROGERSVILLE
A122: 70 | B122: CAMPBELL COUNTY | C122: =School_Listing[[#This Row],[System Code]] -> 70 | D122: 3 | E122: =School_Listing[[#This Row],[System Code]]&School_Listing[[#This Row],[School Code]] -> 703 | F122: Campbell County Comprehensive High School | G122: =School_Listing[[#This Row],[School Code]] -> 3 | O122: 750 | P122: RUTHERFORD COUNTY
A123: 70 | B123: CAMPBELL COUNTY | C123: =School_Listing[[#This Row],[System Code]] -> 70 | D123: 5 | E123: =School_Listing[[#This Row],[System Code]]&School_Listing[[#This Row],[School Code]] -> 705 | F123: Caryville Elementary | G123: =School_Listing[[#This Row],[School Code]] -> 5 | O123: 760 | P123: SCOTT COUNTY
A124: 70 | B124: CAMPBELL COUNTY | C124: =School_Listing[[#This Row],[System Code]] -> 70 | D124: 160 | E124: =School_Listing[[#This Row],[System Code]]&School_Listing[[#This Row],[School Code]] -> 70160 | F124: East Lafollette Learning Academy | G124: =School_Listing[[#This Row],[School Code]] -> 160 | O124: 770 | P124: SEQUATCHIE COUNTY
A125: 70 | B125: CAMPBELL COUNTY | C125: =School_Listing[[#This Row],[System Code]] -> 70 | D125: 40 | E125: =School_Listing[[#This Row],[System Code]]&School_Listing[[#This Row],[School Code]] -> 7040 | F125: Elk Valley Elementary | G125: =School_Listing[[#This Row],[School Code]] -> 40 | O125: 780 | P125: SEVIER COUNTY
A126: 70 | B126: CAMPBELL COUNTY | C126: =School_Listing[[#This Row],[System Code]] -> 70 | D126: 60 | E126: =School_Listing[[#This Row],[System Code]]&School_Listing[[#This Row],[School Code]] -> 7060 | F126: Jacksboro Elementary | G126: =School_Listing[[#This Row],[School Code]] -> 60 | O126: 800 | P126: SMITH COUNTY
A127: 70 | B127: CAMPBELL COUNTY | C127: =School_Listing[[#This Row],[System Code]] -> 70 | D127: 65 | E127: =School_Listing[[#This Row],[System Code]]&School_Listing[[#This Row],[School Code]] -> 7065 | F127: Jacksboro Middle School | G127: =School_Listing[[#This Row],[School Code]] -> 65 | O127: 95 | P127: SOUTH CARROLL
A128: 70 | B128: CAMPBELL COUNTY | C128: =School_Listing[[#This Row],[System Code]] -> 70 | D128: 70 | E128: =School_Listing[[#This Row],[System Code]]&School_Listing[[#This Row],[School Code]] -> 7070 | F128: Jellico Elementary | G128: =School_Listing[[#This Row],[School Code]] -> 70 | O128: 810 | P128: STEWART COUNTY
A129: 70 | B129: CAMPBELL COUNTY | C129: =School_Listing[[#This Row],[System Code]] -> 70 | D129: 75 | E129: =School_Listing[[#This Row],[System Code]]&School_Listing[[#This Row],[School Code]] -> 7075 | F129: Jellico High School | G129: =School_Listing[[#This Row],[School Code]] -> 75 | O129: 820 | P129: SULLIVAN COUNTY
A130: 70 | B130: CAMPBELL COUNTY | C130: =School_Listing[[#This Row],[System Code]] -> 70 | D130: 155 | E130: =School_Listing[[#This Row],[System Code]]&School_Listing[[#This Row],[School Code]] -> 70155 | F130: Jellico Learning Academy | G130: =School_Listing[[#This Row],[School Code]] -> 155 | O130: 830 | P130: SUMNER COUNTY
A131: 70 | B131: CAMPBELL COUNTY | C131: =School_Listing[[#This Row],[System Code]] -> 70 | D131: 77 | E131: =School_Listing[[#This Row],[System Code]]&School_Listing[[#This Row],[School Code]] -> 7077 | F131: LaFollette Elementary School | G131: =School_Listing[[#This Row],[School Code]] -> 77 | O131: 621 | P131: SWEETWATER
A132: 70 | B132: CAMPBELL COUNTY | C132: =School_Listing[[#This Row],[System Code]] -> 70 | D132: 80 | E132: =School_Listing[[#This Row],[System Code]]&School_Listing[[#This Row],[School Code]] -> 7080 | F132: Lafollette Middle School | G132: =School_Listing[[#This Row],[School Code]] -> 80 | O132: 987 | P132: TENNESSEE PUBLIC CHARTER SCHOOL COMMISSION
A133: 70 | B133: CAMPBELL COUNTY | C133: =School_Listing[[#This Row],[System Code]] -> 70 | D133: 4 | E133: =School_Listing[[#This Row],[System Code]]&School_Listing[[#This Row],[School Code]] -> 704 | F133: North Cumberland Online School | G133: =School_Listing[[#This Row],[School Code]] -> 4 | O133: 963 | P133: TENNESSEE SCHOOL FOR BLIND
A134: 70 | B134: CAMPBELL COUNTY | C134: =School_Listing[[#This Row],[System Code]] -> 70 | D134: 135 | E134: =School_Listing[[#This Row],[System Code]]&School_Listing[[#This Row],[School Code]] -> 70135 | F134: Valley View Elementary | G134: =School_Listing[[#This Row],[School Code]] -> 135 | O134: 964 | P134: TENNESSEE SCHOOLS FOR THE DEAF
A135: 70 | B135: CAMPBELL COUNTY | C135: =School_Listing[[#This Row],[System Code]] -> 70 | D135: 140 | E135: =School_Listing[[#This Row],[System Code]]&School_Listing[[#This Row],[School Code]] -> 70140 | F135: White Oak Elementary | G135: =School_Listing[[#This Row],[School Code]] -> 140 | O135: 840 | P135: TIPTON COUNTY
A136: 70 | B136: CAMPBELL COUNTY | C136: =School_Listing[[#This Row],[System Code]] -> 70 | D136: 150 | E136: =School_Listing[[#This Row],[System Code]]&School_Listing[[#This Row],[School Code]] -> 70150 | F136: Wynn Habersham Elementary | G136: =School_Listing[[#This Row],[School Code]] -> 150 | O136: 273 | P136: TRENTON
A137: 80 | B137: CANNON COUNTY | C137: =School_Listing[[#This Row],[System Code]] -> 80 | D137: 17 | E137: =School_Listing[[#This Row],[System Code]]&School_Listing[[#This Row],[School Code]] -> 8017 | F137: Cannon County Elementary School | G137: =School_Listing[[#This Row],[School Code]] -> 17 | O137: 850 | P137: TROUSDALE COUNTY
A138: 80 | B138: CANNON COUNTY | C138: =School_Listing[[#This Row],[System Code]] -> 80 | D138: 16 | E138: =School_Listing[[#This Row],[System Code]]&School_Listing[[#This Row],[School Code]] -> 8016 | F138: Cannon County High School | G138: =School_Listing[[#This Row],[School Code]] -> 16 | O138: 162 | P138: TULLAHOMA
A139: 80 | B139: CANNON COUNTY | C139: =School_Listing[[#This Row],[System Code]] -> 80 | D139: 21 | E139: =School_Listing[[#This Row],[System Code]]&School_Listing[[#This Row],[School Code]] -> 8021 | F139: Cannon County Middle School | G139: =School_Listing[[#This Row],[School Code]] -> 21 | O139: 860 | P139: UNICOI COUNTY
A140: 80 | B140: CANNON COUNTY | C140: =School_Listing[[#This Row],[System Code]] -> 80 | D140: 18 | E140: =School_Listing[[#This Row],[System Code]]&School_Listing[[#This Row],[School Code]] -> 8018 | F140: Cannon North Elementary School | G140: =School_Listing[[#This Row],[School Code]] -> 18 | O140: 661 | P140: UNION CITY
A141: 80 | B141: CANNON COUNTY | C141: =School_Listing[[#This Row],[System Code]] -> 80 | D141: 19 | E141: =School_Listing[[#This Row],[System Code]]&School_Listing[[#This Row],[School Code]] -> 8019 | F141: Cannon South Elementary School | G141: =School_Listing[[#This Row],[School Code]] -> 19 | O141: 870 | P141: UNION COUNTY
A142: 90 | B142: CARROLL COUNTY | C142: =School_Listing[[#This Row],[System Code]] -> 90 | D142: 7 | E142: =School_Listing[[#This Row],[System Code]]&School_Listing[[#This Row],[School Code]] -> 907 | F142: Carroll Co Tech Center | G142: =School_Listing[[#This Row],[School Code]] -> 7 | O142: 880 | P142: VAN BUREN COUNTY
A143: 92 | B143: HOLLOW ROCK - BRUCETON | C143: =School_Listing[[#This Row],[System Code]] -> 92 | D143: 5 | E143: =School_Listing[[#This Row],[System Code]]&School_Listing[[#This Row],[School Code]] -> 925 | F143: Central Elementary | G143: =School_Listing[[#This Row],[School Code]] -> 5 | O143: 890 | P143: WARREN COUNTY
A144: 92 | B144: HOLLOW ROCK - BRUCETON | C144: =School_Listing[[#This Row],[System Code]] -> 92 | D144: 10 | E144: =School_Listing[[#This Row],[System Code]]&School_Listing[[#This Row],[School Code]] -> 9210 | F144: Central High School | G144: =School_Listing[[#This Row],[School Code]] -> 10 | O144: 900 | P144: WASHINGTON COUNTY
A145: 93 | B145: HUNTINGDON SPECIAL SCHOOL DISTRICT | C145: =School_Listing[[#This Row],[System Code]] -> 93 | D145: 10 | E145: =School_Listing[[#This Row],[System Code]]&School_Listing[[#This Row],[School Code]] -> 9310 | F145: Huntingdon High School | G145: =School_Listing[[#This Row],[School Code]] -> 10 | O145: 910 | P145: WAYNE COUNTY
A146: 93 | B146: HUNTINGDON SPECIAL SCHOOL DISTRICT | C146: =School_Listing[[#This Row],[System Code]] -> 93 | D146: 5 | E146: =School_Listing[[#This Row],[System Code]]&School_Listing[[#This Row],[School Code]] -> 935 | F146: Huntingdon Middle School | G146: =School_Listing[[#This Row],[School Code]] -> 5 | O146: 920 | P146: WEAKLEY COUNTY
A147: 93 | B147: HUNTINGDON SPECIAL SCHOOL DISTRICT | C147: =School_Listing[[#This Row],[System Code]] -> 93 | D147: 15 | E147: =School_Listing[[#This Row],[System Code]]&School_Listing[[#This Row],[School Code]] -> 9315 | F147: Huntingdon Primary | G147: =School_Listing[[#This Row],[School Code]] -> 15 | O147: 97 | P147: WEST CARROLL SP DIST
A148: 93 | B148: HUNTINGDON SPECIAL SCHOOL DISTRICT | C148: =School_Listing[[#This Row],[System Code]] -> 93 | D148: 7001 | E148: =School_Listing[[#This Row],[System Code]]&School_Listing[[#This Row],[School Code]] -> 937001 | F148: Northwest Head Start - Huntingdon | G148: =School_Listing[[#This Row],[School Code]] -> 7001 | O148: 960 | P148: WEST TENNESSEE SCHOOL FOR THE DEAF
A149: 94 | B149: MCKENZIE | C149: =School_Listing[[#This Row],[System Code]] -> 94 | D149: 5 | E149: =School_Listing[[#This Row],[System Code]]&School_Listing[[#This Row],[School Code]] -> 945 | F149: McKenzie Elementary | G149: =School_Listing[[#This Row],[School Code]] -> 5 | O149: 930 | P149: WHITE COUNTY
A150: 94 | B150: MCKENZIE | C150: =School_Listing[[#This Row],[System Code]] -> 94 | D150: 10 | E150: =School_Listing[[#This Row],[System Code]]&School_Listing[[#This Row],[School Code]] -> 9410 | F150: McKenzie High School | G150: =School_Listing[[#This Row],[School Code]] -> 10 | O150: 940 | P150: WILLIAMSON COUNTY
A151: 94 | B151: MCKENZIE | C151: =School_Listing[[#This Row],[System Code]] -> 94 | D151: 15 | E151: =School_Listing[[#This Row],[System Code]]&School_Listing[[#This Row],[School Code]] -> 9415 | F151: McKenzie Middle School | G151: =School_Listing[[#This Row],[School Code]] -> 15 | O151: 950 | P151: WILSON COUNTY
A152: 95 | B152: SOUTH CARROLL | C152: =School_Listing[[#This Row],[System Code]] -> 95 | D152: 5 | E152: =School_Listing[[#This Row],[System Code]]&School_Listing[[#This Row],[School Code]] -> 955 | F152: Clarksburg School | G152: =School_Listing[[#This Row],[School Code]] -> 5
A153: 97 | B153: WEST CARROLL SP DIST | C153: =School_Listing[[#This Row],[System Code]] -> 97 | D153: 25 | E153: =School_Listing[[#This Row],[System Code]]&School_Listing[[#This Row],[School Code]] -> 9725 | F153: West Carroll Elementary School | G153: =School_Listing[[#This Row],[School Code]] -> 25
A154: 97 | B154: WEST CARROLL SP DIST | C154: =School_Listing[[#This Row],[System Code]] -> 97 | D154: 5 | E154: =School_Listing[[#This Row],[System Code]]&School_Listing[[#This Row],[School Code]] -> 975 | F154: West Carroll Junior/Senior High School | G154: =School_Listing[[#This Row],[School Code]] -> 5
A155: 97 | B155: WEST CARROLL SP DIST | C155: =School_Listing[[#This Row],[System Code]] -> 97 | D155: 20 | E155: =School_Listing[[#This Row],[System Code]]&School_Listing[[#This Row],[School Code]] -> 9720 | F155: West Carroll Primary | G155: =School_Listing[[#This Row],[School Code]] -> 20
A156: 100 | B156: CARTER COUNTY | C156: =School_Listing[[#This Row],[System Code]] -> 100 | D156: 4 | E156: =School_Listing[[#This Row],[System Code]]&School_Listing[[#This Row],[School Code]] -> 1004 | F156: Carter County Online Academy | G156: =School_Listing[[#This Row],[School Code]] -> 4
A157: 100 | B157: CARTER COUNTY | C157: =School_Listing[[#This Row],[System Code]] -> 100 | D157: 5 | E157: =School_Listing[[#This Row],[System Code]]&School_Listing[[#This Row],[School Code]] -> 1005 | F157: Central Elementary | G157: =School_Listing[[#This Row],[School Code]] -> 5
A158: 100 | B158: CARTER COUNTY | C158: =School_Listing[[#This Row],[System Code]] -> 100 | D158: 13 | E158: =School_Listing[[#This Row],[System Code]]&School_Listing[[#This Row],[School Code]] -> 10013 | F158: Cloudland Elementary School | G158: =School_Listing[[#This Row],[School Code]] -> 13
A159: 100 | B159: CARTER COUNTY | C159: =School_Listing[[#This Row],[System Code]] -> 100 | D159: 15 | E159: =School_Listing[[#This Row],[System Code]]&School_Listing[[#This Row],[School Code]] -> 10015 | F159: Cloudland High School | G159: =School_Listing[[#This Row],[School Code]] -> 15
A160: 100 | B160: CARTER COUNTY | C160: =School_Listing[[#This Row],[System Code]] -> 100 | D160: 25 | E160: =School_Listing[[#This Row],[System Code]]&School_Listing[[#This Row],[School Code]] -> 10025 | F160: Hampton Elementary | G160: =School_Listing[[#This Row],[School Code]] -> 25
A161: 100 | B161: CARTER COUNTY | C161: =School_Listing[[#This Row],[System Code]] -> 100 | D161: 30 | E161: =School_Listing[[#This Row],[System Code]]&School_Listing[[#This Row],[School Code]] -> 10030 | F161: Hampton High School | G161: =School_Listing[[#This Row],[School Code]] -> 30
A162: 100 | B162: CARTER COUNTY | C162: =School_Listing[[#This Row],[System Code]] -> 100 | D162: 35 | E162: =School_Listing[[#This Row],[System Code]]&School_Listing[[#This Row],[School Code]] -> 10035 | F162: Happy Valley Elementary | G162: =School_Listing[[#This Row],[School Code]] -> 35
A163: 100 | B163: CARTER COUNTY | C163: =School_Listing[[#This Row],[System Code]] -> 100 | D163: 40 | E163: =School_Listing[[#This Row],[System Code]]&School_Listing[[#This Row],[School Code]] -> 10040 | F163: Happy Valley High School | G163: =School_Listing[[#This Row],[School Code]] -> 40
A164: 100 | B164: CARTER COUNTY | C164: =School_Listing[[#This Row],[System Code]] -> 100 | D164: 43 | E164: =School_Listing[[#This Row],[System Code]]&School_Listing[[#This Row],[School Code]] -> 10043 | F164: Happy Valley Middle School | G164: =School_Listing[[#This Row],[School Code]] -> 43
A165: 100 | B165: CARTER COUNTY | C165: =School_Listing[[#This Row],[System Code]] -> 100 | D165: 45 | E165: =School_Listing[[#This Row],[System Code]]&School_Listing[[#This Row],[School Code]] -> 10045 | F165: Hunter Elementary | G165: =School_Listing[[#This Row],[School Code]] -> 45
A166: 100 | B166: CARTER COUNTY | C166: =School_Listing[[#This Row],[System Code]] -> 100 | D166: 50 | E166: =School_Listing[[#This Row],[System Code]]&School_Listing[[#This Row],[School Code]] -> 10050 | F166: Keenburg Elementary | G166: =School_Listing[[#This Row],[School Code]] -> 50
A167: 100 | B167: CARTER COUNTY | C167: =School_Listing[[#This Row],[System Code]] -> 100 | D167: 55 | E167: =School_Listing[[#This Row],[System Code]]&School_Listing[[#This Row],[School Code]] -> 10055 | F167: Little Milligan | G167: =School_Listing[[#This Row],[School Code]] -> 55
A168: 100 | B168: CARTER COUNTY | C168: =School_Listing[[#This Row],[System Code]] -> 100 | D168: 52 | E168: =School_Listing[[#This Row],[System Code]]&School_Listing[[#This Row],[School Code]] -> 10052 | F168: Siam Learning Center | G168: =School_Listing[[#This Row],[School Code]] -> 52
A169: 100 | B169: CARTER COUNTY | C169: =School_Listing[[#This Row],[System Code]] -> 100 | D169: 85 | E169: =School_Listing[[#This Row],[System Code]]&School_Listing[[#This Row],[School Code]] -> 10085 | F169: Unaka Elementary | G169: =School_Listing[[#This Row],[School Code]] -> 85
A170: 100 | B170: CARTER COUNTY | C170: =School_Listing[[#This Row],[System Code]] -> 100 | D170: 90 | E170: =School_Listing[[#This Row],[System Code]]&School_Listing[[#This Row],[School Code]] -> 10090 | F170: Unaka High School | G170: =School_Listing[[#This Row],[School Code]] -> 90
A171: 100 | B171: CARTER COUNTY | C171: =School_Listing[[#This Row],[System Code]] -> 100 | D171: 95 | E171: =School_Listing[[#This Row],[System Code]]&School_Listing[[#This Row],[School Code]] -> 10095 | F171: Valley Forge Elementary | G171: =School_Listing[[#This Row],[School Code]] -> 95
A172: 101 | B172: ELIZABETHTON | C172: =School_Listing[[#This Row],[System Code]] -> 101 | D172: 10 | E172: =School_Listing[[#This Row],[System Code]]&School_Listing[[#This Row],[School Code]] -> 10110 | F172: East Side Elementary | G172: =School_Listing[[#This Row],[School Code]] -> 10
A173: 101 | B173: ELIZABETHTON | C173: =School_Listing[[#This Row],[System Code]] -> 101 | D173: 15 | E173: =School_Listing[[#This Row],[System Code]]&School_Listing[[#This Row],[School Code]] -> 10115 | F173: Elizabethton High School | G173: =School_Listing[[#This Row],[School Code]] -> 15
A174: 101 | B174: ELIZABETHTON | C174: =School_Listing[[#This Row],[System Code]] -> 101 | D174: 20 | E174: =School_Listing[[#This Row],[System Code]]&School_Listing[[#This Row],[School Code]] -> 10120 | F174: Harold McCormick Elementary | G174: =School_Listing[[#This Row],[School Code]] -> 20
A175: 101 | B175: ELIZABETHTON | C175: =School_Listing[[#This Row],[System Code]] -> 101 | D175: 25 | E175: =School_Listing[[#This Row],[System Code]]&School_Listing[[#This Row],[School Code]] -> 10125 | F175: T A Dugger Junior High School | G175: =School_Listing[[#This Row],[School Code]] -> 25
A176: 101 | B176: ELIZABETHTON | C176: =School_Listing[[#This Row],[System Code]] -> 101 | D176: 30 | E176: =School_Listing[[#This Row],[System Code]]&School_Listing[[#This Row],[School Code]] -> 10130 | F176: West Side Elementary | G176: =School_Listing[[#This Row],[School Code]] -> 30
A177: 110 | B177: CHEATHAM COUNTY | C177: =School_Listing[[#This Row],[System Code]] -> 110 | D177: 5 | E177: =School_Listing[[#This Row],[System Code]]&School_Listing[[#This Row],[School Code]] -> 1105 | F177: Ashland City Elementary | G177: =School_Listing[[#This Row],[School Code]] -> 5
A178: 110 | B178: CHEATHAM COUNTY | C178: =School_Listing[[#This Row],[System Code]] -> 110 | D178: 10 | E178: =School_Listing[[#This Row],[System Code]]&School_Listing[[#This Row],[School Code]] -> 11010 | F178: Cheatham Co Central | G178: =School_Listing[[#This Row],[School Code]] -> 10
A179: 110 | B179: CHEATHAM COUNTY | C179: =School_Listing[[#This Row],[System Code]] -> 110 | D179: 45 | E179: =School_Listing[[#This Row],[System Code]]&School_Listing[[#This Row],[School Code]] -> 11045 | F179: Cheatham County Virtual School | G179: =School_Listing[[#This Row],[School Code]] -> 45
A180: 110 | B180: CHEATHAM COUNTY | C180: =School_Listing[[#This Row],[System Code]] -> 110 | D180: 14 | E180: =School_Listing[[#This Row],[System Code]]&School_Listing[[#This Row],[School Code]] -> 11014 | F180: Cheatham Middle School | G180: =School_Listing[[#This Row],[School Code]] -> 14
A181: 110 | B181: CHEATHAM COUNTY | C181: =School_Listing[[#This Row],[System Code]] -> 110 | D181: 15 | E181: =School_Listing[[#This Row],[System Code]]&School_Listing[[#This Row],[School Code]] -> 11015 | F181: East Cheatham Elementary | G181: =School_Listing[[#This Row],[School Code]] -> 15
A182: 110 | B182: CHEATHAM COUNTY | C182: =School_Listing[[#This Row],[System Code]] -> 110 | D182: 19 | E182: =School_Listing[[#This Row],[System Code]]&School_Listing[[#This Row],[School Code]] -> 11019 | F182: Harpeth High School | G182: =School_Listing[[#This Row],[School Code]] -> 19
A183: 110 | B183: CHEATHAM COUNTY | C183: =School_Listing[[#This Row],[System Code]] -> 110 | D183: 18 | E183: =School_Listing[[#This Row],[System Code]]&School_Listing[[#This Row],[School Code]] -> 11018 | F183: Harpeth Middle School | G183: =School_Listing[[#This Row],[School Code]] -> 18
A184: 110 | B184: CHEATHAM COUNTY | C184: =School_Listing[[#This Row],[System Code]] -> 110 | D184: 20 | E184: =School_Listing[[#This Row],[System Code]]&School_Listing[[#This Row],[School Code]] -> 11020 | F184: Kingston Springs Elementary | G184: =School_Listing[[#This Row],[School Code]] -> 20
A185: 110 | B185: CHEATHAM COUNTY | C185: =School_Listing[[#This Row],[System Code]] -> 110 | D185: 25 | E185: =School_Listing[[#This Row],[System Code]]&School_Listing[[#This Row],[School Code]] -> 11025 | F185: Pegram Elementary Fine Arts Magnet School | G185: =School_Listing[[#This Row],[School Code]] -> 25
A186: 110 | B186: CHEATHAM COUNTY | C186: =School_Listing[[#This Row],[System Code]] -> 110 | D186: 30 | E186: =School_Listing[[#This Row],[System Code]]&School_Listing[[#This Row],[School Code]] -> 11030 | F186: Pleasant View Elementary | G186: =School_Listing[[#This Row],[School Code]] -> 30
A187: 110 | B187: CHEATHAM COUNTY | C187: =School_Listing[[#This Row],[System Code]] -> 110 | D187: 40 | E187: =School_Listing[[#This Row],[System Code]]&School_Listing[[#This Row],[School Code]] -> 11040 | F187: Riverside Academy | G187: =School_Listing[[#This Row],[School Code]] -> 40
A188: 110 | B188: CHEATHAM COUNTY | C188: =School_Listing[[#This Row],[System Code]] -> 110 | D188: 33 | E188: =School_Listing[[#This Row],[System Code]]&School_Listing[[#This Row],[School Code]] -> 11033 | F188: Sycamore High School | G188: =School_Listing[[#This Row],[School Code]] -> 33
A189: 110 | B189: CHEATHAM COUNTY | C189: =School_Listing[[#This Row],[System Code]] -> 110 | D189: 32 | E189: =School_Listing[[#This Row],[System Code]]&School_Listing[[#This Row],[School Code]] -> 11032 | F189: Sycamore Middle School | G189: =School_Listing[[#This Row],[School Code]] -> 32
A190: 110 | B190: CHEATHAM COUNTY | C190: =School_Listing[[#This Row],[System Code]] -> 110 | D190: 35 | E190: =School_Listing[[#This Row],[System Code]]&School_Listing[[#This Row],[School Code]] -> 11035 | F190: West Cheatham Elementary | G190: =School_Listing[[#This Row],[School Code]] -> 35
A191: 120 | B191: CHESTER COUNTY | C191: =School_Listing[[#This Row],[System Code]] -> 120 | D191: 8 | E191: =School_Listing[[#This Row],[System Code]]&School_Listing[[#This Row],[School Code]] -> 1208 | F191: Chester County High School | G191: =School_Listing[[#This Row],[School Code]] -> 8
A192: 120 | B192: CHESTER COUNTY | C192: =School_Listing[[#This Row],[System Code]] -> 120 | D192: 10 | E192: =School_Listing[[#This Row],[System Code]]&School_Listing[[#This Row],[School Code]] -> 12010 | F192: Chester County Junior High School | G192: =School_Listing[[#This Row],[School Code]] -> 10
A193: 120 | B193: CHESTER COUNTY | C193: =School_Listing[[#This Row],[System Code]] -> 120 | D193: 5 | E193: =School_Listing[[#This Row],[System Code]]&School_Listing[[#This Row],[School Code]] -> 1205 | F193: Chester County Middle School | G193: =School_Listing[[#This Row],[School Code]] -> 5
A194: 120 | B194: CHESTER COUNTY | C194: =School_Listing[[#This Row],[System Code]] -> 120 | D194: 15 | E194: =School_Listing[[#This Row],[System Code]]&School_Listing[[#This Row],[School Code]] -> 12015 | F194: East Chester Elementary School | G194: =School_Listing[[#This Row],[School Code]] -> 15
A195: 120 | B195: CHESTER COUNTY | C195: =School_Listing[[#This Row],[System Code]] -> 120 | D195: 25 | E195: =School_Listing[[#This Row],[System Code]]&School_Listing[[#This Row],[School Code]] -> 12025 | F195: Jacks Creek Elementary | G195: =School_Listing[[#This Row],[School Code]] -> 25
A196: 120 | B196: CHESTER COUNTY | C196: =School_Listing[[#This Row],[System Code]] -> 120 | D196: 30 | E196: =School_Listing[[#This Row],[System Code]]&School_Listing[[#This Row],[School Code]] -> 12030 | F196: W Chester Elementary School | G196: =School_Listing[[#This Row],[School Code]] -> 30
A197: 130 | B197: CLAIBORNE COUNTY | C197: =School_Listing[[#This Row],[System Code]] -> 130 | D197: 5 | E197: =School_Listing[[#This Row],[System Code]]&School_Listing[[#This Row],[School Code]] -> 1305 | F197: Claiborne Adult High School | G197: =School_Listing[[#This Row],[School Code]] -> 5
A198: 130 | B198: CLAIBORNE COUNTY | C198: =School_Listing[[#This Row],[System Code]] -> 130 | D198: 110 | E198: =School_Listing[[#This Row],[System Code]]&School_Listing[[#This Row],[School Code]] -> 130110 | F198: Claiborne High School | G198: =School_Listing[[#This Row],[School Code]] -> 110
A199: 130 | B199: CLAIBORNE COUNTY | C199: =School_Listing[[#This Row],[System Code]] -> 130 | D199: 10 | E199: =School_Listing[[#This Row],[System Code]]&School_Listing[[#This Row],[School Code]] -> 13010 | F199: Claiborne Virtual Learning Academy | G199: =School_Listing[[#This Row],[School Code]] -> 10
A200: 130 | B200: CLAIBORNE COUNTY | C200: =School_Listing[[#This Row],[System Code]] -> 130 | D200: 35 | E200: =School_Listing[[#This Row],[System Code]]&School_Listing[[#This Row],[School Code]] -> 13035 | F200: Clairfield Elementary | G200: =School_Listing[[#This Row],[School Code]] -> 35
... 1709 more rows

Sheet ReportCard (2) (hidden)
A5: Student Health Report Card 2016-2017
A8: The purpose of these screenings is to provide you with an overview of the student's current health. This screening is not a diagnosis and should not be consider a medical examination. It is advise that the student receive regular wellness check-ups with his/her pediatrician as deemed necessary.
A12: Student Information | G12: Basic Health Profile
A13: Name | B13: Alfredo Ramirez | G13: Birth Date | H13: 10/17/1985 | I13: Blood Pressure | K13: =B31 & "/" & B32 -> 120/80
A14: School | B14: Humboldt High School | G14: Gender | H14: Male | I14: Body Mass Index | K14: 24.5
A15: Grade | B15: HS | G15: Weight | H15: 175 lbs.
A16: School ID | B16: 960223665 | G16: Height | H16: 60 in.
A17: Address | B17: 9500 Some Street Apt E15 Humboldt, TN 38343 | G17: Exam Date | H17: 10/4/2016
A20: Blood Pressure Screening | G20: Body Mass Index Screening
A21: Blood pressure is the force of blood pushing against the walls of your arteries, which carry blood from your heart to other parts of your body. Blood pressure normally rises and falls throughout the day. But if it stays high for a long time, it can damage your heart and lead to health problems. | G21: Body Mass Index (BMI) is a person's weight in kilograms divided by the square of height in meters For children and teens, BMI is age- and sex-specific and is often referred to as BMI-for-age. In children, a high amount of body fat can lead to weight-related diseases and other health issues and being underweight can also put one at risk for health issues.
A28: Blood Pressure (BP) Category | G28: BMI Category
A29: ="Your Blood Pressure Reading is " & B31 & "/" & B32 & " mmHG" -> Your Blood Pressure Reading is 120/80 mmHG | G29: ="Your BMI Reading is " & K14 & " kg/m2" -> Your BMI Reading is 24.5 kg/m2
A31: Systolic: | B31: 120 | C31: mmHg | G31: =IF(K14="","No information available.","If the student's BMI does not fall between " & TRIM(MID(SUBSTITUTE(G38," ",REPT(" ",LEN(G38))), (5-1)*LEN(G38)+1, LEN(G38))) & " and " & TRIM(MID(SUBSTITUTE(G38," ",REPT(" ",LEN(G38))), (8-1)*LEN(G38)+1, LEN(G38))) & ", then it is recommended taht the student follows up with his/her pediatrician. The table below can be used to help categorize the student's weight.") -> If the student's BMI does not fall between 16.507 and 23.38657, then it is recommended taht the student follows up with his/her pediatrician. The table below can be used to help categorize the student's weight.
A32: Diastolic: | B32: 80 | C32: mmHg
A33: =IF( OR(B31="",B32=""),"No information available.","If the student's systolic BP is above " & A45 & " OR diasoltic BP is above " & B45 & ", then it is recommended that the student follows up with his/her pediatrician. The table below can be used to help categorize the student's BP.") -> If the student's systolic BP is above 108 OR diasoltic BP is above 64, then it is recommended that the student follows up with his/her pediatrician. The table below can be used to help categorize the student's BP.
G35: If the student's Body Mass Index (BMI)…
G36: Is below 16.507
A37: BLOOD PRESSURE | C37: BLOOD PRESSURE CATEGORY | G37: then the student may be Underweight.
A38: Systolic | B38: Diastolic | G38: Is at OR above 16.507 but below 23.38657
G39: then the student may be Normal weight.
C40: Stage 2 Hypertension | G40: Is at OR above 23.38657 but below 26.77374
A41: 125 | B41: 82 | G41: then the student may be Overweight.
C42: Stage 1 Hypertension | G42: Is at OR above 26.77374
A43: 121 | B43: 78 | G43: then the student may be Obese.
C44: Pre-Hypertension
A45: 108 | B45: 64 | G45: Additional Health Screenings
C46: Normal | G46: If the student failed any of these screenings it suggested that you follow-up with his/her pediatrician.
A47: Instructions: Find where the student's systolic BP is located on left side of the graph and then find where the diastolic is located on the right side of the graph. Select the highest category (with normal being the lowest and Stage 2 being the highest).
G48: Vision | H48: Failed | J48: Dental | K48: Passed
G49: Hearing | H49: Passed | I49: Color Vision | K49: NA
G50: Scoliosis | H50: Passed
G51: *NOTE: NA indicates that no information is available.

Sheet PACER Report
A1: LEA Code | B1: School Code | C1: System Name | D1: School Name | E1: Exam Date | F1: Grade Level | G1: Student ID Number | H1: Student Last Name | I1: Student First Name | J1: Student Middle Name | K1: Date of Birth | L1: Gender | M1: Height (inches) | N1: Weight (pounds) | O1: PACER 15m | P1: PACER 20m | Q1: BMI | R1: Gender Code | S1: Age in Years | T1: V02 Max | U1: Low Fitness Level | V1: High Fitness Level | W1: Fitness Level
A2: 940 | B2: 88 | C2: Williamson County | D2: Westwood Elementary School | E2: 2015-10-03 | F2: HS | G2: 1234567890 | H2: Doe | I2: Jane | J2: G | K2: 2000-10-03 | L2: F | M2: 60.5 | N2: 90 | O2: 45 | Q2: =IFERROR(Table4[Weight (pounds)]/(Table4[Height (inches)]^2)*703,"") -> 17.28570453 | R2: =IF(Table4[Gender]="F",2,1) -> 2 | S2: =IF(INT((Table4[Exam Date]-Table4[Date of Birth])/365)>17,18,INT((Table4[Exam Date]-Table4[Date of Birth])/365)) -> 15 | T2: =IF(OR(Table4[[PACER 15m ]]<>"",Table4[PACER 20m]<>""),IF(Table4[PACER 20m]<>"",0.21*(Table4[PACER 20m])-0.79*Table4[BMI]+4.27*(2-Table4[Gender Code])+0.79*Table4[Age in Years]+40.35,0.21*(Table4[[PACER 15m ]])-0.79*Table4[BMI]+4.27*(2-Table4[Gender Code])+0.79*Table4[Age in Years]+40.35),"") -> 47.99429342 | U2: =IF(Table4[Gender Code]=1,VLOOKUP(Table4[Age in Years],HealthFitnessLevel!$H$8:$K$16,2,FALSE),IF(Table4[Gender Code]=2,VLOOKUP(Table4[Age in Years],HealthFitnessLevel!$A$8:$D$16,2,FALSE),"")) -> 36 | V2: =IF(Table4[Gender Code]=1,VLOOKUP(Table4[Age in Years],HealthFitnessLevel!$H$8:$K$16,4,FALSE),IF(Table4[Gender Code]=2,VLOOKUP(Table4[Age in Years],HealthFitnessLevel!$A$8:$D$16,4,FALSE),"")) -> 39.1 | W2: =IFERROR(IF(T2<>"",IF(T2<=U2,"Needs Improvement (Health Risk)",IF(T2>=V2,"Healthy Fitness Zone","Needs Improvement")),""), "Out of Scope") -> Healthy Fitness Zone

Sheet PACER Info (hidden)
B4: Count of School Name | C4: Column Labels
B5: Row Labels | C5: Healthy Fitness Zone | D5: Grand Total
B6: Williamson County | C6: 1 | D6: 1
B7: Grand Total | C7: 1 | D7: 1

Sheet PACER Printoff
A1: District Name | B1: School Name | C1: Grade Level | D1: Student Last Name | E1: Student First Name | F1: Student Middle Name | G1: 15M PACER Laps | H1: 20M PACER Laps

Sheet BPTable (2020)
A1: Age yrs | B1: Systolic BP (mmHg) | J1: Diastolic BP (mmHg) | S1: BP Percentile
B2: 5th | C2: 10th | D2: 25th | E2: 50th | G2: 75th | H2: 90th | I2: 95th | J2: 5th | K2: 10th | M2: 25th | N2: 50th | O2: 75th | P2: 90th | Q2: 95th
A3: 2 | B3: 31.9 | C3: 32.4 | D3: 33.3 | E3: 34.2 | G3: 35.1 | H3: 36.0 | I3: 36.5 | J3: 31.9 | K3: 32.4 | M3: 33.3 | N3: 34.2 | O3: 35.1 | P3: 36.0 | Q3: 36.5 | S3: Height - inches
B4: 84 | C4: 85 | D4: 87 | E4: 88 | G4: 90 | H4: 92 | I4: 92 | J4: 39 | K4: 40 | M4: 41 | N4: 42 | O4: 43 | P4: 44 | Q4: 44 | S4: NT
B5: 97 | C5: 99 | D5: 100 | E5: 102 | G5: 104 | H5: 105 | I5: 106 | J5: 54 | K5: 55 | M5: 56 | N5: 57 | O5: 58 | P5: 58 | Q5: 59 | S5: PreHT
B6: 101 | C6: 102 | D6: 104 | E6: 106 | G6: 108 | H6: 109 | I6: 110 | J6: 59 | K6: 59 | M6: 60 | N6: 61 | O6: 62 | P6: 63 | Q6: 63 | S6: Stage 1 HT
B7: 114 | C7: 115 | D7: 116 | E7: 118 | G7: 120 | H7: 122 | I7: 122 | J7: 71 | K7: 72 | M7: 73 | N7: 74 | O7: 75 | P7: 76 | Q7: 76 | S7: Stage 2 HT
A8: 3 | B8: 35.1 | C8: 35.6 | D8: 36.5 | E8: 37.5 | G8: 38.6 | H8: 39.5 | I8: 40.1 | J8: 35.1 | K8: 35.6 | M8: 36.5 | N8: 37.5 | O8: 38.6 | P8: 39.5 | Q8: 40.1 | S8: Height - inches
B9: 86 | C9: 87 | D9: 89 | E9: 91 | G9: 93 | H9: 94 | I9: 95 | J9: 44 | K9: 44 | M9: 45 | N9: 46 | O9: 47 | P9: 48 | Q9: 48 | S9: NT
B10: 100 | C10: 101 | D10: 103 | E10: 105 | G10: 107 | H10: 108 | I10: 109 | J10: 59 | K10: 59 | M10: 60 | N10: 61 | O10: 62 | P10: 63 | Q10: 63 | S10: PreHT
B11: 104 | C11: 105 | D11: 107 | E11: 109 | G11: 110 | H11: 112 | I11: 113 | J11: 63 | K11: 63 | M11: 64 | N11: 65 | O11: 66 | P11: 67 | Q11: 67 | S11: Stage 1 HT
B12: 116 | C12: 117 | D12: 119 | E12: 121 | G12: 123 | H12: 124 | I12: 125 | J12: 76 | K12: 76 | M12: 77 | N12: 78 | O12: 79 | P12: 80 | Q12: 80 | S12: Stage 2 HT
A13: 4 | B13: 37.6 | C13: 38.2 | D13: 39.3 | E13: 40.4 | G13: 41.5 | H13: 42.5 | I13: 43.1 | J13: 37.6 | K13: 38.2 | M13: 39.3 | N13: 40.4 | O13: 41.5 | P13: 42.5 | Q13: 43.1 | S13: Height - inches
B14: 88 | C14: 89 | D14: 91 | E14: 93 | G14: 95 | H14: 96 | I14: 97 | J14: 47 | K14: 48 | M14: 49 | N14: 50 | O14: 51 | P14: 51 | Q14: 52 | S14: NT
B15: 102 | C15: 103 | D15: 105 | E15: 107 | G15: 109 | H15: 110 | I15: 111 | J15: 62 | K15: 63 | M15: 64 | N15: 65 | O15: 66 | P15: 66 | Q15: 67 | S15: PreHT
B16: 106 | C16: 107 | D16: 109 | E16: 111 | G16: 112 | H16: 114 | I16: 115 | J16: 66 | K16: 67 | M16: 68 | N16: 69 | O16: 70 | P16: 71 | Q16: 71 | S16: Stage 1 HT
B17: 118 | C17: 119 | D17: 121 | E17: 123 | G17: 125 | H17: 126 | I17: 127 | J17: 79 | K17: 80 | M17: 81 | N17: 82 | O17: 83 | P17: 83 | Q17: 84 | S17: Stage 2 HT
A18: 5 | B18: 39.9 | C18: 40.6 | D18: 41.7 | E18: 43.0 | G18: 44.2 | H18: 45.3 | I18: 46.0 | J18: 39.9 | K18: 40.6 | M18: 41.7 | N18: 43.0 | O18: 44.2 | P18: 45.3 | Q18: 46.0 | S18: Height - inches
B19: 90 | C19: 91 | D19: 93 | E19: 95 | G19: 96 | H19: 98 | I19: 98 | J19: 50 | K19: 51 | M19: 52 | N19: 53 | O19: 54 | P19: 55 | Q19: 55 | S19: NT
B20: 104 | C20: 105 | D20: 106 | E20: 108 | G20: 110 | H20: 111 | I20: 112 | J20: 65 | K20: 66 | M20: 67 | N20: 68 | O20: 69 | P20: 69 | Q20: 70 | S20: PreHT
B21: 108 | C21: 109 | D21: 110 | E21: 112 | G21: 114 | H21: 115 | I21: 116 | J21: 69 | K21: 70 | M21: 71 | N21: 72 | O21: 73 | P21: 74 | Q21: 74 | S21: Stage 1 HT
B22: 120 | C22: 121 | D22: 123 | E22: 125 | G22: 126 | H22: 128 | I22: 128 | J22: 82 | K22: 83 | M22: 84 | N22: 85 | O22: 86 | P22: 86 | Q22: 87 | S22: Stage 2 HT
A23: 6 | B23: 42.2 | C23: 43.0 | D23: 44.2 | E23: 45.5 | G23: 46.9 | H23: 48.1 | I23: 48.8 | J23: 42.2 | K23: 43.0 | M23: 44.2 | N23: 45.5 | O23: 46.9 | P23: 48.1 | Q23: 48.8 | S23: Height - inches
B24: 91 | C24: 92 | D24: 94 | E24: 96 | G24: 98 | H24: 99 | I24: 100 | J24: 53 | K24: 53 | M24: 54 | N24: 55 | O24: 56 | P24: 57 | Q24: 57 | S24: NT
B25: 105 | C25: 106 | D25: 108 | E25: 110 | G25: 111 | H25: 113 | I25: 113 | J25: 68 | K25: 68 | M25: 69 | N25: 70 | O25: 71 | P25: 72 | Q25: 72 | S25: PreHT
B26: 109 | C26: 110 | D26: 112 | E26: 114 | G26: 115 | H26: 117 | I26: 117 | J26: 72 | K26: 72 | M26: 73 | N26: 74 | O26: 75 | P26: 76 | Q26: 76 | S26: Stage 1 HT
B27: 121 | C27: 122 | D27: 124 | E27: 126 | G27: 128 | H27: 129 | I27: 130 | J27: 85 | K27: 85 | M27: 86 | N27: 87 | O27: 88 | P27: 89 | Q27: 89 | S27: Stage 2 HT
A28: 7 | B28: 44.6 | C28: 45.3 | D28: 46.6 | E28: 48.0 | G28: 49.5 | H28: 50.8 | I28: 51.6 | J28: 44.6 | K28: 45.3 | M28: 46.6 | N28: 48.0 | O28: 49.5 | P28: 50.8 | Q28: 51.6 | S28: Height - inches
B29: 92 | C29: 94 | D29: 95 | E29: 97 | G29: 99 | H29: 100 | I29: 101 | J29: 55 | K29: 55 | M29: 56 | N29: 57 | O29: 58 | P29: 59 | Q29: 59 | S29: NT
B30: 106 | C30: 107 | D30: 109 | E30: 111 | G30: 113 | H30: 114 | I30: 115 | J30: 70 | K30: 70 | M30: 71 | N30: 72 | O30: 73 | P30: 74 | Q30: 74 | S30: PreHT
B31: 110 | C31: 111 | D31: 113 | E31: 115 | G31: 117 | H31: 118 | I31: 119 | J31: 74 | K31: 74 | M31: 75 | N31: 76 | O31: 77 | P31: 78 | Q31: 78 | S31: Stage 1 HT
B32: 122 | C32: 123 | D32: 125 | E32: 127 | G32: 129 | H32: 130 | I32: 131 | J32: 87 | K32: 87 | M32: 88 | N32: 89 | O32: 90 | P32: 91 | Q32: 91 | S32: Stage 2 HT
A33: 8 | B33: 46.8 | C33: 47.6 | D33: 48.9 | E33: 50.4 | G33: 52.0 | H33: 53.4 | I33: 54.3 | J33: 46.8 | K33: 47.6 | M33: 48.9 | N33: 50.4 | O33: 52.0 | P33: 53.4 | Q33: 54.3 | S33: Height - inches
B34: 94 | C34: 95 | D34: 97 | E34: 99 | G34: 100 | H34: 102 | I34: 102 | J34: 56 | K34: 57 | M34: 58 | N34: 59 | O34: 60 | P34: 60 | Q34: 61 | S34: NT
B35: 107 | C35: 109 | D35: 110 | E35: 112 | G35: 114 | H35: 115 | I35: 116 | J35: 71 | K35: 72 | M35: 72 | N35: 73 | O35: 74 | P35: 75 | Q35: 76 | S35: PreHT
B36: 111 | C36: 112 | D36: 114 | E36: 116 | G36: 118 | H36: 119 | I36: 120 | J36: 75 | K36: 76 | M36: 77 | N36: 78 | O36: 79 | P36: 79 | Q36: 80 | S36: Stage 1 HT
B37: 124 | C37: 125 | D37: 127 | E37: 128 | G37: 130 | H37: 132 | I37: 132 | J37: 88 | K37: 89 | M37: 90 | N37: 91 | O37: 92 | P37: 92 | Q37: 93 | S37: Stage 2 HT
A38: 9 | B38: 48.7 | C38: 49.6 | D38: 51.0 | E38: 52.7 | G38: 54.3 | H38: 55.8 | I38: 56.7 | J38: 48.7 | K38: 49.6 | M38: 51.0 | N38: 52.7 | O38: 54.3 | P38: 55.8 | Q38: 56.7 | S38: Height - inches
B39: 95 | C39: 96 | D39: 98 | E39: 100 | G39: 102 | H39: 103 | I39: 104 | J39: 57 | K39: 58 | M39: 59 | N39: 60 | O39: 61 | P39: 61 | Q39: 62 | S39: NT
B40: 109 | C40: 110 | D40: 112 | E40: 114 | G40: 115 | H40: 117 | I40: 118 | J40: 72 | K40: 73 | M40: 74 | N40: 75 | O40: 76 | P40: 76 | Q40: 77 | S40: PreHT
B41: 113 | C41: 114 | D41: 116 | E41: 118 | G41: 119 | H41: 121 | I41: 121 | J41: 76 | K41: 77 | M41: 78 | N41: 79 | O41: 80 | P41: 81 | Q41: 81 | S41: Stage 1 HT
B42: 125 | C42: 126 | D42: 128 | E42: 130 | G42: 132 | H42: 133 | I42: 134 | J42: 89 | K42: 90 | M42: 91 | N42: 92 | O42: 93 | P42: 93 | Q42: 94 | S42: Stage 2 HT
A43: 10 | B43: 50.5 | C43: 51.4 | D43: 52.9 | E43: 54.7 | G43: 56.4 | H43: 58.0 | I43: 59.0 | J43: 50.5 | K43: 51.4 | M43: 52.9 | N43: 54.7 | O43: 56.4 | P43: 58.0 | Q43: 59.0 | S43: Height - inches
B44: 97 | C44: 98 | D44: 100 | E44: 102 | G44: 103 | H44: 105 | I44: 106 | J44: 58 | K44: 59 | M44: 60 | N44: 61 | O44: 61 | P44: 62 | Q44: 63 | S44: NT
B45: 111 | C45: 112 | D45: 114 | E45: 115 | G45: 117 | H45: 119 | I45: 119 | J45: 73 | K45: 73 | M45: 74 | N45: 75 | O45: 76 | P45: 77 | Q45: 78 | S45: PreHT
B46: 115 | C46: 116 | D46: 117 | E46: 119 | G46: 121 | H46: 122 | I46: 123 | J46: 77 | K46: 78 | M46: 79 | N46: 80 | O46: 81 | P46: 81 | Q46: 82 | S46: Stage 1 HT
B47: 127 | C47: 128 | D47: 130 | E47: 132 | G47: 133 | H47: 135 | I47: 135 | J47: 90 | K47: 91 | M47: 91 | N47: 93 | O47: 93 | P47: 94 | Q47: 95 | S47: Stage 2 HT
A48: 11 | B48: 52.1 | C48: 53.1 | D48: 54.7 | E48: 56.6 | G48: 58.5 | H48: 60.2 | I48: 61.2 | J48: 52.1 | K48: 53.1 | M48: 54.7 | N48: 56.6 | O48: 58.5 | P48: 60.2 | Q48: 61.2 | S48: Height - inches
B49: 99 | C49: 100 | D49: 102 | E49: 104 | G49: 105 | H49: 107 | I49: 107 | J49: 59 | K49: 59 | M49: 60 | N49: 61 | O49: 62 | P49: 63 | Q49: 63 | S49: NT
B50: 113 | C50: 114 | D50: 115 | E50: 117 | G50: 119 | H50: 120 | I50: 121 | J50: 74 | K50: 74 | M50: 75 | N50: 76 | O50: 77 | P50: 78 | Q50: 78 | S50: PreHT
B51: 117 | C51: 118 | D51: 119 | E51: 121 | G51: 123 | H51: 124 | I51: 125 | J51: 78 | K51: 78 | M51: 79 | N51: 80 | O51: 81 | P51: 82 | Q51: 82 | S51: Stage 1 HT
B52: 129 | C52: 130 | D52: 132 | E52: 134 | G52: 135 | H52: 137 | I52: 137 | J52: 91 | K52: 91 | M52: 92 | N52: 93 | O52: 94 | P52: 95 | Q52: 95 | S52: Stage 2 HT
A53: 12 | B53: 54.1 | C53: 55.1 | D53: 56.8 | E53: 58.8 | G53: 60.8 | H53: 62.6 | I53: 63.7 | J53: 54.1 | K53: 55.1 | M53: 56.8 | N53: 58.8 | O53: 60.8 | P53: 62.6 | Q53: 63.7 | S53: Height - inches
B54: 101 | C54: 102 | D54: 104 | E54: 106 | G54: 108 | H54: 109 | I54: 110 | J54: 59 | K54: 60 | M54: 61 | N54: 62 | O54: 63 | P54: 63 | Q54: 64 | S54: NT
B55: 115 | C55: 116 | D55: 118 | E55: 120 | G55: 121 | H55: 123 | I55: 123 | J55: 74 | K55: 75 | M55: 75 | N55: 76 | O55: 77 | P55: 78 | Q55: 79 | S55: PreHT
B56: 119 | C56: 120 | D56: 122 | E56: 123 | G56: 125 | H56: 127 | I56: 127 | J56: 78 | K56: 79 | M56: 80 | N56: 81 | O56: 82 | P56: 82 | Q56: 83 | S56: Stage 1 HT
B57: 131 | C57: 132 | D57: 134 | E57: 136 | G57: 138 | H57: 139 | I57: 140 | J57: 91 | K57: 92 | M57: 93 | N57: 94 | O57: 95 | P57: 95 | Q57: 96 | S57: Stage 2 HT
A58: 13 | B58: 56.5 | C58: 57.6 | D58: 59.5 | E58: 61.6 | G58: 63.7 | H58: 65.6 | I58: 66.7 | J58: 56.5 | K58: 57.6 | M58: 59.5 | N58: 61.6 | O58: 63.7 | P58: 65.6 | Q58: 66.7 | S58: Height - inches
B59: 104 | C59: 105 | D59: 106 | E59: 108 | G59: 110 | H59: 111 | I59: 112 | J59: 60 | K59: 60 | M59: 61 | N59: 62 | O59: 63 | P59: 64 | Q59: 64 | S59: NT
B60: 117 | C60: 118 | D60: 120 | E60: 122 | G60: 124 | H60: 125 | I60: 126 | J60: 75 | K60: 75 | M60: 76 | N60: 77 | O60: 78 | P60: 79 | Q60: 79 | S60: PreHT
B61: 121 | C61: 122 | D61: 124 | E61: 126 | G61: 128 | H61: 129 | I61: 130 | J61: 79 | K61: 79 | M61: 80 | N61: 81 | O61: 82 | P61: 83 | Q61: 83 | S61: Stage 1 HT
B62: 133 | C62: 135 | D62: 136 | E62: 138 | G62: 140 | H62: 141 | I62: 142 | J62: 92 | K62: 92 | M62: 93 | N62: 94 | O62: 95 | P62: 96 | Q62: 96 | S62: Stage 2 HT
A63: 14 | B63: 59.3 | C63: 60.5 | D63: 62.5 | E63: 64.6 | G63: 66.7 | H63: 68.6 | I63: 69.7 | J63: 59.3 | K63: 60.5 | M63: 62.5 | N63: 64.6 | O63: 66.7 | P63: 68.6 | Q63: 69.7 | S63: Height - inches
B64: 106 | C64: 107 | D64: 109 | E64: 111 | G64: 113 | H64: 114 | I64: 115 | J64: 60 | K64: 61 | M64: 62 | N64: 63 | O64: 64 | P64: 65 | Q64: 65 | S64: NT
B65: 120 | C65: 121 | D65: 123 | E65: 125 | G65: 126 | H65: 128 | I65: 128 | J65: 75 | K65: 76 | M65: 77 | N65: 78 | O65: 79 | P65: 79 | Q65: 80 | S65: PreHT
B66: 124 | C66: 125 | D66: 127 | E66: 128 | G66: 130 | H66: 132 | I66: 132 | J66: 80 | K66: 80 | M66: 81 | N66: 82 | O66: 83 | P66: 84 | Q66: 84 | S66: Stage 1 HT
B67: 136 | C67: 137 | D67: 139 | E67: 141 | G67: 143 | H67: 144 | I67: 145 | J67: 92 | K67: 93 | M67: 94 | N67: 95 | O67: 96 | P67: 97 | Q67: 97 | S67: Stage 2 HT
A68: 15 | B68: 61.7 | C68: 62.9 | D68: 64.9 | E68: 67.0 | G68: 69.0 | H68: 70.8 | I68: 71.8 | J68: 61.7 | K68: 62.9 | M68: 64.9 | N68: 67.0 | O68: 69.0 | P68: 70.8 | Q68: 71.8 | S68: Height - inches
B69: 109 | C69: 110 | D69: 112 | E69: 113 | G69: 115 | H69: 117 | I69: 117 | J69: 61 | K69: 62 | M69: 63 | N69: 64 | O69: 65 | P69: 66 | Q69: 66 | S69: NT
B70: 122 | C70: 124 | D70: 125 | E70: 127 | G70: 129 | H70: 130 | I70: 131 | J70: 76 | K70: 77 | M70: 78 | N70: 79 | O70: 80 | P70: 80 | Q70: 81 | S70: PreHT
B71: 126 | C71: 127 | D71: 129 | E71: 131 | G71: 133 | H71: 134 | I71: 135 | J71: 81 | K71: 81 | M71: 82 | N71: 83 | O71: 84 | P71: 85 | Q71: 85 | S71: Stage 1 HT
B72: 139 | C72: 140 | D72: 141 | E72: 143 | G72: 145 | H72: 147 | I72: 147 | J72: 93 | K72: 94 | M72: 95 | N72: 96 | O72: 97 | P72: 98 | Q72: 98 | S72: Stage 2 HT
A73: 16 | B73: 63.3 | C73: 64.5 | D73: 66.3 | E73: 68.4 | G73: 70.3 | H73: 72.0 | I73: 73.0 | J73: 63.3 | K73: 64.5 | M73: 66.3 | N73: 68.4 | O73: 70.3 | P73: 72.0 | Q73: 73.0 | S73: Height - inches
B74: 111 | C74: 112 | D74: 114 | E74: 116 | G74: 118 | H74: 119 | I74: 120 | J74: 63 | K74: 63 | M74: 64 | N74: 65 | O74: 66 | P74: 67 | Q74: 67 | S74: NT
B75: 125 | C75: 126 | D75: 128 | E75: 130 | G75: 131 | H75: 133 | I75: 134 | J75: 78 | K75: 78 | M75: 79 | N75: 80 | O75: 81 | P75: 82 | Q75: 82 | S75: PreHT
B76: 129 | C76: 130 | D76: 132 | E76: 134 | G76: 135 | H76: 137 | I76: 137 | J76: 82 | K76: 83 | M76: 83 | N76: 84 | O76: 85 | P76: 86 | Q76: 87 | S76: Stage 1 HT
B77: 141 | C77: 142 | D77: 144 | E77: 146 | G77: 148 | H77: 149 | I77: 150 | J77: 95 | K77: 95 | M77: 96 | N77: 97 | O77: 98 | P77: 99 | Q77: 99 | S77: Stage 2 HT
A78: 17 | B78: 64.2 | C78: 65.3 | D78: 67.1 | E78: 69.0 | G78: 70.9 | H78: 72.6 | I78: 73.6 | J78: 64.2 | K78: 65.3 | M78: 67.1 | N78: 69.0 | O78: 70.9 | P78: 72.6 | Q78: 73.6 | S78: Height - inches
B79: 114 | C79: 115 | D79: 116 | E79: 118 | G79: 120 | H79: 121 | I79: 122 | J79: 65 | K79: 66 | M79: 66 | N79: 67 | O79: 68 | P79: 69 | Q79: 70 | S79: NT
B80: 127 | C80: 128 | D80: 130 | E80: 132 | G80: 134 | H80: 135 | I80: 136 | J80: 80 | K80: 80 | M80: 81 | N80: 82 | O80: 83 | P80: 84 | Q80: 84 | S80: PreHT
B81: 131 | C81: 132 | D81: 134 | E81: 136 | G81: 138 | H81: 139 | I81: 140 | J81: 84 | K81: 85 | M81: 86 | N81: 87 | O81: 87 | P81: 88 | Q81: 89 | S81: Stage 1 HT
B82: 144 | C82: 145 | D82: 146 | E82: 148 | G82: 150 | H82: 151 | I82: 152 | J82: 97 | K82: 98 | M82: 98 | N82: 99 | O82: 100 | P82: 101 | Q82: 102 | S82: Stage 2 HT
A83: The 90th percentile is 1.28 SD, the 95th percentile is 1.645 SD, and the 99th percentile is 2.326 SD over the mean. NT = normotensive (50th percentile PreHT = pre-hypertensive (90th percentile) HT = hypertensive (95th percentile for stage 1 and 99th% + 5 mmHg for stage 2)
A84: Age yrs | B84: Systolic BP (mmHg) | J84: Diastolic BP (mmHg) | S84: BP Percentile
B85: 5th | C85: 10th | D85: 25th | F85: 50th | G85: 75th | H85: 90th | I85: 95th | J85: 5th | L85: 10th | M85: 25th | N85: 50th | O85: 75th | P85: 90th | R85: 95th
A86: 2 | B86: 31.4 | C86: 31.9 | D86: 32.7 | F86: 33.6 | G86: 34.5 | H86: 35.4 | I86: 35.9 | J86: 31.4 | L86: 31.9 | M86: 32.7 | N86: 33.6 | O86: 34.5 | P86: 35.4 | R86: 35.9 | S86: Height - inches
B87: 85 | C87: 85 | D87: 87 | F87: 88 | G87: 89 | H87: 91 | I87: 91 | J87: 43 | L87: 44 | M87: 44 | N87: 45 | O87: 46 | P87: 46 | R87: 47 | S87: NT
B88: 98 | C88: 99 | D88: 100 | F88: 101 | G88: 103 | H88: 104 | I88: 105 | J88: 57 | L88: 58 | M88: 58 | N88: 59 | O88: 60 | P88: 61 | R88: 61 | S88: PreHT
B89: 102 | C89: 103 | D89: 104 | F89: 105 | G89: 107 | H89: 108 | I89: 109 | J89: 61 | L89: 62 | M89: 62 | N89: 63 | O89: 64 | P89: 65 | R89: 65 | S89: Stage 1 HT
B90: 114 | C90: 115 | D90: 116 | F90: 117 | G90: 119 | H90: 120 | I90: 121 | J90: 74 | L90: 74 | M90: 75 | N90: 75 | O90: 76 | P90: 77 | R90: 77 | S90: Stage 2 HT
A91: 3 | B91: 34.6 | C91: 35.1 | D91: 36.0 | F91: 37.1 | G91: 38.1 | H91: 39.1 | I91: 39.7 | J91: 34.6 | L91: 35.1 | M91: 36.0 | N91: 37.1 | O91: 38.1 | P91: 39.1 | R91: 39.7 | S91: Height - inches
B92: 86 | C92: 87 | D92: 88 | F92: 89 | G92: 91 | H92: 92 | I92: 93 | J92: 47 | L92: 48 | M92: 48 | N92: 49 | O92: 50 | P92: 50 | R92: 51 | S92: NT
B93: 100 | C93: 100 | D93: 102 | F93: 103 | G93: 104 | H93: 106 | I93: 106 | J93: 61 | L93: 62 | M93: 62 | N93: 63 | O93: 64 | P93: 64 | R93: 65 | S93: PreHT
B94: 104 | C94: 104 | D94: 105 | F94: 107 | G94: 108 | H94: 109 | I94: 110 | J94: 65 | L94: 66 | M94: 66 | N94: 67 | O94: 68 | P94: 68 | R94: 69 | S94: Stage 1 HT
B95: 116 | C95: 116 | D95: 118 | F95: 119 | G95: 120 | H95: 121 | I95: 122 | J95: 78 | L95: 78 | M95: 79 | N95: 79 | O95: 80 | P95: 81 | R95: 81 | S95: Stage 2 HT
A96: 4 | B96: 37.0 | C96: 37.6 | D96: 38.6 | F96: 39.8 | G96: 40.9 | H96: 42.0 | I96: 42.7 | J96: 37.0 | L96: 37.6 | M96: 38.6 | N96: 39.8 | O96: 40.9 | P96: 42.0 | R96: 42.7 | S96: Height - inches
B97: 88 | C97: 88 | D97: 90 | F97: 91 | G97: 92 | H97: 94 | I97: 94 | J97: 50 | L97: 50 | M97: 51 | N97: 52 | O97: 52 | P97: 53 | R97: 54 | S97: NT
B98: 101 | C98: 102 | D98: 103 | F98: 104 | G98: 106 | H98: 107 | I98: 108 | J98: 64 | L98: 64 | M98: 65 | N98: 66 | O98: 67 | P98: 67 | R98: 68 | S98: PreHT
B99: 105 | C99: 106 | D99: 107 | F99: 108 | G99: 110 | H99: 111 | I99: 112 | J99: 68 | L99: 68 | M99: 69 | N99: 70 | O99: 71 | P99: 71 | R99: 72 | S99: Stage 1 HT
B100: 117 | C100: 118 | D100: 119 | F100: 120 | G100: 122 | H100: 123 | I100: 124 | J100: 81 | L100: 81 | M100: 81 | N100: 82 | O100: 83 | P100: 84 | R100: 84 | S100: Stage 2 HT
A101: 5 | B101: 39.5 | C101: 40.2 | D101: 41.3 | F101: 42.5 | G101: 43.8 | H101: 45.0 | I101: 45.7 | J101: 39.5 | L101: 40.2 | M101: 41.3 | N101: 42.5 | O101: 43.8 | P101: 45.0 | R101: 45.7 | S101: Height - inches
B102: 89 | C102: 90 | D102: 91 | F102: 93 | G102: 94 | H102: 95 | I102: 96 | J102: 52 | L102: 53 | M102: 53 | N102: 54 | O102: 55 | P102: 55 | R102: 56 | S102: NT
B103: 103 | C103: 103 | D103: 105 | F103: 106 | G103: 107 | H103: 109 | I103: 109 | J103: 66 | L103: 67 | M103: 67 | N103: 68 | O103: 69 | P103: 69 | R103: 70 | S103: PreHT
B104: 107 | C104: 107 | D104: 108 | F104: 110 | G104: 111 | H104: 112 | I104: 113 | J104: 70 | L104: 71 | M104: 71 | N104: 72 | O104: 73 | P104: 73 | R104: 74 | S104: Stage 1 HT
B105: 119 | C105: 119 | D105: 121 | F105: 122 | G105: 123 | H105: 125 | I105: 125 | J105: 83 | L105: 83 | M105: 84 | N105: 84 | O105: 85 | P105: 86 | R105: 86 | S105: Stage 2 HT
A106: 6 | B106: 42.1 | C106: 42.8 | D106: 43.9 | F106: 45.3 | G106: 46.7 | H106: 48.0 | I106: 48.8 | J106: 42.1 | L106: 42.8 | M106: 43.9 | N106: 45.3 | O106: 46.7 | P106: 48.0 | R106: 48.8 | S106: Height - inches
B107: 91 | C107: 92 | D107: 93 | F107: 94 | G107: 96 | H107: 97 | I107: 98 | J107: 54 | L107: 54 | M107: 55 | N107: 56 | O107: 56 | P107: 57 | R107: 58 | S107: NT
B108: 104 | C108: 105 | D108: 106 | F108: 108 | G108: 109 | H108: 110 | I108: 111 | J108: 68 | L108: 68 | M108: 69 | N108: 70 | O108: 70 | P108: 71 | R108: 72 | S108: PreHT
B109: 108 | C109: 109 | D109: 110 | F109: 111 | G109: 113 | H109: 114 | I109: 115 | J109: 72 | L109: 72 | M109: 73 | N109: 74 | O109: 74 | P109: 75 | R109: 76 | S109: Stage 1 HT
B110: 120 | C110: 121 | D110: 122 | F110: 124 | G110: 125 | H110: 126 | I110: 127 | J110: 85 | L110: 85 | M110: 85 | N110: 86 | O110: 87 | P110: 88 | R110: 88 | S110: Stage 2 HT
A111: 7 | B111: 44.5 | C111: 45.2 | D111: 46.5 | F111: 47.9 | G111: 49.4 | H111: 50.8 | I111: 51.7 | J111: 44.5 | L111: 45.2 | M111: 46.5 | N111: 47.9 | O111: 49.4 | P111: 50.8 | R111: 51.7 | S111: Height - inches
B112: 93 | C112: 93 | D112: 95 | F112: 96 | G112: 97 | H112: 99 | I112: 99 | J112: 55 | L112: 56 | M112: 56 | N112: 57 | O112: 58 | P112: 58 | R112: 59 | S112: NT
B113: 106 | C113: 107 | D113: 108 | F113: 109 | G113: 111 | H113: 112 | I113: 113 | J113: 69 | L113: 70 | M113: 70 | N113: 71 | O113: 72 | P113: 72 | R113: 73 | S113: PreHT
B114: 110 | C114: 111 | D114: 112 | F114: 113 | G114: 115 | H114: 116 | I114: 116 | J114: 73 | L114: 74 | M114: 74 | N114: 75 | O114: 76 | P114: 76 | R114: 77 | S114: Stage 1 HT
B115: 122 | C115: 123 | D115: 124 | F115: 125 | G115: 127 | H115: 128 | I115: 129 | J115: 86 | L115: 86 | M115: 87 | N115: 87 | O115: 88 | P115: 89 | R115: 89 | S115: Stage 2 HT
A116: 8 | B116: 46.7 | C116: 47.5 | D116: 48.8 | F116: 50.3 | G116: 51.9 | H116: 53.4 | I116: 54.3 | J116: 46.7 | L116: 47.5 | M116: 48.8 | N116: 50.3 | O116: 51.9 | P116: 53.4 | R116: 54.3 | S116: Height - inches
B117: 95 | C117: 95 | D117: 96 | F117: 98 | G117: 99 | H117: 100 | I117: 101 | J117: 57 | L117: 57 | M117: 57 | N117: 58 | O117: 59 | P117: 60 | R117: 60 | S117: NT
B118: 108 | C118: 109 | D118: 110 | F118: 111 | G118: 113 | H118: 114 | I118: 114 | J118: 71 | L118: 71 | M118: 71 | N118: 72 | O118: 73 | P118: 74 | R118: 74 | S118: PreHT
B119: 112 | C119: 112 | D119: 114 | F119: 115 | G119: 116 | H119: 118 | I119: 118 | J119: 75 | L119: 75 | M119: 75 | N119: 76 | O119: 77 | P119: 78 | R119: 78 | S119: Stage 1 HT
B120: 124 | C120: 125 | D120: 126 | F120: 127 | G120: 128 | H120: 130 | I120: 130 | J120: 87 | L120: 87 | M120: 88 | N120: 88 | O120: 89 | P120: 90 | R120: 91 | S120: Stage 2 HT
A121: 9 | B121: 48.5 | C121: 19.3 | D121: 50.8 | F121: 52.4 | G121: 54.1 | H121: 55.7 | I121: 56.6 | J121: 48.5 | L121: 19.3 | M121: 50.8 | N121: 52.4 | O121: 54.1 | P121: 55.7 | R121: 56.6 | S121: Height - inches
B122: 96 | C122: 97 | D122: 98 | F122: 100 | G122: 101 | H122: 102 | I122: 103 | J122: 58 | L122: 58 | M122: 58 | N122: 59 | O122: 60 | P122: 61 | R122: 61 | S122: NT
B123: 110 | C123: 110 | D123: 112 | F123: 113 | G123: 114 | H123: 116 | I123: 116 | J123: 72 | L123: 72 | M123: 72 | N123: 73 | O123: 74 | P123: 75 | R123: 75 | S123: PreHT
B124: 114 | C124: 114 | D124: 115 | F124: 117 | G124: 118 | H124: 119 | I124: 120 | J124: 76 | L124: 76 | M124: 76 | N124: 77 | O124: 78 | P124: 79 | R124: 79 | S124: Stage 1 HT
B125: 126 | C125: 126 | D125: 128 | F125: 129 | G125: 130 | H125: 132 | I125: 132 | J125: 88 | L125: 88 | M125: 89 | N125: 89 | O125: 90 | P125: 91 | R125: 92 | S125: Stage 2 HT
A126: 10 | B126: 50.2 | C126: 51.1 | D126: 52.6 | F126: 54.4 | G126: 56.2 | H126: 57.9 | I126: 58.9 | J126: 50.2 | L126: 51.1 | M126: 52.6 | N126: 54.4 | O126: 56.2 | P126: 57.9 | R126: 58.9 | S126: Height - inches
B127: 98 | C127: 99 | D127: 100 | F127: 102 | G127: 103 | H127: 104 | I127: 105 | J127: 59 | L127: 59 | M127: 59 | N127: 60 | O127: 61 | P127: 62 | R127: 62 | S127: NT
B128: 112 | C128: 112 | D128: 114 | F128: 115 | G128: 116 | H128: 118 | I128: 118 | J128: 73 | L128: 73 | M128: 73 | N128: 74 | O128: 75 | P128: 76 | R128: 76 | S128: PreHT
B129: 116 | C129: 116 | D129: 117 | F129: 119 | G129: 120 | H129: 121 | I129: 122 | J129: 77 | L129: 77 | M129: 77 | N129: 78 | O129: 79 | P129: 80 | R129: 80 | S129: Stage 1 HT
B130: 128 | C130: 128 | D130: 130 | F130: 131 | G130: 132 | H130: 134 | I130: 134 | J130: 89 | L130: 89 | M130: 90 | N130: 91 | O130: 91 | P130: 92 | R130: 93 | S130: Stage 2 HT
A131: 11 | B131: 52.1 | C131: 53.1 | D131: 54.9 | F131: 56.8 | G131: 58.7 | H131: 60.5 | I131: 61.6 | J131: 52.1 | L131: 53.1 | M131: 54.9 | N131: 56.8 | O131: 58.7. | P131: 60.5 | R131: 61.6 | S131: Height - inches
B132: 100 | C132: 101 | D132: 102 | F132: 103 | G132: 105 | H132: 106 | I132: 107 | J132: 60 | L132: 60 | M132: 60 | N132: 61 | O132: 62 | P132: 63 | R132: 63 | S132: NT
B133: 114 | C133: 114 | D133: 116 | F133: 117 | G133: 118 | H133: 119 | I133: 120 | J133: 74 | L133: 74 | M133: 74 | N133: 75 | O133: 76 | P133: 77 | R133: 77 | S133: PreHT
B134: 118 | C134: 118 | D134: 119 | F134: 121 | G134: 122 | H134: 123 | I134: 124 | J134: 78 | L134: 78 | M134: 78 | N134: 79 | O134: 80 | P134: 81 | R134: 81 | S134: Stage 1 HT
B135: 130 | C135: 130 | D135: 131 | F135: 133 | G135: 134 | H135: 135 | I135: 136 | J135: 90 | L135: 90 | M135: 91 | N135: 92 | O135: 92 | P135: 93 | R135: 94 | S135: Stage 2 HT
A136: 12 | B136: 54.8 | C136: 55.9 | D136: 57.7 | F136: 59.6 | G136: 61.6 | H136: 63.3 | I136: 64.4 | J136: 54.8 | L136: 55.9 | M136: 57.7 | N136: 59.6 | O136: 61.6 | P136: 63.3 | R136: 64.4 | S136: Height - inches
B137: 102 | C137: 103 | D137: 104 | F137: 105 | G137: 107 | H137: 108 | I137: 109 | J137: 61 | L137: 61 | M137: 61 | N137: 62 | O137: 63 | P137: 64 | R137: 64 | S137: NT
B138: 116 | C138: 116 | D138: 117 | F138: 119 | G138: 120 | H138: 121 | I138: 122 | J138: 75 | L138: 75 | M138: 75 | N138: 76 | O138: 77 | P138: 78 | R138: 78 | S138: PreHT
B139: 119 | C139: 120 | D139: 121 | F139: 123 | G139: 124 | H139: 125 | I139: 126 | J139: 79 | L139: 79 | M139: 79 | N139: 80 | O139: 81 | P139: 82 | R139: 82 | S139: Stage 1 HT
B140: 132 | C140: 132 | D140: 133 | F140: 135 | G140: 136 | H140: 137 | I140: 138 | J140: 91 | L140: 91 | M140: 92 | N140: 93 | O140: 93 | P140: 94 | R140: 95 | S140: Stage 2 HT
A141: 13 | B141: 57.4 | C141: 58.4 | D141: 60.1 | F141: 61.9 | G141: 63.8 | H141: 65.4 | I141: 66.4 | J141: 57.4 | L141: 58.4 | M141: 60.1 | N141: 61.9 | O141: 63.8 | P141: 65.4 | R141: 66.4 | S141: Height - inches
B142: 104 | C142: 105 | D142: 106 | F142: 107 | G142: 109 | H142: 110 | I142: 110 | J142: 62 | L142: 62 | M142: 62 | N142: 63 | O142: 64 | P142: 65 | R142: 65 | S142: NT
B143: 117 | C143: 118 | D143: 119 | F143: 121 | G143: 122 | H143: 123 | I143: 124 | J143: 76 | L143: 76 | M143: 76 | N143: 77 | O143: 78 | P143: 79 | R143: 79 | S143: PreHT
B144: 121 | C144: 122 | D144: 123 | F144: 124 | G144: 126 | H144: 127 | I144: 128 | J144: 80 | L144: 80 | M144: 80 | N144: 81 | O144: 82 | P144: 83 | R144: 83 | S144: Stage 1 HT
B145: 133 | C145: 134 | D145: 135 | F145: 137 | G145: 138 | H145: 139 | I145: 140 | J145: 92 | L145: 92 | M145: 93 | N145: 94 | O145: 94 | P145: 95 | R145: 96 | S145: Stage 2 HT
A146: 14 | B146: 58.9 | C146: 59.9 | D146: 61.4 | F146: 63.2 | G146: 64.9 | H146: 66.5 | I146: 67.4 | J146: 58.9 | L146: 59.9 | M146: 61.4 | N146: 63.2 | O146: 64.9 | P146: 66.5 | R146: 67.4 | S146: Height - inches
B147: 106 | C147: 106 | D147: 107 | F147: 109 | G147: 110 | H147: 111 | I147: 112 | J147: 63 | L147: 63 | M147: 63 | N147: 64 | O147: 65 | P147: 66 | R147: 66 | S147: NT
B148: 119 | C148: 120 | D148: 121 | F148: 122 | G148: 124 | H148: 125 | I148: 125 | J148: 77 | L148: 77 | M148: 77 | N148: 78 | O148: 79 | P148: 80 | R148: 80 | S148: PreHT
B149: 123 | C149: 123 | D149: 125 | F149: 126 | G149: 127 | H149: 129 | I149: 129 | J149: 81 | L149: 81 | M149: 81 | N149: 82 | O149: 83 | P149: 84 | R149: 84 | S149: Stage 1 HT
B150: 135 | C150: 136 | D150: 137 | F150: 138 | G150: 140 | H150: 141 | I150: 141 | J150: 93 | L150: 93 | M150: 94 | N150: 95 | O150: 95 | P150: 96 | R150: 97 | S150: Stage 2 HT
A151: 15 | B151: 59.6 | C151: 60.5 | D151: 62.0 | F151: 63.7 | G151: 65.5 | H151: 67.0 | I151: 68.0 | J151: 59.6 | L151: 60.5 | M151: 62.0 | N151: 63.7 | O151: 65.5 | P151: 67.0 | R151: 68.0 | S151: Height - inches
B152: 107 | C152: 108 | D152: 109 | F152: 110 | G152: 111 | H152: 113 | I152: 113 | J152: 64 | L152: 64 | M152: 64 | N152: 65 | O152: 66 | P152: 67 | R152: 67 | S152: NT
B153: 120 | C153: 121 | D153: 122 | F153: 123 | G153: 125 | H153: 126 | I153: 127 | J153: 78 | L153: 78 | M153: 78 | N153: 79 | O153: 80 | P153: 81 | R153: 81 | S153: PreHT
B154: 124 | C154: 125 | D154: 126 | F154: 127 | G154: 129 | H154: 130 | I154: 131 | J154: 82 | L154: 82 | M154: 82 | N154: 83 | O154: 84 | P154: 85 | R154: 85 | S154: Stage 1 HT
B155: 136 | C155: 137 | D155: 138 | F155: 139 | G155: 141 | H155: 142 | I155: 143 | J155: 94 | L155: 94 | M155: 95 | N155: 96 | O155: 96 | P155: 97 | R155: 98 | S155: Stage 2 HT
A156: 16 | B156: 59.8 | C156: 60.7 | D156: 62.3 | F156: 64.0 | G156: 65.7 | H156: 67.3 | I156: 68.2 | J156: 59.8 | L156: 60.7 | M156: 62.3 | N156: 64.0 | O156: 65.7 | P156: 67.3 | R156: 68.2 | S156: Height - inches
B157: 108 | C157: 108 | D157: 110 | F157: 111 | G157: 112 | H157: 114 | I157: 114 | J157: 64 | L157: 64 | M157: 65 | N157: 66 | O157: 66 | P157: 67 | R157: 68 | S157: NT
B158: 121 | C158: 122 | D158: 123 | F158: 124 | G158: 126 | H158: 127 | I158: 128 | J158: 78 | L158: 78 | M158: 79 | N158: 80 | O158: 81 | P158: 81 | R158: 82 | S158: PreHT
B159: 125 | C159: 126 | D159: 127 | F159: 128 | G159: 130 | H159: 131 | I159: 132 | J159: 82 | L159: 82 | M159: 83 | N159: 84 | O159: 85 | P159: 85 | R159: 86 | S159: Stage 1 HT
B160: 137 | C160: 138 | D160: 139 | F160: 140 | G160: 142 | H160: 143 | I160: 144 | J160: 95 | L160: 95 | M160: 95 | N160: 96 | O160: 97 | P160: 98 | R160: 98 | S160: Stage 2 HT
A161: 17 | B161: 60.0 | C161: 60.9 | D161: 62.4 | F161: 64.1 | G161: 65.9 | H161: 67.4 | I161: 68.3 | J161: 60.0 | L161: 60.9 | M161: 62.4 | N161: 64.1 | O161: 65.9 | P161: 67.4 | R161: 68.3 | S161: Height - inches
B162: 108 | C162: 109 | D162: 110 | F162: 111 | G162: 113 | H162: 114 | I162: 115 | J162: 64 | L162: 65 | M162: 65 | N162: 66 | O162: 67 | P162: 67 | R162: 68 | S162: NT
B163: 122 | C163: 122 | D163: 123 | F163: 125 | G163: 126 | H163: 127 | I163: 128 | J163: 78 | L163: 79 | M163: 79 | N163: 80 | O163: 81 | P163: 81 | R163: 82 | S163: PreHT
B164: 125 | C164: 126 | D164: 127 | F164: 129 | G164: 130 | H164: 131 | I164: 132 | J164: 82 | L164: 83 | M164: 83 | N164: 84 | O164: 85 | P164: 85 | R164: 86 | S164: Stage 1 HT
B165: 138 | C165: 138 | D165: 139 | F165: 141 | G165: 142 | H165: 143 | I165: 144 | J165: 95 | L165: 95 | M165: 96 | N165: 96 | O165: 97 | P165: 98 | R165: 98 | S165: Stage 2 HT
A166: The 90th percentile is 1.28 SD, the 95th percentile is 1.645 SD, and the 99th percentile is 2.326 SD over the mean. NT = normotensive (50th percentile PreHT = pre-hypertensive (90th percentile) HT = hypertensive (95th percentile for stage 1 and 99th% + 5 mmHg for stage 2)
